Workbook

Sheet Data
A1: dv0 | B1: dv6
A2: 296 | B2: 175
A3: 376 | B3: 329
A4: 309 | B4: 238
A5: 222 | B5: 60
A6: 150 | B6: 271
A7: 316 | B7: 291
A8: 321 | B8: 364
A9: 447 | B9: 402
A10: 220 | B10: 70
A11: 375 | B11: 335
A12: 310 | B12: 300
A13: 310 | B13: 245
A14: 282 | B14: 186
A15: 317 | B15: 31
A16: 362 | B16: 104
A17: 338 | B17: 132
A18: 263 | B18: 94
A19: 138 | B19: 38
A20: 329 | B20: 62
A21: 292 | B21: 139
A22: 275 | B22: 94
A23: 150 | B23: 48
A24: 319 | B24: 68
A25: 300 | B25: 138

Sheet Wicoxon
B1: XLSTAT 2023.2.0.1411 - Comparison of two samples (Wilcoxon, Mann-Whitney, ...) - Start time: 12/09/2023 at 17:21:05 / End time: 12/09/2023 at 17:21:06 / Microsoft Excel 16.016731
B2: Sample 1: Workbook = demoWilcoxon_FR.xlsm / Sheet = Data / Range = Data!$A:$A / 24 rows and 1 column
B3: Sample 2: Workbook = demoWilcoxon_FR.xlsm / Sheet = Data / Range = Data!$B:$B / 24 rows and 1 column
B4: Hypothesized difference (D): 0
B5: Significance level (%): 5
B6: p-value: Exact p-value
B7: Management of ties: Hollander & Wolfe
B12: Summary statistics:
B14: Variable | C14: Observations | D14: Obs. with missing data | E14: Obs. without missing data | F14: Minimum | G14: Maximum | H14: Mean | I14: Std. deviation
B15: dv0 | C15: 24 | D15: 0 | E15: 24 | F15: 138 | G15: 447 | H15: 292.375 | I15: 73.86757393
B16: dv6 | C16: 24 | D16: 0 | E16: 24 | F16: 31 | G16: 402 | H16: 175.5833333 | I16: 116.2126674
B19: Sign test / Two-tailed test:
B21: N+ | C21: 22
B22: Expected value | C22: 12
B23: Variance (N+) | C23: 6
B24: p-value (Two-tailed) | C24: 3.588199615e-05
B25: alpha | C25: 0.05
B26: The p-value is computed using an exact method.
B28: Test interpretation:
B29: H0: The two samples follow the same distribution.
B30: Ha: The distributions of the two samples are different.
B31: As the computed p-value is lower than the significance level alpha=0,05, one should reject the null hypothesis H0, and accept the alternative hypothesis Ha.
B35: Wilcoxon signed-rank test / Two-tailed test:
B37: V | C37: 283.5
B38: V (standardized) | C38: 3.814674987
B39: Expected value | C39: 150
B40: Variance (V) | C40: 1224.75
B41: p-value (Two-tailed) | C41: 0.0001363622832
B42: alpha | C42: 0.05
B43: The exact p-value could not be computed. An approximation has been used to compute the p-value.
B45: Test interpretation:
B46: H0: The two samples follow the same distribution.
B47: Ha: The distributions of the two samples are different.
B48: As the computed p-value is lower than the significance level alpha=0,05, one should reject the null hypothesis H0, and accept the alternative hypothesis Ha.
B52: Ties have been detected in the data and the appropriate corrections have been applied.
B77: Dominance diagram:
B123: Summary (p-values):
B125: Variable\Subsamples | C125: Sign test | D125: Wilcoxon signed-rank test
B126: dv0 - dv6 | C126: 3.588199615e-05 | D126: 0.0001363622832

Sheet XLSTAT_20230912_172054_1_HID (hidden)
A1: 1 | B1: =IF(-1^(INT(A1/2)+2)>0,1.9599639845+2*INT(A1/2-1/2)*0.004080072,51) -> 1.959963985 | C1: =1.9599639845+2*INT(A1/2-1/2)*0.004080072 -> 1.959963985 | D1: =[1]!XLSTAT_PDFNormal(B1,0,1) -> 0.05844506981 | E1: 1 | F1: =IF(-1^(INT(E1/2)+2)>0,-4+2*INT(E1/2-1/2)*0.004080072,51) -> -4 | G1: =-4+2*INT(E1/2-1/2)*0.004080072 -> -4 | H1: =[1]!XLSTAT_PDFNormal(F1,0,1) -> 0.0001338302258 | I1: 1 | K1: =-4+(I1-1)*0.0160320641 -> -4 | L1: =[1]!XLSTAT_PDFNormal(K1,0,1) -> 0.0001338302258 | M1: 1 | O1: =M1-24*INT((-1/2+M1)/24) -> 1 | P1: =1+INT((M1-1/2)/24) -> 1
A2: 2 | B2: 51 | C2: 1.959963985 | D2: =[1]!XLSTAT_PDFNormal(B2,0,1) -> 0 | E2: 2 | F2: 51 | G2: -4 | H2: =[1]!XLSTAT_PDFNormal(F2,0,1) -> 0 | I2: 2 | K2: -3.983967936 | L2: =[1]!XLSTAT_PDFNormal(K2,0,1) -> 0.0001426753497 | M2: 2 | O2: 2 | P2: 1
A3: 3 | B3: 51 | C3: 1.968124129 | D3: =[1]!XLSTAT_PDFNormal(B3,0,1) -> 0 | E3: 3 | F3: 51 | G3: -3.991839856 | H3: =[1]!XLSTAT_PDFNormal(F3,0,1) -> 0 | I3: 3 | K3: -3.967935872 | L3: =[1]!XLSTAT_PDFNormal(K3,0,1) -> 0.0001520659766 | M3: 3 | O3: 3 | P3: 1
A4: 4 | B4: 1.968124129 | C4: 1.968124129 | D4: =[1]!XLSTAT_PDFNormal(B4,0,1) -> 0.05751584374 | E4: 4 | F4: -3.991839856 | G4: -3.991839856 | H4: =[1]!XLSTAT_PDFNormal(F4,0,1) -> 0.0001382659918 | I4: 4 | K4: -3.951903808 | L4: =[1]!XLSTAT_PDFNormal(K4,0,1) -> 0.0001620330249 | M4: 4 | O4: 4 | P4: 1
A5: 5 | B5: 1.976284273 | C5: 1.976284273 | D5: =[1]!XLSTAT_PDFNormal(B5,0,1) -> 0.05659762272 | E5: 5 | F5: -3.983679712 | G5: -3.983679712 | H5: =[1]!XLSTAT_PDFNormal(F5,0,1) -> 0.0001428392684 | I5: 5 | K5: -3.935871744 | L5: =[1]!XLSTAT_PDFNormal(K5,0,1) -> 0.0001726089849 | M5: 5 | O5: 5 | P5: 1
A6: 6 | B6: 51 | C6: 1.976284273 | D6: =[1]!XLSTAT_PDFNormal(B6,0,1) -> 0 | E6: 6 | F6: 51 | G6: -3.983679712 | H6: =[1]!XLSTAT_PDFNormal(F6,0,1) -> 0 | I6: 6 | K6: -3.919839679 | L6: =[1]!XLSTAT_PDFNormal(K6,0,1) -> 0.0001838279872 | M6: 6 | O6: 6 | P6: 1
A7: 7 | B7: 51 | C7: 1.984444417 | D7: =[1]!XLSTAT_PDFNormal(B7,0,1) -> 0 | E7: 7 | F7: 51 | G7: -3.975519568 | H7: =[1]!XLSTAT_PDFNormal(F7,0,1) -> 0 | I7: 7 | K7: -3.903807615 | L7: =[1]!XLSTAT_PDFNormal(K7,0,1) -> 0.0001957258735 | M7: 7 | O7: 7 | P7: 1
A8: 8 | B8: 1.984444417 | C8: 1.984444417 | D8: =[1]!XLSTAT_PDFNormal(B8,0,1) -> 0.05569035236 | E8: 8 | F8: -3.975519568 | G8: -3.975519568 | H8: =[1]!XLSTAT_PDFNormal(F8,0,1) -> 0.0001475539847 | I8: 8 | K8: -3.887775551 | L8: =[1]!XLSTAT_PDFNormal(K8,0,1) -> 0.0002083402699 | M8: 8 | O8: 8 | P8: 1
A9: 9 | B9: 1.992604561 | C9: 1.992604561 | D9: =[1]!XLSTAT_PDFNormal(B9,0,1) -> 0.05479397696 | E9: 9 | F9: -3.967359424 | G9: -3.967359424 | H9: =[1]!XLSTAT_PDFNormal(F9,0,1) -> 0.0001524141711 | I9: 9 | K9: -3.871743487 | L9: =[1]!XLSTAT_PDFNormal(K9,0,1) -> 0.0002217106624 | M9: 9 | O9: 9 | P9: 1
A10: 10 | B10: 51 | C10: 1.992604561 | D10: =[1]!XLSTAT_PDFNormal(B10,0,1) -> 0 | E10: 10 | F10: 51 | G10: -3.967359424 | H10: =[1]!XLSTAT_PDFNormal(F10,0,1) -> 0 | I10: 10 | K10: -3.855711423 | L10: =[1]!XLSTAT_PDFNormal(K10,0,1) -> 0.0002358784749 | M10: 10 | O10: 10 | P10: 1
A11: 11 | B11: 51 | C11: 2.000764704 | D11: =[1]!XLSTAT_PDFNormal(B11,0,1) -> 0 | E11: 11 | F11: 51 | G11: -3.95919928 | H11: =[1]!XLSTAT_PDFNormal(F11,0,1) -> 0 | I11: 11 | K11: -3.839679359 | L11: =[1]!XLSTAT_PDFNormal(K11,0,1) -> 0.0002508871496 | M11: 11 | O11: 11 | P11: 1
A12: 12 | B12: 2.000764704 | C12: 2.000764704 | D12: =[1]!XLSTAT_PDFNormal(B12,0,1) -> 0.05390843959 | E12: 12 | F12: -3.95919928 | G12: -3.95919928 | H12: =[1]!XLSTAT_PDFNormal(F12,0,1) -> 0.0001574239612 | I12: 12 | K12: -3.823647295 | L12: =[1]!XLSTAT_PDFNormal(K12,0,1) -> 0.0002667822298 | M12: 12 | O12: 12 | P12: 1
A13: 13 | B13: 2.008924848 | C13: 2.008924848 | D13: =[1]!XLSTAT_PDFNormal(B13,0,1) -> 0.05303368206 | E13: 13 | F13: -3.951039136 | G13: -3.951039136 | H13: =[1]!XLSTAT_PDFNormal(F13,0,1) -> 0.0001625875942 | I13: 13 | K13: -3.807615231 | L13: =[1]!XLSTAT_PDFNormal(K13,0,1) -> 0.0002836114455 | M13: 13 | O13: 13 | P13: 1
A14: 14 | B14: 51 | C14: 2.008924848 | D14: =[1]!XLSTAT_PDFNormal(B14,0,1) -> 0 | E14: 14 | F14: 51 | G14: -3.951039136 | H14: =[1]!XLSTAT_PDFNormal(F14,0,1) -> 0 | I14: 14 | K14: -3.791583167 | L14: =[1]!XLSTAT_PDFNormal(K14,0,1) -> 0.0003014248013 | M14: 14 | O14: 14 | P14: 1
A15: 15 | B15: 51 | C15: 2.017084993 | D15: =[1]!XLSTAT_PDFNormal(B15,0,1) -> 0 | E15: 15 | F15: 51 | G15: -3.942878992 | H15: =[1]!XLSTAT_PDFNormal(F15,0,1) -> 0 | I15: 15 | K15: -3.775551103 | L15: =[1]!XLSTAT_PDFNormal(K15,0,1) -> 0.0003202746665 | M15: 15 | O15: 15 | P15: 1
A16: 16 | B16: 2.017084993 | C16: 2.017084993 | D16: =[1]!XLSTAT_PDFNormal(B16,0,1) -> 0.052169645 | E16: 16 | F16: -3.942878992 | G16: -3.942878992 | H16: =[1]!XLSTAT_PDFNormal(F16,0,1) -> 0.0001679094174 | I16: 16 | K16: -3.759519039 | L16: =[1]!XLSTAT_PDFNormal(K16,0,1) -> 0.0003402158688 | M16: 16 | O16: 16 | P16: 1
A17: 17 | B17: 2.025245137 | C17: 2.025245137 | D17: =[1]!XLSTAT_PDFNormal(B17,0,1) -> 0.05131626787 | E17: 17 | F17: -3.934718848 | G17: -3.934718848 | H17: =[1]!XLSTAT_PDFNormal(F17,0,1) -> 0.0001733938885 | I17: 17 | K17: -3.743486974 | L17: =[1]!XLSTAT_PDFNormal(K17,0,1) -> 0.0003613057891 | M17: 17 | O17: 17 | P17: 1
A18: 18 | B18: 51 | C18: 2.025245137 | D18: =[1]!XLSTAT_PDFNormal(B18,0,1) -> 0 | E18: 18 | F18: 51 | G18: -3.934718848 | H18: =[1]!XLSTAT_PDFNormal(F18,0,1) -> 0 | I18: 18 | K18: -3.72745491 | L18: =[1]!XLSTAT_PDFNormal(K18,0,1) -> 0.0003836044604 | M18: 18 | O18: 18 | P18: 1
A19: 19 | B19: 51 | C19: 2.033405281 | D19: =[1]!XLSTAT_PDFNormal(B19,0,1) -> 0 | E19: 19 | F19: 51 | G19: -3.926558704 | H19: =[1]!XLSTAT_PDFNormal(F19,0,1) -> 0 | I19: 19 | K19: -3.711422846 | L19: =[1]!XLSTAT_PDFNormal(K19,0,1) -> 0.000407174668 | M19: 19 | O19: 19 | P19: 1
A20: 20 | B20: 2.033405281 | C20: 2.033405281 | D20: =[1]!XLSTAT_PDFNormal(B20,0,1) -> 0.05047348901 | E20: 20 | F20: -3.926558704 | G20: -3.926558704 | H20: =[1]!XLSTAT_PDFNormal(F20,0,1) -> 0.0001790455776 | I20: 20 | K20: -3.695390782 | L20: =[1]!XLSTAT_PDFNormal(K20,0,1) -> 0.0004320820534 | M20: 20 | O20: 20 | P20: 1
A21: 21 | B21: 2.041565424 | C21: 2.041565424 | D21: =[1]!XLSTAT_PDFNormal(B21,0,1) -> 0.04964124569 | E21: 21 | F21: -3.91839856 | G21: -3.91839856 | H21: =[1]!XLSTAT_PDFNormal(F21,0,1) -> 0.0001848691703 | I21: 21 | K21: -3.679358718 | L21: =[1]!XLSTAT_PDFNormal(K21,0,1) -> 0.0004583952196 | M21: 21 | O21: 21 | P21: 1
A22: 22 | B22: 51 | C22: 2.041565424 | D22: =[1]!XLSTAT_PDFNormal(B22,0,1) -> 0 | E22: 22 | F22: 51 | G22: -3.91839856 | H22: =[1]!XLSTAT_PDFNormal(F22,0,1) -> 0 | I22: 22 | K22: -3.663326654 | L22: =[1]!XLSTAT_PDFNormal(K22,0,1) -> 0.0004861858403 | M22: 22 | O22: 22 | P22: 1
A23: 23 | B23: 51 | C23: 2.049725568 | D23: =[1]!XLSTAT_PDFNormal(B23,0,1) -> 0 | E23: 23 | F23: 51 | G23: -3.910238416 | H23: =[1]!XLSTAT_PDFNormal(F23,0,1) -> 0 | I23: 23 | K23: -3.64729459 | L23: =[1]!XLSTAT_PDFNormal(K23,0,1) -> 0.0005155287703 | M23: 23 | O23: 23 | P23: 1
A24: 24 | B24: 2.049725568 | C24: 2.049725568 | D24: =[1]!XLSTAT_PDFNormal(B24,0,1) -> 0.0488194741 | E24: 24 | F24: -3.910238416 | G24: -3.910238416 | H24: =[1]!XLSTAT_PDFNormal(F24,0,1) -> 0.0001908694697 | I24: 24 | K24: -3.631262526 | L24: =[1]!XLSTAT_PDFNormal(K24,0,1) -> 0.0005465021597 | M24: 24 | O24: 24 | P24: 1
A25: 25 | B25: 2.057885713 | C25: 2.057885713 | D25: =[1]!XLSTAT_PDFNormal(B25,0,1) -> 0.04800810942 | E25: 25 | F25: -3.902078272 | G25: -3.902078272 | H25: =[1]!XLSTAT_PDFNormal(F25,0,1) -> 0.0001970513992 | I25: 25 | K25: -3.615230462 | L25: =[1]!XLSTAT_PDFNormal(K25,0,1) -> 0.0005791875696 | M25: 25 | O25: 1 | P25: 2
A26: 26 | B26: 51 | C26: 2.057885713 | D26: =[1]!XLSTAT_PDFNormal(B26,0,1) -> 0 | E26: 26 | F26: 51 | G26: -3.902078272 | H26: =[1]!XLSTAT_PDFNormal(F26,0,1) -> 0 | I26: 26 | K26: -3.599198397 | L26: =[1]!XLSTAT_PDFNormal(K26,0,1) -> 0.0006136700909 | M26: 26 | O26: 2 | P26: 2
A27: 27 | B27: 51 | C27: 2.066045857 | D27: =[1]!XLSTAT_PDFNormal(B27,0,1) -> 0 | E27: 27 | F27: 51 | G27: -3.893918128 | H27: =[1]!XLSTAT_PDFNormal(F27,0,1) -> 0 | I27: 27 | K27: -3.583166333 | L27: =[1]!XLSTAT_PDFNormal(K27,0,1) -> 0.0006500384652 | M27: 27 | O27: 3 | P27: 2
A28: 28 | B28: 2.066045857 | C28: 2.066045857 | D28: =[1]!XLSTAT_PDFNormal(B28,0,1) -> 0.04720708585 | E28: 28 | F28: -3.893918128 | G28: -3.893918128 | H28: =[1]!XLSTAT_PDFNormal(F28,0,1) -> 0.0002034200048 | I28: 28 | K28: -3.567134269 | L28: =[1]!XLSTAT_PDFNormal(K28,0,1) -> 0.0006883852084 | M28: 28 | O28: 4 | P28: 2
A29: 29 | B29: 2.074206001 | C29: 2.074206001 | D29: =[1]!XLSTAT_PDFNormal(B29,0,1) -> 0.04641633662 | E29: 29 | F29: -3.885757984 | G29: -3.885757984 | H29: =[1]!XLSTAT_PDFNormal(F29,0,1) -> 0.0002099804581 | I29: 29 | K29: -3.551102205 | L29: =[1]!XLSTAT_PDFNormal(K29,0,1) -> 0.0007288067363 | M29: 29 | O29: 5 | P29: 2
A30: 30 | B30: 51 | C30: 2.074206001 | D30: =[1]!XLSTAT_PDFNormal(B30,0,1) -> 0 | E30: 30 | F30: 51 | G30: -3.885757984 | H30: =[1]!XLSTAT_PDFNormal(F30,0,1) -> 0 | I30: 30 | K30: -3.535070141 | L30: =[1]!XLSTAT_PDFNormal(K30,0,1) -> 0.0007714034927 | M30: 30 | O30: 6 | P30: 2
A31: 31 | B31: 51 | C31: 2.082366144 | D31: =[1]!XLSTAT_PDFNormal(B31,0,1) -> 0 | E31: 31 | F31: 51 | G31: -3.87759784 | H31: =[1]!XLSTAT_PDFNormal(F31,0,1) -> 0 | I31: 31 | K31: -3.519038077 | L31: =[1]!XLSTAT_PDFNormal(K31,0,1) -> 0.0008162800798 | M31: 31 | O31: 7 | P31: 2
A32: 32 | B32: 2.082366144 | C32: 2.082366144 | D32: =[1]!XLSTAT_PDFNormal(B32,0,1) -> 0.04563579405 | E32: 32 | F32: -3.87759784 | G32: -3.87759784 | H32: =[1]!XLSTAT_PDFNormal(F32,0,1) -> 0.0002167380584 | I32: 32 | K32: -3.503006013 | L32: =[1]!XLSTAT_PDFNormal(K32,0,1) -> 0.0008635453902 | M32: 32 | O32: 8 | P32: 2
A33: 33 | B33: 2.090526288 | C33: 2.090526288 | D33: =[1]!XLSTAT_PDFNormal(B33,0,1) -> 0.04486538959 | E33: 33 | F33: -3.869437696 | G33: -3.869437696 | H33: =[1]!XLSTAT_PDFNormal(F33,0,1) -> 0.0002236982361 | I33: 33 | K33: -3.486973949 | L33: =[1]!XLSTAT_PDFNormal(K33,0,1) -> 0.0009133127418 | M33: 33 | O33: 9 | P33: 2
A34: 34 | B34: 51 | C34: 2.090526288 | D34: =[1]!XLSTAT_PDFNormal(B34,0,1) -> 0 | E34: 34 | F34: 51 | G34: -3.869437696 | H34: =[1]!XLSTAT_PDFNormal(F34,0,1) -> 0 | I34: 34 | K34: -3.470941885 | L34: =[1]!XLSTAT_PDFNormal(K34,0,1) -> 0.0009657000138 | M34: 34 | O34: 10 | P34: 2
A35: 35 | B35: 51 | C35: 2.098686433 | D35: =[1]!XLSTAT_PDFNormal(B35,0,1) -> 0 | E35: 35 | F35: 51 | G35: -3.861277552 | H35: =[1]!XLSTAT_PDFNormal(F35,0,1) -> 0 | I35: 35 | K35: -3.454909821 | L35: =[1]!XLSTAT_PDFNormal(K35,0,1) -> 0.001020829785 | M35: 35 | O35: 11 | P35: 2
A36: 36 | B36: 2.098686433 | C36: 2.098686433 | D36: =[1]!XLSTAT_PDFNormal(B36,0,1) -> 0.04410505381 | E36: 36 | F36: -3.861277552 | G36: -3.861277552 | H36: =[1]!XLSTAT_PDFNormal(F36,0,1) -> 0.0002308665546 | I36: 36 | K36: -3.438877757 | L36: =[1]!XLSTAT_PDFNormal(K36,0,1) -> 0.001078829475 | M36: 36 | O36: 12 | P36: 2
A37: 37 | B37: 2.106846577 | C37: 2.106846577 | D37: =[1]!XLSTAT_PDFNormal(B37,0,1) -> 0.04335471648 | E37: 37 | F37: -3.853117408 | G37: -3.853117408 | H37: =[1]!XLSTAT_PDFNormal(F37,0,1) -> 0.000238248714 | I37: 37 | K37: -3.422845692 | L37: =[1]!XLSTAT_PDFNormal(K37,0,1) -> 0.001139831482 | M37: 37 | O37: 13 | P37: 2
A38: 38 | B38: 51 | C38: 2.106846577 | D38: =[1]!XLSTAT_PDFNormal(B38,0,1) -> 0 | E38: 38 | F38: 51 | G38: -3.853117408 | H38: =[1]!XLSTAT_PDFNormal(F38,0,1) -> 0 | I38: 38 | K38: -3.406813628 | L38: =[1]!XLSTAT_PDFNormal(K38,0,1) -> 0.001203973332 | M38: 38 | O38: 14 | P38: 2
A39: 39 | B39: 51 | C39: 2.115006721 | D39: =[1]!XLSTAT_PDFNormal(B39,0,1) -> 0 | E39: 39 | F39: 51 | G39: -3.844957264 | H39: =[1]!XLSTAT_PDFNormal(F39,0,1) -> 0 | I39: 39 | K39: -3.390781564 | L39: =[1]!XLSTAT_PDFNormal(K39,0,1) -> 0.001271397816 | M39: 39 | O39: 15 | P39: 2
A40: 40 | B40: 2.115006721 | C40: 2.115006721 | D40: =[1]!XLSTAT_PDFNormal(B40,0,1) -> 0.04261430657 | E40: 40 | F40: -3.844957264 | G40: -3.844957264 | H40: =[1]!XLSTAT_PDFNormal(F40,0,1) -> 0.0002458505531 | I40: 40 | K40: -3.3747495 | L40: =[1]!XLSTAT_PDFNormal(K40,0,1) -> 0.001342253143 | M40: 40 | O40: 16 | P40: 2
A41: 41 | B41: 2.123166864 | C41: 2.123166864 | D41: =[1]!XLSTAT_PDFNormal(B41,0,1) -> 0.0418837523 | E41: 41 | F41: -3.83679712 | G41: -3.83679712 | H41: =[1]!XLSTAT_PDFNormal(F41,0,1) -> 0.0002536780529 | I41: 41 | K41: -3.358717436 | L41: =[1]!XLSTAT_PDFNormal(K41,0,1) -> 0.001416693079 | M41: 41 | O41: 17 | P41: 2
A42: 42 | B42: 51 | C42: 2.123166864 | D42: =[1]!XLSTAT_PDFNormal(B42,0,1) -> 0 | E42: 42 | F42: 51 | G42: -3.83679712 | H42: =[1]!XLSTAT_PDFNormal(F42,0,1) -> 0 | I42: 42 | K42: -3.342685372 | L42: =[1]!XLSTAT_PDFNormal(K42,0,1) -> 0.001494877103 | M42: 42 | O42: 18 | P42: 2
A43: 43 | B43: 51 | C43: 2.131327009 | D43: =[1]!XLSTAT_PDFNormal(B43,0,1) -> 0 | E43: 43 | F43: 51 | G43: -3.828636976 | H43: =[1]!XLSTAT_PDFNormal(F43,0,1) -> 0 | I43: 43 | K43: -3.326653308 | L43: =[1]!XLSTAT_PDFNormal(K43,0,1) -> 0.001576970546 | M43: 43 | O43: 19 | P43: 2
A44: 44 | B44: 2.131327009 | C44: 2.131327009 | D44: =[1]!XLSTAT_PDFNormal(B44,0,1) -> 0.04116298117 | E44: 44 | F44: -3.828636976 | G44: -3.828636976 | H44: =[1]!XLSTAT_PDFNormal(F44,0,1) -> 0.0002617373389 | I44: 44 | K44: -3.310621244 | L44: =[1]!XLSTAT_PDFNormal(K44,0,1) -> 0.001663144747 | M44: 44 | O44: 20 | P44: 2
A45: 45 | B45: 2.139487153 | C45: 2.139487153 | D45: =[1]!XLSTAT_PDFNormal(B45,0,1) -> 0.04045191998 | E45: 45 | F45: -3.820476832 | G45: -3.820476832 | H45: =[1]!XLSTAT_PDFNormal(F45,0,1) -> 0.0002700346848 | I45: 45 | K45: -3.29458918 | L45: =[1]!XLSTAT_PDFNormal(K45,0,1) -> 0.001753577198 | M45: 45 | O45: 21 | P45: 2
A46: 46 | B46: 51 | C46: 2.139487153 | D46: =[1]!XLSTAT_PDFNormal(B46,0,1) -> 0 | E46: 46 | F46: 51 | G46: -3.820476832 | H46: =[1]!XLSTAT_PDFNormal(F46,0,1) -> 0 | I46: 46 | K46: -3.278557115 | L46: =[1]!XLSTAT_PDFNormal(K46,0,1) -> 0.001848451693 | M46: 46 | O46: 22 | P46: 2
A47: 47 | B47: 51 | C47: 2.147647297 | D47: =[1]!XLSTAT_PDFNormal(B47,0,1) -> 0 | E47: 47 | F47: 51 | G47: -3.812316688 | H47: =[1]!XLSTAT_PDFNormal(F47,0,1) -> 0 | I47: 47 | K47: -3.262525051 | L47: =[1]!XLSTAT_PDFNormal(K47,0,1) -> 0.001947958479 | M47: 47 | O47: 23 | P47: 2
A48: 48 | B48: 2.147647297 | C48: 2.147647297 | D48: =[1]!XLSTAT_PDFNormal(B48,0,1) -> 0.03975049487 | E48: 48 | F48: -3.812316688 | G48: -3.812316688 | H48: =[1]!XLSTAT_PDFNormal(F48,0,1) -> 0.0002785765146 | I48: 48 | K48: -3.246492987 | L48: =[1]!XLSTAT_PDFNormal(K48,0,1) -> 0.002052294401 | M48: 48 | O48: 24 | P48: 2
A49: 49 | B49: 2.155807441 | C49: 2.155807441 | D49: =[1]!XLSTAT_PDFNormal(B49,0,1) -> 0.03905863136 | E49: 49 | F49: -3.804156544 | G49: -3.804156544 | H49: =[1]!XLSTAT_PDFNormal(F49,0,1) -> 0.0002873694066 | I49: 49 | K49: -3.230460923 | L49: =[1]!XLSTAT_PDFNormal(K49,0,1) -> 0.002161663053 | M49: 49 | O49: 1 | P49: 3
A50: 50 | B50: 51 | C50: 2.155807441 | D50: =[1]!XLSTAT_PDFNormal(B50,0,1) -> 0 | E50: 50 | F50: 51 | G50: -3.804156544 | H50: =[1]!XLSTAT_PDFNormal(F50,0,1) -> 0 | I50: 50 | K50: -3.214428859 | L50: =[1]!XLSTAT_PDFNormal(K50,0,1) -> 0.002276274922 | M50: 50 | O50: 2 | P50: 3
A51: 51 | B51: 51 | C51: 2.163967584 | D51: =[1]!XLSTAT_PDFNormal(B51,0,1) -> 0 | E51: 51 | F51: 51 | G51: -3.7959964 | H51: =[1]!XLSTAT_PDFNormal(F51,0,1) -> 0 | I51: 51 | K51: -3.198396795 | L51: =[1]!XLSTAT_PDFNormal(K51,0,1) -> 0.002396347532 | M51: 51 | O51: 3 | P51: 3
A52: 52 | B52: 2.163967584 | C52: 2.163967584 | D52: =[1]!XLSTAT_PDFNormal(B52,0,1) -> 0.03837625436 | E52: 52 | F52: -3.7959964 | G52: -3.7959964 | H52: =[1]!XLSTAT_PDFNormal(F52,0,1) -> 0.0002964200957 | I52: 52 | K52: -3.182364731 | L52: =[1]!XLSTAT_PDFNormal(K52,0,1) -> 0.002522105593 | M52: 52 | O52: 4 | P52: 3
A53: 53 | B53: 2.172127729 | C53: 2.172127729 | D53: =[1]!XLSTAT_PDFNormal(B53,0,1) -> 0.03770328822 | E53: 53 | F53: -3.787836256 | G53: -3.787836256 | H53: =[1]!XLSTAT_PDFNormal(F53,0,1) -> 0.0003057354769 | I53: 53 | K53: -3.166332667 | L53: =[1]!XLSTAT_PDFNormal(K53,0,1) -> 0.002653781137 | M53: 53 | O53: 5 | P53: 3
A54: 54 | B54: 51 | C54: 2.172127729 | D54: =[1]!XLSTAT_PDFNormal(B54,0,1) -> 0 | E54: 54 | F54: 51 | G54: -3.787836256 | H54: =[1]!XLSTAT_PDFNormal(F54,0,1) -> 0 | I54: 54 | K54: -3.150300603 | L54: =[1]!XLSTAT_PDFNormal(K54,0,1) -> 0.002791613662 | M54: 54 | O54: 6 | P54: 3
A55: 55 | B55: 51 | C55: 2.180287873 | D55: =[1]!XLSTAT_PDFNormal(B55,0,1) -> 0 | E55: 55 | F55: 51 | G55: -3.779676112 | H55: =[1]!XLSTAT_PDFNormal(F55,0,1) -> 0 | I55: 55 | K55: -3.134268539 | L55: =[1]!XLSTAT_PDFNormal(K55,0,1) -> 0.002935850265 | M55: 55 | O55: 7 | P55: 3
A56: 56 | B56: 2.180287873 | C56: 2.180287873 | D56: =[1]!XLSTAT_PDFNormal(B56,0,1) -> 0.03703965673 | E56: 56 | F56: -3.779676112 | G56: -3.779676112 | H56: =[1]!XLSTAT_PDFNormal(F56,0,1) -> 0.0003153226086 | I56: 56 | K56: -3.118236474 | L56: =[1]!XLSTAT_PDFNormal(K56,0,1) -> 0.00308674578 | M56: 56 | O56: 8 | P56: 3
A57: 57 | B57: 2.188448017 | C57: 2.188448017 | D57: =[1]!XLSTAT_PDFNormal(B57,0,1) -> 0.0363852832 | E57: 57 | F57: -3.771515968 | G57: -3.771515968 | H57: =[1]!XLSTAT_PDFNormal(F57,0,1) -> 0.0003251887153 | I57: 57 | K57: -3.10220441 | L57: =[1]!XLSTAT_PDFNormal(K57,0,1) -> 0.003244562907 | M57: 57 | O57: 9 | P57: 3
A58: 58 | B58: 51 | C58: 2.188448017 | D58: =[1]!XLSTAT_PDFNormal(B58,0,1) -> 0 | E58: 58 | F58: 51 | G58: -3.771515968 | H58: =[1]!XLSTAT_PDFNormal(F58,0,1) -> 0 | I58: 58 | K58: -3.086172346 | L58: =[1]!XLSTAT_PDFNormal(K58,0,1) -> 0.003409572341 | M58: 58 | O58: 10 | P58: 3
A59: 59 | B59: 51 | C59: 2.196608161 | D59: =[1]!XLSTAT_PDFNormal(B59,0,1) -> 0 | E59: 59 | F59: 51 | G59: -3.763355824 | H59: =[1]!XLSTAT_PDFNormal(F59,0,1) -> 0 | I59: 59 | K59: -3.070140282 | L59: =[1]!XLSTAT_PDFNormal(K59,0,1) -> 0.003582052892 | M59: 59 | O59: 11 | P59: 3
A60: 60 | B60: 2.196608161 | C60: 2.196608161 | D60: =[1]!XLSTAT_PDFNormal(B60,0,1) -> 0.03574009045 | E60: 60 | F60: -3.763355824 | G60: -3.763355824 | H60: =[1]!XLSTAT_PDFNormal(F60,0,1) -> 0.0003353411915 | I60: 60 | K60: -3.054108218 | L60: =[1]!XLSTAT_PDFNormal(K60,0,1) -> 0.003762291608 | M60: 60 | O60: 12 | P60: 3
A61: 61 | B61: 2.204768304 | C61: 2.204768304 | D61: =[1]!XLSTAT_PDFNormal(B61,0,1) -> 0.03510400082 | E61: 61 | F61: -3.75519568 | G61: -3.75519568 | H61: =[1]!XLSTAT_PDFNormal(F61,0,1) -> 0.0003457876047 | I61: 61 | K61: -3.038076154 | L61: =[1]!XLSTAT_PDFNormal(K61,0,1) -> 0.003950583885 | M61: 61 | O61: 13 | P61: 3
A62: 62 | B62: 51 | C62: 2.204768304 | D62: =[1]!XLSTAT_PDFNormal(B62,0,1) -> 0 | E62: 62 | F62: 51 | G62: -3.75519568 | H62: =[1]!XLSTAT_PDFNormal(F62,0,1) -> 0 | I62: 62 | K62: -3.02204409 | L62: =[1]!XLSTAT_PDFNormal(K62,0,1) -> 0.004147233582 | M62: 62 | O62: 14 | P62: 3
A63: 63 | B63: 51 | C63: 2.212928449 | D63: =[1]!XLSTAT_PDFNormal(B63,0,1) -> 0 | E63: 63 | F63: 51 | G63: -3.747035536 | H63: =[1]!XLSTAT_PDFNormal(F63,0,1) -> 0 | I63: 63 | K63: -3.006012026 | L63: =[1]!XLSTAT_PDFNormal(K63,0,1) -> 0.004352553116 | M63: 63 | O63: 15 | P63: 3
A64: 64 | B64: 2.212928449 | C64: 2.212928449 | D64: =[1]!XLSTAT_PDFNormal(B64,0,1) -> 0.03447693627 | E64: 64 | F64: -3.747035536 | G64: -3.747035536 | H64: =[1]!XLSTAT_PDFNormal(F64,0,1) -> 0.0003565356984 | I64: 64 | K64: -2.989979962 | L64: =[1]!XLSTAT_PDFNormal(K64,0,1) -> 0.004566863567 | M64: 64 | O64: 16 | P64: 3
A65: 65 | B65: =IF(-1^(INT(A65/2)+2)>0,1.9599639845+2*INT(A65/2-1/2)*0.004080072,51) -> 2.221088593 | C65: =1.9599639845+2*INT(A65/2-1/2)*0.004080072 -> 2.221088593 | D65: =[1]!XLSTAT_PDFNormal(B65,0,1) -> 0.03385881835 | E65: 65 | F65: =IF(-1^(INT(E65/2)+2)>0,-4+2*INT(E65/2-1/2)*0.004080072,51) -> -3.738875392 | G65: =-4+2*INT(E65/2-1/2)*0.004080072 -> -3.738875392 | H65: =[1]!XLSTAT_PDFNormal(F65,0,1) -> 0.0003675933964 | I65: 65 | K65: =-4+(I65-1)*0.0160320641 -> -2.973947898 | L65: =[1]!XLSTAT_PDFNormal(K65,0,1) -> 0.004790494763 | M65: 65 | O65: =M65-24*INT((-1/2+M65)/24) -> 17 | P65: =1+INT((M65-1/2)/24) -> 3
A66: 66 | B66: 51 | C66: 2.221088593 | D66: =[1]!XLSTAT_PDFNormal(B66,0,1) -> 0 | E66: 66 | F66: 51 | G66: -3.738875392 | H66: =[1]!XLSTAT_PDFNormal(F66,0,1) -> 0 | I66: 66 | K66: -2.957915833 | L66: =[1]!XLSTAT_PDFNormal(K66,0,1) -> 0.005023785367 | M66: 66 | O66: 18 | P66: 3
A67: 67 | B67: 51 | C67: 2.229248737 | D67: =[1]!XLSTAT_PDFNormal(B67,0,1) -> 0 | E67: 67 | F67: 51 | G67: -3.730715248 | H67: =[1]!XLSTAT_PDFNormal(F67,0,1) -> 0 | I67: 67 | K67: -2.941883769 | L67: =[1]!XLSTAT_PDFNormal(K67,0,1) -> 0.00526708295 | M67: 67 | O67: 19 | P67: 3
A68: 68 | B68: 2.229248737 | C68: 2.229248737 | D68: =[1]!XLSTAT_PDFNormal(B68,0,1) -> 0.03324956822 | E68: 68 | F68: -3.730715248 | G68: -3.730715248 | H68: =[1]!XLSTAT_PDFNormal(F68,0,1) -> 0.0003789688054 | I68: 68 | K68: -2.925851705 | L68: =[1]!XLSTAT_PDFNormal(K68,0,1) -> 0.005520744062 | M68: 68 | O68: 20 | P68: 3
A69: 69 | B69: 2.237408881 | C69: 2.237408881 | D69: =[1]!XLSTAT_PDFNormal(B69,0,1) -> 0.03264910673 | E69: 69 | F69: -3.722555104 | G69: -3.722555104 | H69: =[1]!XLSTAT_PDFNormal(F69,0,1) -> 0.0003906702187 | I69: 69 | K69: -2.909819641 | L69: =[1]!XLSTAT_PDFNormal(K69,0,1) -> 0.005785134289 | M69: 69 | O69: 21 | P69: 3
A70: 70 | B70: 51 | C70: 2.237408881 | D70: =[1]!XLSTAT_PDFNormal(B70,0,1) -> 0 | E70: 70 | F70: 51 | G70: -3.722555104 | H70: =[1]!XLSTAT_PDFNormal(F70,0,1) -> 0 | I70: 70 | K70: -2.893787577 | L70: =[1]!XLSTAT_PDFNormal(K70,0,1) -> 0.006060628303 | M70: 70 | O70: 22 | P70: 3
A71: 71 | B71: 51 | C71: 2.245569024 | D71: =[1]!XLSTAT_PDFNormal(B71,0,1) -> 0 | E71: 71 | F71: 51 | G71: -3.71439496 | H71: =[1]!XLSTAT_PDFNormal(F71,0,1) -> 0 | I71: 71 | K71: -2.877755513 | L71: =[1]!XLSTAT_PDFNormal(K71,0,1) -> 0.006347609907 | M71: 71 | O71: 23 | P71: 3
A72: 72 | B72: 2.245569024 | C72: 2.245569024 | D72: =[1]!XLSTAT_PDFNormal(B72,0,1) -> 0.03205735441 | E72: 72 | F72: -3.71439496 | G72: -3.71439496 | H72: =[1]!XLSTAT_PDFNormal(F72,0,1) -> 0.0004027061201 | I72: 72 | K72: -2.861723449 | L72: =[1]!XLSTAT_PDFNormal(K72,0,1) -> 0.006646472061 | M72: 72 | O72: 24 | P72: 3
A73: 73 | B73: 2.253729169 | C73: 2.253729169 | D73: =[1]!XLSTAT_PDFNormal(B73,0,1) -> 0.0314742315 | E73: 73 | F73: -3.706234816 | G73: -3.706234816 | H73: =[1]!XLSTAT_PDFNormal(F73,0,1) -> 0.000415085187 | I73: 73 | K73: -2.845691385 | L73: =[1]!XLSTAT_PDFNormal(K73,0,1) -> 0.006957616905 | M73: 73 | O73: 1 | P73: 4
A74: 74 | B74: 51 | C74: 2.253729169 | D74: =[1]!XLSTAT_PDFNormal(B74,0,1) -> 0 | E74: 74 | F74: 51 | G74: -3.706234816 | H74: =[1]!XLSTAT_PDFNormal(F74,0,1) -> 0 | I74: 74 | K74: -2.829659321 | L74: =[1]!XLSTAT_PDFNormal(K74,0,1) -> 0.007281455767 | M74: 74 | O74: 2 | P74: 4
A75: 75 | B75: 51 | C75: 2.261889313 | D75: =[1]!XLSTAT_PDFNormal(B75,0,1) -> 0 | E75: 75 | F75: 51 | G75: -3.698074672 | H75: =[1]!XLSTAT_PDFNormal(F75,0,1) -> 0 | I75: 75 | K75: -2.813627257 | L75: =[1]!XLSTAT_PDFNormal(K75,0,1) -> 0.00761840916 | M75: 75 | O75: 3 | P75: 4
A76: 76 | B76: 2.261889313 | C76: 2.261889313 | D76: =[1]!XLSTAT_PDFNormal(B76,0,1) -> 0.03089965797 | E76: 76 | F76: -3.698074672 | G76: -3.698074672 | H76: =[1]!XLSTAT_PDFNormal(F76,0,1) -> 0.0004278162945 | I76: 76 | K76: -2.797595193 | L76: =[1]!XLSTAT_PDFNormal(K76,0,1) -> 0.00796890677 | M76: 76 | O76: 4 | P76: 4
A77: 77 | B77: 2.270049457 | C77: 2.270049457 | D77: =[1]!XLSTAT_PDFNormal(B77,0,1) -> 0.03033355357 | E77: 77 | F77: -3.689914528 | G77: -3.689914528 | H77: =[1]!XLSTAT_PDFNormal(F77,0,1) -> 0.0004409085185 | I77: 77 | K77: -2.781563128 | L77: =[1]!XLSTAT_PDFNormal(K77,0,1) -> 0.008333387425 | M77: 77 | O77: 5 | P77: 4
A78: 78 | B78: 51 | C78: 2.270049457 | D78: =[1]!XLSTAT_PDFNormal(B78,0,1) -> 0 | E78: 78 | F78: 51 | G78: -3.689914528 | H78: =[1]!XLSTAT_PDFNormal(F78,0,1) -> 0 | I78: 78 | K78: -2.765531064 | L78: =[1]!XLSTAT_PDFNormal(K78,0,1) -> 0.008712299056 | M78: 78 | O78: 6 | P78: 4
A79: 79 | B79: 51 | C79: 2.2782096 | D79: =[1]!XLSTAT_PDFNormal(B79,0,1) -> 0 | E79: 79 | F79: 51 | G79: -3.681754384 | H79: =[1]!XLSTAT_PDFNormal(F79,0,1) -> 0 | I79: 79 | K79: -2.749499 | L79: =[1]!XLSTAT_PDFNormal(K79,0,1) -> 0.009106098644 | M79: 79 | O79: 7 | P79: 4
A80: 80 | B80: 2.2782096 | C80: 2.2782096 | D80: =[1]!XLSTAT_PDFNormal(B80,0,1) -> 0.02977583784 | E80: 80 | F80: -3.681754384 | G80: -3.681754384 | H80: =[1]!XLSTAT_PDFNormal(F80,0,1) -> 0.0004543711398 | I80: 80 | K80: -2.733466936 | L80: =[1]!XLSTAT_PDFNormal(K80,0,1) -> 0.009515252148 | M80: 80 | O80: 8 | P80: 4
A81: 81 | B81: 2.286369744 | C81: 2.286369744 | D81: =[1]!XLSTAT_PDFNormal(B81,0,1) -> 0.02922643014 | E81: 81 | F81: -3.67359424 | G81: -3.67359424 | H81: =[1]!XLSTAT_PDFNormal(F81,0,1) -> 0.0004682136481 | I81: 81 | K81: -2.717434872 | L81: =[1]!XLSTAT_PDFNormal(K81,0,1) -> 0.009940234421 | M81: 81 | O81: 9 | P81: 4
A82: 82 | B82: 51 | C82: 2.286369744 | D82: =[1]!XLSTAT_PDFNormal(B82,0,1) -> 0 | E82: 82 | F82: 51 | G82: -3.67359424 | H82: =[1]!XLSTAT_PDFNormal(F82,0,1) -> 0 | I82: 82 | K82: -2.701402808 | L82: =[1]!XLSTAT_PDFNormal(K82,0,1) -> 0.01038152912 | M82: 82 | O82: 10 | P82: 4
A83: 83 | B83: 51 | C83: 2.294529889 | D83: =[1]!XLSTAT_PDFNormal(B83,0,1) -> 0 | E83: 83 | F83: 51 | G83: -3.665434096 | H83: =[1]!XLSTAT_PDFNormal(F83,0,1) -> 0 | I83: 83 | K83: -2.685370744 | L83: =[1]!XLSTAT_PDFNormal(K83,0,1) -> 0.01083962856 | M83: 83 | O83: 11 | P83: 4
A84: 84 | B84: 2.294529889 | C84: 2.294529889 | D84: =[1]!XLSTAT_PDFNormal(B84,0,1) -> 0.02868524965 | E84: 84 | F84: -3.665434096 | G84: -3.665434096 | H84: =[1]!XLSTAT_PDFNormal(F84,0,1) -> 0.0004824457449 | I84: 84 | K84: -2.66933868 | L84: =[1]!XLSTAT_PDFNormal(K84,0,1) -> 0.01131503364 | M84: 84 | O84: 12 | P84: 4
A85: 85 | B85: 2.302690033 | C85: 2.302690033 | D85: =[1]!XLSTAT_PDFNormal(B85,0,1) -> 0.02815221544 | E85: 85 | F85: -3.657273952 | G85: -3.657273952 | H85: =[1]!XLSTAT_PDFNormal(F85,0,1) -> 0.0004970773485 | I85: 85 | K85: -2.653306616 | L85: =[1]!XLSTAT_PDFNormal(K85,0,1) -> 0.01180825364 | M85: 85 | O85: 13 | P85: 4
A86: 86 | B86: 51 | C86: 2.302690033 | D86: =[1]!XLSTAT_PDFNormal(B86,0,1) -> 0 | E86: 86 | F86: 51 | G86: -3.657273952 | H86: =[1]!XLSTAT_PDFNormal(F86,0,1) -> 0 | I86: 86 | K86: -2.637274552 | L86: =[1]!XLSTAT_PDFNormal(K86,0,1) -> 0.01231980606 | M86: 86 | O86: 14 | P86: 4
A87: 87 | B87: 51 | C87: 2.310850177 | D87: =[1]!XLSTAT_PDFNormal(B87,0,1) -> 0 | E87: 87 | F87: 51 | G87: -3.649113808 | H87: =[1]!XLSTAT_PDFNormal(F87,0,1) -> 0 | I87: 87 | K87: -2.621242487 | L87: =[1]!XLSTAT_PDFNormal(K87,0,1) -> 0.01285021647 | M87: 87 | O87: 15 | P87: 4
A88: 88 | B88: 2.310850177 | C88: 2.310850177 | D88: =[1]!XLSTAT_PDFNormal(B88,0,1) -> 0.02762724647 | E88: 88 | F88: -3.649113808 | G88: -3.649113808 | H88: =[1]!XLSTAT_PDFNormal(F88,0,1) -> 0.000512118597 | I88: 88 | K88: -2.605210423 | L88: =[1]!XLSTAT_PDFNormal(K88,0,1) -> 0.01340001828 | M88: 88 | O88: 16 | P88: 4
A89: 89 | B89: 2.31901032 | C89: 2.31901032 | D89: =[1]!XLSTAT_PDFNormal(B89,0,1) -> 0.02711026158 | E89: 89 | F89: -3.640953664 | G89: -3.640953664 | H89: =[1]!XLSTAT_PDFNormal(F89,0,1) -> 0.0005275798525 | I89: 89 | K89: -2.589178359 | L89: =[1]!XLSTAT_PDFNormal(K89,0,1) -> 0.01396975252 | M89: 89 | O89: 17 | P89: 4
A90: 90 | B90: 51 | C90: 2.31901032 | D90: =[1]!XLSTAT_PDFNormal(B90,0,1) -> 0 | E90: 90 | F90: 51 | G90: -3.640953664 | H90: =[1]!XLSTAT_PDFNormal(F90,0,1) -> 0 | I90: 90 | K90: -2.573146295 | L90: =[1]!XLSTAT_PDFNormal(K90,0,1) -> 0.0145599676 | M90: 90 | O90: 18 | P90: 4
A91: 91 | B91: 51 | C91: 2.327170464 | D91: =[1]!XLSTAT_PDFNormal(B91,0,1) -> 0 | E91: 91 | F91: 51 | G91: -3.63279352 | H91: =[1]!XLSTAT_PDFNormal(F91,0,1) -> 0 | I91: 91 | K91: -2.557114231 | L91: =[1]!XLSTAT_PDFNormal(K91,0,1) -> 0.01517121907 | M91: 91 | O91: 19 | P91: 4
A92: 92 | B92: 2.327170464 | C92: 2.327170464 | D92: =[1]!XLSTAT_PDFNormal(B92,0,1) -> 0.02660117959 | E92: 92 | F92: -3.63279352 | G92: -3.63279352 | H92: =[1]!XLSTAT_PDFNormal(F92,0,1) -> 0.0005434717054 | I92: 92 | K92: -2.541082167 | L92: =[1]!XLSTAT_PDFNormal(K92,0,1) -> 0.01580406928 | M92: 92 | O92: 20 | P92: 4
A93: 93 | B93: 2.335330609 | C93: 2.335330609 | D93: =[1]!XLSTAT_PDFNormal(B93,0,1) -> 0.02609991925 | E93: 93 | F93: -3.624633376 | G93: -3.624633376 | H93: =[1]!XLSTAT_PDFNormal(F93,0,1) -> 0.000559804978 | I93: 93 | K93: -2.525050103 | L93: =[1]!XLSTAT_PDFNormal(K93,0,1) -> 0.01645908715 | M93: 93 | O93: 21 | P93: 4
A94: 94 | B94: 51 | C94: 2.335330609 | D94: =[1]!XLSTAT_PDFNormal(B94,0,1) -> 0 | E94: 94 | F94: 51 | G94: -3.624633376 | H94: =[1]!XLSTAT_PDFNormal(F94,0,1) -> 0 | I94: 94 | K94: -2.509018039 | L94: =[1]!XLSTAT_PDFNormal(K94,0,1) -> 0.01713684779 | M94: 94 | O94: 22 | P94: 4
A95: 95 | B95: 51 | C95: 2.343490753 | D95: =[1]!XLSTAT_PDFNormal(B95,0,1) -> 0 | E95: 95 | F95: 51 | G95: -3.616473232 | H95: =[1]!XLSTAT_PDFNormal(F95,0,1) -> 0 | I95: 95 | K95: -2.492985975 | L95: =[1]!XLSTAT_PDFNormal(K95,0,1) -> 0.01783793218 | M95: 95 | O95: 23 | P95: 4
A96: 96 | B96: 2.343490753 | C96: 2.343490753 | D96: =[1]!XLSTAT_PDFNormal(B96,0,1) -> 0.02560639928 | E96: 96 | F96: -3.616473232 | G96: -3.616473232 | H96: =[1]!XLSTAT_PDFNormal(F96,0,1) -> 0.0005765907287 | I96: 96 | K96: -2.47695391 | L96: =[1]!XLSTAT_PDFNormal(K96,0,1) -> 0.01856292679 | M96: 96 | O96: 24 | P96: 4
A97: 97 | B97: 2.351650896 | C97: 2.351650896 | D97: =[1]!XLSTAT_PDFNormal(B97,0,1) -> 0.02512053844 | E97: 97 | F97: -3.608313088 | G97: -3.608313088 | H97: =[1]!XLSTAT_PDFNormal(F97,0,1) -> 0.0005938402562 | I97: 97 | K97: -2.460921846 | L97: =[1]!XLSTAT_PDFNormal(K97,0,1) -> 0.01931242322 | M97: 97 | O97: 1 | P97: 5
A98: 98 | B98: 51 | C98: 2.351650896 | D98: =[1]!XLSTAT_PDFNormal(B98,0,1) -> 0 | E98: 98 | F98: 51 | G98: -3.608313088 | H98: =[1]!XLSTAT_PDFNormal(F98,0,1) -> 0 | I98: 98 | K98: -2.444889782 | L98: =[1]!XLSTAT_PDFNormal(K98,0,1) -> 0.02008701772 | M98: 98 | O98: 2 | P98: 5
A99: 99 | B99: 51 | C99: 2.35981104 | D99: =[1]!XLSTAT_PDFNormal(B99,0,1) -> 0 | E99: 99 | F99: 51 | G99: -3.600152944 | H99: =[1]!XLSTAT_PDFNormal(F99,0,1) -> 0 | I99: 99 | K99: -2.428857718 | L99: =[1]!XLSTAT_PDFNormal(K99,0,1) -> 0.02088731085 | M99: 99 | O99: 3 | P99: 5
A100: 100 | B100: 2.35981104 | C100: 2.35981104 | D100: =[1]!XLSTAT_PDFNormal(B100,0,1) -> 0.02464225549 | E100: 100 | F100: -3.600152944 | G100: -3.600152944 | H100: =[1]!XLSTAT_PDFNormal(F100,0,1) -> 0.0006115651035 | I100: 100 | K100: -2.412825654 | L100: =[1]!XLSTAT_PDFNormal(K100,0,1) -> 0.02171390692 | M100: 100 | O100: 4 | P100: 5
A101: 101 | B101: 2.367971184 | C101: 2.367971184 | D101: =[1]!XLSTAT_PDFNormal(B101,0,1) -> 0.02417146924 | E101: 101 | F101: -3.5919928 | G101: -3.5919928 | H101: =[1]!XLSTAT_PDFNormal(F101,0,1) -> 0.0006297770621 | I101: 101 | K101: -2.39679359 | L101: =[1]!XLSTAT_PDFNormal(K101,0,1) -> 0.02256741359 | M101: 101 | O101: 5 | P101: 5
A102: 102 | B102: 51 | C102: 2.367971184 | D102: =[1]!XLSTAT_PDFNormal(B102,0,1) -> 0 | E102: 102 | F102: 51 | G102: -3.5919928 | H102: =[1]!XLSTAT_PDFNormal(F102,0,1) -> 0 | I102: 102 | K102: -2.380761526 | L102: =[1]!XLSTAT_PDFNormal(K102,0,1) -> 0.02344844131 | M102: 102 | O102: 6 | P102: 5
A103: 103 | B103: 51 | C103: 2.376131329 | D103: =[1]!XLSTAT_PDFNormal(B103,0,1) -> 0 | E103: 103 | F103: 51 | G103: -3.583832656 | H103: =[1]!XLSTAT_PDFNormal(F103,0,1) -> 0 | I103: 103 | K103: -2.364729462 | L103: =[1]!XLSTAT_PDFNormal(K103,0,1) -> 0.02435760283 | M103: 103 | O103: 7 | P103: 5
A104: 104 | B104: 2.376131329 | C104: 2.376131329 | D104: =[1]!XLSTAT_PDFNormal(B104,0,1) -> 0.02370809855 | E104: 104 | F104: -3.583832656 | G104: -3.583832656 | H104: =[1]!XLSTAT_PDFNormal(F104,0,1) -> 0.0006484881766 | I104: 104 | K104: -2.348697398 | L104: =[1]!XLSTAT_PDFNormal(K104,0,1) -> 0.02529551261 | M104: 104 | O104: 8 | P104: 5
A105: 105 | B105: 2.384291473 | C105: 2.384291473 | D105: =[1]!XLSTAT_PDFNormal(B105,0,1) -> 0.02325206239 | E105: 105 | F105: -3.575672512 | G105: -3.575672512 | H105: =[1]!XLSTAT_PDFNormal(F105,0,1) -> 0.0006677107483 | I105: 105 | K105: -2.332665334 | L105: =[1]!XLSTAT_PDFNormal(K105,0,1) -> 0.02626278627 | M105: 105 | O105: 9 | P105: 5
A106: 106 | B106: 51 | C106: 2.384291473 | D106: =[1]!XLSTAT_PDFNormal(B106,0,1) -> 0 | E106: 106 | F106: 51 | G106: -3.575672512 | H106: =[1]!XLSTAT_PDFNormal(F106,0,1) -> 0 | I106: 106 | K106: -2.31663327 | L106: =[1]!XLSTAT_PDFNormal(K106,0,1) -> 0.02726003999 | M106: 106 | O106: 10 | P106: 5
A107: 107 | B107: 51 | C107: 2.392451616 | D107: =[1]!XLSTAT_PDFNormal(B107,0,1) -> 0 | E107: 107 | F107: 51 | G107: -3.567512368 | H107: =[1]!XLSTAT_PDFNormal(F107,0,1) -> 0 | I107: 107 | K107: -2.300601205 | L107: =[1]!XLSTAT_PDFNormal(K107,0,1) -> 0.02828788985 | M107: 107 | O107: 11 | P107: 5
A108: 108 | B108: 2.392451616 | C108: 2.392451616 | D108: =[1]!XLSTAT_PDFNormal(B108,0,1) -> 0.02280327981 | E108: 108 | F108: -3.567512368 | G108: -3.567512368 | H108: =[1]!XLSTAT_PDFNormal(F108,0,1) -> 0.0006874573401 | I108: 108 | K108: -2.284569141 | L108: =[1]!XLSTAT_PDFNormal(K108,0,1) -> 0.02934695125 | M108: 108 | O108: 12 | P108: 5
A109: 109 | B109: 2.40061176 | C109: 2.40061176 | D109: =[1]!XLSTAT_PDFNormal(B109,0,1) -> 0.02236167002 | E109: 109 | F109: -3.559352224 | G109: -3.559352224 | H109: =[1]!XLSTAT_PDFNormal(F109,0,1) -> 0.0007077407806 | I109: 109 | K109: -2.268537077 | L109: =[1]!XLSTAT_PDFNormal(K109,0,1) -> 0.03043783815 | M109: 109 | O109: 13 | P109: 5
A110: 110 | B110: 51 | C110: 2.40061176 | D110: =[1]!XLSTAT_PDFNormal(B110,0,1) -> 0 | E110: 110 | F110: 51 | G110: -3.559352224 | H110: =[1]!XLSTAT_PDFNormal(F110,0,1) -> 0 | I110: 110 | K110: -2.252505013 | L110: =[1]!XLSTAT_PDFNormal(K110,0,1) -> 0.03156116246 | M110: 110 | O110: 14 | P110: 5
A111: 111 | B111: 51 | C111: 2.408771905 | D111: =[1]!XLSTAT_PDFNormal(B111,0,1) -> 0 | E111: 111 | F111: 51 | G111: -3.55119208 | H111: =[1]!XLSTAT_PDFNormal(F111,0,1) -> 0 | I111: 111 | K111: -2.236472949 | L111: =[1]!XLSTAT_PDFNormal(K111,0,1) -> 0.03271753327 | M111: 111 | O111: 15 | P111: 5
A112: 112 | B112: 2.408771905 | C112: 2.408771905 | D112: =[1]!XLSTAT_PDFNormal(B112,0,1) -> 0.02192715234 | E112: 112 | F112: -3.55119208 | G112: -3.55119208 | H112: =[1]!XLSTAT_PDFNormal(F112,0,1) -> 0.0007285741684 | I112: 112 | K112: -2.220440885 | L112: =[1]!XLSTAT_PDFNormal(K112,0,1) -> 0.03390755613 | M112: 112 | O112: 16 | P112: 5
A113: 113 | B113: 2.416932049 | C113: 2.416932049 | D113: =[1]!XLSTAT_PDFNormal(B113,0,1) -> 0.02149964627 | E113: 113 | F113: -3.543031936 | G113: -3.543031936 | H113: =[1]!XLSTAT_PDFNormal(F113,0,1) -> 0.0007499708769 | I113: 113 | K113: -2.204408821 | L113: =[1]!XLSTAT_PDFNormal(K113,0,1) -> 0.03513183225 | M113: 113 | O113: 17 | P113: 5
A114: 114 | B114: 51 | C114: 2.416932049 | D114: =[1]!XLSTAT_PDFNormal(B114,0,1) -> 0 | E114: 114 | F114: 51 | G114: -3.543031936 | H114: =[1]!XLSTAT_PDFNormal(F114,0,1) -> 0 | I114: 114 | K114: -2.188376757 | L114: =[1]!XLSTAT_PDFNormal(K114,0,1) -> 0.03639095778 | M114: 114 | O114: 18 | P114: 5
A115: 115 | B115: 51 | C115: 2.425092193 | D115: =[1]!XLSTAT_PDFNormal(B115,0,1) -> 0 | E115: 115 | F115: 51 | G115: -3.534871792 | H115: =[1]!XLSTAT_PDFNormal(F115,0,1) -> 0 | I115: 115 | K115: -2.172344693 | L115: =[1]!XLSTAT_PDFNormal(K115,0,1) -> 0.03768552295 | M115: 115 | O115: 19 | P115: 5
A116: 116 | B116: 2.425092193 | C116: 2.425092193 | D116: =[1]!XLSTAT_PDFNormal(B116,0,1) -> 0.02107907147 | E116: 116 | F116: -3.534871792 | G116: -3.534871792 | H116: =[1]!XLSTAT_PDFNormal(F116,0,1) -> 0.0007719445583 | I116: 116 | K116: -2.156312629 | L116: =[1]!XLSTAT_PDFNormal(K116,0,1) -> 0.03901611125 | M116: 116 | O116: 20 | P116: 5
A117: 117 | B117: 2.433252336 | C117: 2.433252336 | D117: =[1]!XLSTAT_PDFNormal(B117,0,1) -> 0.02066534782 | E117: 117 | F117: -3.526711648 | G117: -3.526711648 | H117: =[1]!XLSTAT_PDFNormal(F117,0,1) -> 0.0007945091485 | I117: 117 | K117: -2.140280564 | L117: =[1]!XLSTAT_PDFNormal(K117,0,1) -> 0.0403832986 | M117: 117 | O117: 21 | P117: 5
A118: 118 | B118: 51 | C118: 2.433252336 | D118: =[1]!XLSTAT_PDFNormal(B118,0,1) -> 0 | E118: 118 | F118: 51 | G118: -3.526711648 | H118: =[1]!XLSTAT_PDFNormal(F118,0,1) -> 0 | I118: 118 | K118: -2.1242485 | L118: =[1]!XLSTAT_PDFNormal(K118,0,1) -> 0.04178765246 | M118: 118 | O118: 22 | P118: 5
A119: 119 | B119: 51 | C119: 2.44141248 | D119: =[1]!XLSTAT_PDFNormal(B119,0,1) -> 0 | E119: 119 | F119: 51 | G119: -3.518551504 | H119: =[1]!XLSTAT_PDFNormal(F119,0,1) -> 0 | I119: 119 | K119: -2.108216436 | L119: =[1]!XLSTAT_PDFNormal(K119,0,1) -> 0.04322973094 | M119: 119 | O119: 23 | P119: 5
A120: 120 | B120: 2.44141248 | C120: 2.44141248 | D120: =[1]!XLSTAT_PDFNormal(B120,0,1) -> 0.02025839541 | E120: 120 | F120: -3.518551504 | G120: -3.518551504 | H120: =[1]!XLSTAT_PDFNormal(F120,0,1) -> 0.0008176788713 | I120: 120 | K120: -2.092184372 | L120: =[1]!XLSTAT_PDFNormal(K120,0,1) -> 0.04471008191 | M120: 120 | O120: 24 | P120: 5
A121: 121 | B121: 2.449572625 | C121: 2.449572625 | D121: =[1]!XLSTAT_PDFNormal(B121,0,1) -> 0.01985813455 | E121: 121 | F121: -3.51039136 | G121: -3.51039136 | H121: =[1]!XLSTAT_PDFNormal(F121,0,1) -> 0.0008414682432 | I121: 121 | K121: -2.076152308 | L121: =[1]!XLSTAT_PDFNormal(K121,0,1) -> 0.04622924205 | M121: 121 | O121: 1 | P121: 6
A122: 122 | B122: 51 | C122: 2.449572625 | D122: =[1]!XLSTAT_PDFNormal(B122,0,1) -> 0 | E122: 122 | F122: 51 | G122: -3.51039136 | H122: =[1]!XLSTAT_PDFNormal(F122,0,1) -> 0 | I122: 122 | K122: -2.060120244 | L122: =[1]!XLSTAT_PDFNormal(K122,0,1) -> 0.04778773593 | M122: 122 | O122: 2 | P122: 6
A123: 123 | B123: 51 | C123: 2.457732769 | D123: =[1]!XLSTAT_PDFNormal(B123,0,1) -> 0 | E123: 123 | F123: 51 | G123: -3.502231216 | H123: =[1]!XLSTAT_PDFNormal(F123,0,1) -> 0 | I123: 123 | K123: -2.04408818 | L123: =[1]!XLSTAT_PDFNormal(K123,0,1) -> 0.04938607503 | M123: 123 | O123: 3 | P123: 6
A124: 124 | B124: 2.457732769 | C124: 2.457732769 | D124: =[1]!XLSTAT_PDFNormal(B124,0,1) -> 0.01946448582 | E124: 124 | F124: -3.502231216 | G124: -3.502231216 | H124: =[1]!XLSTAT_PDFNormal(F124,0,1) -> 0.000865892078 | I124: 124 | K124: -2.028056116 | L124: =[1]!XLSTAT_PDFNormal(K124,0,1) -> 0.05102475676 | M124: 124 | O124: 4 | P124: 6
A125: 125 | B125: 2.465892913 | C125: 2.465892913 | D125: =[1]!XLSTAT_PDFNormal(B125,0,1) -> 0.01907737004 | E125: 125 | F125: -3.494071072 | G125: -3.494071072 | H125: =[1]!XLSTAT_PDFNormal(F125,0,1) -> 0.0008909654915 | I125: 125 | K125: -2.012024052 | L125: =[1]!XLSTAT_PDFNormal(K125,0,1) -> 0.0527042635 | M125: 125 | O125: 5 | P125: 6
A126: 126 | B126: 51 | C126: 2.465892913 | D126: =[1]!XLSTAT_PDFNormal(B126,0,1) -> 0 | E126: 126 | F126: 51 | G126: -3.494071072 | H126: =[1]!XLSTAT_PDFNormal(F126,0,1) -> 0 | I126: 126 | K126: -1.995991988 | L126: =[1]!XLSTAT_PDFNormal(K126,0,1) -> 0.05442506159 | M126: 126 | O126: 6 | P126: 6
A127: 127 | B127: 51 | C127: 2.474053056 | D127: =[1]!XLSTAT_PDFNormal(B127,0,1) -> 0 | E127: 127 | F127: 51 | G127: -3.485910928 | H127: =[1]!XLSTAT_PDFNormal(F127,0,1) -> 0 | I127: 127 | K127: -1.979959923 | L127: =[1]!XLSTAT_PDFNormal(K127,0,1) -> 0.05618760026 | M127: 127 | O127: 7 | P127: 6
A128: 128 | B128: 2.474053056 | C128: 2.474053056 | D128: =[1]!XLSTAT_PDFNormal(B128,0,1) -> 0.01869670832 | E128: 128 | F128: -3.485910928 | G128: -3.485910928 | H128: =[1]!XLSTAT_PDFNormal(F128,0,1) -> 0.0009167039059 | I128: 128 | K128: -1.963927859 | L128: =[1]!XLSTAT_PDFNormal(K128,0,1) -> 0.05799231069 | M128: 128 | O128: 8 | P128: 6
A129: 129 | B129: =IF(-1^(INT(A129/2)+2)>0,1.9599639845+2*INT(A129/2-1/2)*0.004080072,51) -> 2.4822132 | C129: =1.9599639845+2*INT(A129/2-1/2)*0.004080072 -> 2.4822132 | D129: =[1]!XLSTAT_PDFNormal(B129,0,1) -> 0.01832242207 | E129: 129 | F129: =IF(-1^(INT(E129/2)+2)>0,-4+2*INT(E129/2-1/2)*0.004080072,51) -> -3.477750784 | G129: =-4+2*INT(E129/2-1/2)*0.004080072 -> -3.477750784 | H129: =[1]!XLSTAT_PDFNormal(F129,0,1) -> 0.0009431230547 | I129: 129 | K129: =-4+(I129-1)*0.0160320641 -> -1.947895795 | L129: =[1]!XLSTAT_PDFNormal(K129,0,1) -> 0.05983960492 | M129: 129 | O129: =M129-24*INT((-1/2+M129)/24) -> 9 | P129: =1+INT((M129-1/2)/24) -> 6
A130: 130 | B130: 51 | C130: 2.4822132 | D130: =[1]!XLSTAT_PDFNormal(B130,0,1) -> 0 | E130: 130 | F130: 51 | G130: -3.477750784 | H130: =[1]!XLSTAT_PDFNormal(F130,0,1) -> 0 | I130: 130 | K130: -1.931863731 | L130: =[1]!XLSTAT_PDFNormal(K130,0,1) -> 0.06172987479 | M130: 130 | O130: 10 | P130: 6
A131: 131 | B131: 51 | C131: 2.490373345 | D131: =[1]!XLSTAT_PDFNormal(B131,0,1) -> 0 | E131: 131 | F131: 51 | G131: -3.46959064 | H131: =[1]!XLSTAT_PDFNormal(F131,0,1) -> 0 | I131: 131 | K131: -1.915831667 | L131: =[1]!XLSTAT_PDFNormal(K131,0,1) -> 0.06366349094 | M131: 131 | O131: 11 | P131: 6
A132: 132 | B132: 2.490373345 | C132: 2.490373345 | D132: =[1]!XLSTAT_PDFNormal(B132,0,1) -> 0.017954433 | E132: 132 | F132: -3.46959064 | G132: -3.46959064 | H132: =[1]!XLSTAT_PDFNormal(F132,0,1) -> 0.0009702389877 | I132: 132 | K132: -1.899799603 | L132: =[1]!XLSTAT_PDFNormal(K132,0,1) -> 0.06564080173 | M132: 132 | O132: 12 | P132: 6
A133: 133 | B133: 2.498533489 | C133: 2.498533489 | D133: =[1]!XLSTAT_PDFNormal(B133,0,1) -> 0.01759266316 | E133: 133 | F133: -3.461430496 | G133: -3.461430496 | H133: =[1]!XLSTAT_PDFNormal(F133,0,1) -> 0.000998068075 | I133: 133 | K133: -1.883767539 | L133: =[1]!XLSTAT_PDFNormal(K133,0,1) -> 0.06766213216 | M133: 133 | O133: 13 | P133: 6
A134: 134 | B134: 51 | C134: 2.498533489 | D134: =[1]!XLSTAT_PDFNormal(B134,0,1) -> 0 | E134: 134 | F134: 51 | G134: -3.461430496 | H134: =[1]!XLSTAT_PDFNormal(F134,0,1) -> 0 | I134: 134 | K134: -1.867735475 | L134: =[1]!XLSTAT_PDFNormal(K134,0,1) -> 0.06972778282 | M134: 134 | O134: 14 | P134: 6
A135: 135 | B135: 51 | C135: 2.506693633 | D135: =[1]!XLSTAT_PDFNormal(B135,0,1) -> 0 | E135: 135 | F135: 51 | G135: -3.453270352 | H135: =[1]!XLSTAT_PDFNormal(F135,0,1) -> 0 | I135: 135 | K135: -1.851703411 | L135: =[1]!XLSTAT_PDFNormal(K135,0,1) -> 0.07183802884 | M135: 135 | O135: 15 | P135: 6
A136: 136 | B136: 2.506693633 | C136: 2.506693633 | D136: =[1]!XLSTAT_PDFNormal(B136,0,1) -> 0.01723703492 | E136: 136 | F136: -3.453270352 | G136: -3.453270352 | H136: =[1]!XLSTAT_PDFNormal(F136,0,1) -> 0.001026627013 | I136: 136 | K136: -1.835671346 | L136: =[1]!XLSTAT_PDFNormal(K136,0,1) -> 0.07399311879 | M136: 136 | O136: 16 | P136: 6
A137: 137 | B137: 2.514853776 | C137: 2.514853776 | D137: =[1]!XLSTAT_PDFNormal(B137,0,1) -> 0.01688747102 | E137: 137 | F137: -3.445110208 | G137: -3.445110208 | H137: =[1]!XLSTAT_PDFNormal(F137,0,1) -> 0.001055932828 | I137: 137 | K137: -1.819639282 | L137: =[1]!XLSTAT_PDFNormal(K137,0,1) -> 0.07619327367 | M137: 137 | O137: 17 | P137: 6
A138: 138 | B138: 51 | C138: 2.514853776 | D138: =[1]!XLSTAT_PDFNormal(B138,0,1) -> 0 | E138: 138 | F138: 51 | G138: -3.445110208 | H138: =[1]!XLSTAT_PDFNormal(F138,0,1) -> 0 | I138: 138 | K138: -1.803607218 | L138: =[1]!XLSTAT_PDFNormal(K138,0,1) -> 0.07843868579 | M138: 138 | O138: 18 | P138: 6
A139: 139 | B139: 51 | C139: 2.52301392 | D139: =[1]!XLSTAT_PDFNormal(B139,0,1) -> 0 | E139: 139 | F139: 51 | G139: -3.436950064 | H139: =[1]!XLSTAT_PDFNormal(F139,0,1) -> 0 | I139: 139 | K139: -1.787575154 | L139: =[1]!XLSTAT_PDFNormal(K139,0,1) -> 0.08072951775 | M139: 139 | O139: 19 | P139: 6
A140: 140 | B140: 2.52301392 | C140: 2.52301392 | D140: =[1]!XLSTAT_PDFNormal(B140,0,1) -> 0.01654389455 | E140: 140 | F140: -3.436950064 | G140: -3.436950064 | H140: =[1]!XLSTAT_PDFNormal(F140,0,1) -> 0.001086002881 | I140: 140 | K140: -1.77154309 | L140: =[1]!XLSTAT_PDFNormal(K140,0,1) -> 0.08306590142 | M140: 140 | O140: 20 | P140: 6
A141: 141 | B141: 2.531174065 | C141: 2.531174065 | D141: =[1]!XLSTAT_PDFNormal(B141,0,1) -> 0.01620622898 | E141: 141 | F141: -3.42878992 | G141: -3.42878992 | H141: =[1]!XLSTAT_PDFNormal(F141,0,1) -> 0.001116854875 | I141: 141 | K141: -1.755511026 | L141: =[1]!XLSTAT_PDFNormal(K141,0,1) -> 0.08544793684 | M141: 141 | O141: 21 | P141: 6
A142: 142 | B142: 51 | C142: 2.531174065 | D142: =[1]!XLSTAT_PDFNormal(B142,0,1) -> 0 | E142: 142 | F142: 51 | G142: -3.42878992 | H142: =[1]!XLSTAT_PDFNormal(F142,0,1) -> 0 | I142: 142 | K142: -1.739478962 | L142: =[1]!XLSTAT_PDFNormal(K142,0,1) -> 0.08787569125 | M142: 142 | O142: 22 | P142: 6
A143: 143 | B143: 51 | C143: 2.539334209 | D143: =[1]!XLSTAT_PDFNormal(B143,0,1) -> 0 | E143: 143 | F143: 51 | G143: -3.420629776 | H143: =[1]!XLSTAT_PDFNormal(F143,0,1) -> 0 | I143: 143 | K143: -1.723446898 | L143: =[1]!XLSTAT_PDFNormal(K143,0,1) -> 0.09034919805 | M143: 143 | O143: 23 | P143: 6
A144: 144 | B144: 2.539334209 | C144: 2.539334209 | D144: =[1]!XLSTAT_PDFNormal(B144,0,1) -> 0.01587439819 | E144: 144 | F144: -3.420629776 | G144: -3.420629776 | H144: =[1]!XLSTAT_PDFNormal(F144,0,1) -> 0.001148506857 | I144: 144 | K144: -1.707414834 | L144: =[1]!XLSTAT_PDFNormal(K144,0,1) -> 0.09286845585 | M144: 144 | O144: 24 | P144: 6
A145: 145 | B145: 2.547494353 | C145: 2.547494353 | D145: =[1]!XLSTAT_PDFNormal(B145,0,1) -> 0.01554832643 | E145: 145 | F145: -3.412469632 | G145: -3.412469632 | H145: =[1]!XLSTAT_PDFNormal(F145,0,1) -> 0.001180977223 | I145: 145 | K145: -1.69138277 | L145: =[1]!XLSTAT_PDFNormal(K145,0,1) -> 0.0954334274 | M145: 145 | O145: 1 | P145: 7
A146: 146 | B146: 51 | C146: 2.547494353 | D146: =[1]!XLSTAT_PDFNormal(B146,0,1) -> 0 | E146: 146 | F146: 51 | G146: -3.412469632 | H146: =[1]!XLSTAT_PDFNormal(F146,0,1) -> 0 | I146: 146 | K146: -1.675350706 | L146: =[1]!XLSTAT_PDFNormal(K146,0,1) -> 0.09804403873 | M146: 146 | O146: 2 | P146: 7
A147: 147 | B147: 51 | C147: 2.555654496 | D147: =[1]!XLSTAT_PDFNormal(B147,0,1) -> 0 | E147: 147 | F147: 51 | G147: -3.404309488 | H147: =[1]!XLSTAT_PDFNormal(F147,0,1) -> 0 | I147: 147 | K147: -1.659318641 | L147: =[1]!XLSTAT_PDFNormal(K147,0,1) -> 0.1007001782 | M147: 147 | O147: 3 | P147: 7
A148: 148 | B148: 2.555654496 | C148: 2.555654496 | D148: =[1]!XLSTAT_PDFNormal(B148,0,1) -> 0.0152279384 | E148: 148 | F148: -3.404309488 | G148: -3.404309488 | H148: =[1]!XLSTAT_PDFNormal(F148,0,1) -> 0.001214284726 | I148: 148 | K148: -1.643286577 | L148: =[1]!XLSTAT_PDFNormal(K148,0,1) -> 0.1034016954 | M148: 148 | O148: 4 | P148: 7
A149: 149 | B149: 2.56381464 | C149: 2.56381464 | D149: =[1]!XLSTAT_PDFNormal(B149,0,1) -> 0.01491315919 | E149: 149 | F149: -3.396149344 | G149: -3.396149344 | H149: =[1]!XLSTAT_PDFNormal(F149,0,1) -> 0.001248448478 | I149: 149 | K149: -1.627254513 | L149: =[1]!XLSTAT_PDFNormal(K149,0,1) -> 0.1061484006 | M149: 149 | O149: 5 | P149: 7
A150: 150 | B150: 51 | C150: 2.56381464 | D150: =[1]!XLSTAT_PDFNormal(B150,0,1) -> 0 | E150: 150 | F150: 51 | G150: -3.396149344 | H150: =[1]!XLSTAT_PDFNormal(F150,0,1) -> 0 | I150: 150 | K150: -1.611222449 | L150: =[1]!XLSTAT_PDFNormal(K150,0,1) -> 0.1089400636 | M150: 150 | O150: 6 | P150: 7
A151: 151 | B151: 51 | C151: 2.571974785 | D151: =[1]!XLSTAT_PDFNormal(B151,0,1) -> 0 | E151: 151 | F151: 51 | G151: -3.3879892 | H151: =[1]!XLSTAT_PDFNormal(F151,0,1) -> 0 | I151: 151 | K151: -1.595190385 | L151: =[1]!XLSTAT_PDFNormal(K151,0,1) -> 0.111776413 | M151: 151 | O151: 7 | P151: 7
A152: 152 | B152: 2.571974785 | C152: 2.571974785 | D152: =[1]!XLSTAT_PDFNormal(B152,0,1) -> 0.01460391436 | E152: 152 | F152: -3.3879892 | G152: -3.3879892 | H152: =[1]!XLSTAT_PDFNormal(F152,0,1) -> 0.001283487954 | I152: 152 | K152: -1.579158321 | L152: =[1]!XLSTAT_PDFNormal(K152,0,1) -> 0.1146571355 | M152: 152 | O152: 8 | P152: 7
A153: 153 | B153: 2.580134929 | C153: 2.580134929 | D153: =[1]!XLSTAT_PDFNormal(B153,0,1) -> 0.0143001299 | E153: 153 | F153: -3.379829056 | G153: -3.379829056 | H153: =[1]!XLSTAT_PDFNormal(F153,0,1) -> 0.001319423003 | I153: 153 | K153: -1.563126257 | L153: =[1]!XLSTAT_PDFNormal(K153,0,1) -> 0.1175818749 | M153: 153 | O153: 9 | P153: 7
A154: 154 | B154: 51 | C154: 2.580134929 | D154: =[1]!XLSTAT_PDFNormal(B154,0,1) -> 0 | E154: 154 | F154: 51 | G154: -3.379829056 | H154: =[1]!XLSTAT_PDFNormal(F154,0,1) -> 0 | I154: 154 | K154: -1.547094193 | L154: =[1]!XLSTAT_PDFNormal(K154,0,1) -> 0.1205502315 | M154: 154 | O154: 10 | P154: 7
A155: 155 | B155: 51 | C155: 2.588295073 | D155: =[1]!XLSTAT_PDFNormal(B155,0,1) -> 0 | E155: 155 | F155: 51 | G155: -3.371668912 | H155: =[1]!XLSTAT_PDFNormal(F155,0,1) -> 0 | I155: 155 | K155: -1.531062129 | L155: =[1]!XLSTAT_PDFNormal(K155,0,1) -> 0.1235617616 | M155: 155 | O155: 11 | P155: 7
A156: 156 | B156: 2.588295073 | C156: 2.588295073 | D156: =[1]!XLSTAT_PDFNormal(B156,0,1) -> 0.01400173226 | E156: 156 | F156: -3.371668912 | G156: -3.371668912 | H156: =[1]!XLSTAT_PDFNormal(F156,0,1) -> 0.001356273845 | I156: 156 | K156: -1.515030064 | L156: =[1]!XLSTAT_PDFNormal(K156,0,1) -> 0.1266159764 | M156: 156 | O156: 12 | P156: 7
A157: 157 | B157: 2.596455216 | C157: 2.596455216 | D157: =[1]!XLSTAT_PDFNormal(B157,0,1) -> 0.01370864835 | E157: 157 | F157: -3.363508768 | G157: -3.363508768 | H157: =[1]!XLSTAT_PDFNormal(F157,0,1) -> 0.001394061083 | I157: 157 | K157: -1.498998 | L157: =[1]!XLSTAT_PDFNormal(K157,0,1) -> 0.1297123418 | M157: 157 | O157: 13 | P157: 7
A158: 158 | B158: 51 | C158: 2.596455216 | D158: =[1]!XLSTAT_PDFNormal(B158,0,1) -> 0 | E158: 158 | F158: 51 | G158: -3.363508768 | H158: =[1]!XLSTAT_PDFNormal(F158,0,1) -> 0 | I158: 158 | K158: -1.482965936 | L158: =[1]!XLSTAT_PDFNormal(K158,0,1) -> 0.1328502776 | M158: 158 | O158: 14 | P158: 7
A159: 159 | B159: 51 | C159: 2.60461536 | D159: =[1]!XLSTAT_PDFNormal(B159,0,1) -> 0 | E159: 159 | F159: 51 | G159: -3.355348624 | H159: =[1]!XLSTAT_PDFNormal(F159,0,1) -> 0 | I159: 159 | K159: -1.466933872 | L159: =[1]!XLSTAT_PDFNormal(K159,0,1) -> 0.1360291571 | M159: 159 | O159: 15 | P159: 7
A160: 160 | B160: 2.60461536 | C160: 2.60461536 | D160: =[1]!XLSTAT_PDFNormal(B160,0,1) -> 0.01342080558 | E160: 160 | F160: -3.355348624 | G160: -3.355348624 | H160: =[1]!XLSTAT_PDFNormal(F160,0,1) -> 0.001432805702 | I160: 160 | K160: -1.450901808 | L160: =[1]!XLSTAT_PDFNormal(K160,0,1) -> 0.1392483065 | M160: 160 | O160: 16 | P160: 7
A161: 161 | B161: 2.612775505 | C161: 2.612775505 | D161: =[1]!XLSTAT_PDFNormal(B161,0,1) -> 0.01313813181 | E161: 161 | F161: -3.34718848 | G161: -3.34718848 | H161: =[1]!XLSTAT_PDFNormal(F161,0,1) -> 0.001472529081 | I161: 161 | K161: -1.434869744 | L161: =[1]!XLSTAT_PDFNormal(K161,0,1) -> 0.1425070048 | M161: 161 | O161: 17 | P161: 7
A162: 162 | B162: 51 | C162: 2.612775505 | D162: =[1]!XLSTAT_PDFNormal(B162,0,1) -> 0 | E162: 162 | F162: 51 | G162: -3.34718848 | H162: =[1]!XLSTAT_PDFNormal(F162,0,1) -> 0 | I162: 162 | K162: -1.41883768 | L162: =[1]!XLSTAT_PDFNormal(K162,0,1) -> 0.1458044827 | M162: 162 | O162: 18 | P162: 7
A163: 163 | B163: 51 | C163: 2.620935649 | D163: =[1]!XLSTAT_PDFNormal(B163,0,1) -> 0 | E163: 163 | F163: 51 | G163: -3.339028336 | H163: =[1]!XLSTAT_PDFNormal(F163,0,1) -> 0 | I163: 163 | K163: -1.402805616 | L163: =[1]!XLSTAT_PDFNormal(K163,0,1) -> 0.1491399233 | M163: 163 | O163: 19 | P163: 7
A164: 164 | B164: 2.620935649 | C164: 2.620935649 | D164: =[1]!XLSTAT_PDFNormal(B164,0,1) -> 0.01286055544 | E164: 164 | F164: -3.339028336 | G164: -3.339028336 | H164: =[1]!XLSTAT_PDFNormal(F164,0,1) -> 0.00151325299 | I164: 164 | K164: -1.386773552 | L164: =[1]!XLSTAT_PDFNormal(K164,0,1) -> 0.152512461 | M164: 164 | O164: 20 | P164: 7
A165: 165 | B165: 2.629095793 | C165: 2.629095793 | D165: =[1]!XLSTAT_PDFNormal(B165,0,1) -> 0.01258800533 | E165: 165 | F165: -3.330868192 | G165: -3.330868192 | H165: =[1]!XLSTAT_PDFNormal(F165,0,1) -> 0.001554999602 | I165: 165 | K165: -1.370741488 | L165: =[1]!XLSTAT_PDFNormal(K165,0,1) -> 0.1559211815 | M165: 165 | O165: 21 | P165: 7
A166: 166 | B166: 51 | C166: 2.629095793 | D166: =[1]!XLSTAT_PDFNormal(B166,0,1) -> 0 | E166: 166 | F166: 51 | G166: -3.330868192 | H166: =[1]!XLSTAT_PDFNormal(F166,0,1) -> 0 | I166: 166 | K166: -1.354709424 | L166: =[1]!XLSTAT_PDFNormal(K166,0,1) -> 0.1593651221 | M166: 166 | O166: 22 | P166: 7
A167: 167 | B167: 51 | C167: 2.637255936 | D167: =[1]!XLSTAT_PDFNormal(B167,0,1) -> 0 | E167: 167 | F167: 51 | G167: -3.322708048 | H167: =[1]!XLSTAT_PDFNormal(F167,0,1) -> 0 | I167: 167 | K167: -1.338677359 | L167: =[1]!XLSTAT_PDFNormal(K167,0,1) -> 0.1628432708 | M167: 167 | O167: 23 | P167: 7
A168: 168 | B168: 2.637255936 | C168: 2.637255936 | D168: =[1]!XLSTAT_PDFNormal(B168,0,1) -> 0.01232041088 | E168: 168 | F168: -3.322708048 | G168: -3.322708048 | H168: =[1]!XLSTAT_PDFNormal(F168,0,1) -> 0.001597791494 | I168: 168 | K168: -1.322645295 | L168: =[1]!XLSTAT_PDFNormal(K168,0,1) -> 0.1663545672 | M168: 168 | O168: 24 | P168: 7
A169: 169 | B169: 2.64541608 | C169: 2.64541608 | D169: =[1]!XLSTAT_PDFNormal(B169,0,1) -> 0.012057702 | E169: 169 | F169: -3.314547904 | G169: -3.314547904 | H169: =[1]!XLSTAT_PDFNormal(F169,0,1) -> 0.001641651655 | I169: 169 | K169: -1.306613231 | L169: =[1]!XLSTAT_PDFNormal(K169,0,1) -> 0.1698979016 | M169: 169 | O169: 1 | P169: 8
A170: 170 | B170: 51 | C170: 2.64541608 | D170: =[1]!XLSTAT_PDFNormal(B170,0,1) -> 0 | E170: 170 | F170: 51 | G170: -3.314547904 | H170: =[1]!XLSTAT_PDFNormal(F170,0,1) -> 0 | I170: 170 | K170: -1.290581167 | L170: =[1]!XLSTAT_PDFNormal(K170,0,1) -> 0.1734721159 | M170: 170 | O170: 2 | P170: 8
A171: 171 | B171: 51 | C171: 2.653576225 | D171: =[1]!XLSTAT_PDFNormal(B171,0,1) -> 0 | E171: 171 | F171: 51 | G171: -3.30638776 | H171: =[1]!XLSTAT_PDFNormal(F171,0,1) -> 0 | I171: 171 | K171: -1.274549103 | L171: =[1]!XLSTAT_PDFNormal(K171,0,1) -> 0.1770760033 | M171: 171 | O171: 3 | P171: 8
A172: 172 | B172: 2.653576225 | C172: 2.653576225 | D172: =[1]!XLSTAT_PDFNormal(B172,0,1) -> 0.01179980913 | E172: 172 | F172: -3.30638776 | G172: -3.30638776 | H172: =[1]!XLSTAT_PDFNormal(F172,0,1) -> 0.001686603488 | I172: 172 | K172: -1.258517039 | L172: =[1]!XLSTAT_PDFNormal(K172,0,1) -> 0.1807083087 | M172: 172 | O172: 4 | P172: 8
A173: 173 | B173: 2.661736369 | C173: 2.661736369 | D173: =[1]!XLSTAT_PDFNormal(B173,0,1) -> 0.01154666324 | E173: 173 | F173: -3.298227616 | G173: -3.298227616 | H173: =[1]!XLSTAT_PDFNormal(F173,0,1) -> 0.001732670816 | I173: 173 | K173: -1.242484975 | L173: =[1]!XLSTAT_PDFNormal(K173,0,1) -> 0.1843677288 | M173: 173 | O173: 5 | P173: 8
A174: 174 | B174: 51 | C174: 2.661736369 | D174: =[1]!XLSTAT_PDFNormal(B174,0,1) -> 0 | E174: 174 | F174: 51 | G174: -3.298227616 | H174: =[1]!XLSTAT_PDFNormal(F174,0,1) -> 0 | I174: 174 | K174: -1.226452911 | L174: =[1]!XLSTAT_PDFNormal(K174,0,1) -> 0.1880529129 | M174: 174 | O174: 6 | P174: 8
A175: 175 | B175: 51 | C175: 2.669896513 | D175: =[1]!XLSTAT_PDFNormal(B175,0,1) -> 0 | E175: 175 | F175: 51 | G175: -3.290067472 | H175: =[1]!XLSTAT_PDFNormal(F175,0,1) -> 0 | I175: 175 | K175: -1.210420847 | L175: =[1]!XLSTAT_PDFNormal(K175,0,1) -> 0.1917624627 | M175: 175 | O175: 7 | P175: 8
A176: 176 | B176: 2.669896513 | C176: 2.669896513 | D176: =[1]!XLSTAT_PDFNormal(B176,0,1) -> 0.01129819583 | E176: 176 | F176: -3.290067472 | G176: -3.290067472 | H176: =[1]!XLSTAT_PDFNormal(F176,0,1) -> 0.00177987789 | I176: 176 | K176: -1.194388782 | L176: =[1]!XLSTAT_PDFNormal(K176,0,1) -> 0.1954949336 | M176: 176 | O176: 8 | P176: 8
A177: 177 | B177: 2.678056656 | C177: 2.678056656 | D177: =[1]!XLSTAT_PDFNormal(B177,0,1) -> 0.01105433897 | E177: 177 | F177: -3.281907328 | G177: -3.281907328 | H177: =[1]!XLSTAT_PDFNormal(F177,0,1) -> 0.001828249389 | I177: 177 | K177: -1.178356718 | L177: =[1]!XLSTAT_PDFNormal(K177,0,1) -> 0.1992488344 | M177: 177 | O177: 9 | P177: 8
A178: 178 | B178: 51 | C178: 2.678056656 | D178: =[1]!XLSTAT_PDFNormal(B178,0,1) -> 0 | E178: 178 | F178: 51 | G178: -3.281907328 | H178: =[1]!XLSTAT_PDFNormal(F178,0,1) -> 0 | I178: 178 | K178: -1.162324654 | L178: =[1]!XLSTAT_PDFNormal(K178,0,1) -> 0.2030226288 | M178: 178 | O178: 10 | P178: 8
A179: 179 | B179: 51 | C179: 2.686216801 | D179: =[1]!XLSTAT_PDFNormal(B179,0,1) -> 0 | E179: 179 | F179: 51 | G179: -3.273747184 | H179: =[1]!XLSTAT_PDFNormal(F179,0,1) -> 0 | I179: 179 | K179: -1.14629259 | L179: =[1]!XLSTAT_PDFNormal(K179,0,1) -> 0.2068147354 | M179: 179 | O179: 11 | P179: 8
A180: 180 | B180: 2.686216801 | C180: 2.686216801 | D180: =[1]!XLSTAT_PDFNormal(B180,0,1) -> 0.01081502527 | E180: 180 | F180: -3.273747184 | G180: -3.273747184 | H180: =[1]!XLSTAT_PDFNormal(F180,0,1) -> 0.00187781043 | I180: 180 | K180: -1.130260526 | L180: =[1]!XLSTAT_PDFNormal(K180,0,1) -> 0.2106235291 | M180: 180 | O180: 12 | P180: 8
A181: 181 | B181: 2.694376945 | C181: 2.694376945 | D181: =[1]!XLSTAT_PDFNormal(B181,0,1) -> 0.0105801879 | E181: 181 | F181: -3.26558704 | G181: -3.26558704 | H181: =[1]!XLSTAT_PDFNormal(F181,0,1) -> 0.001928586571 | I181: 181 | K181: -1.114228462 | L181: =[1]!XLSTAT_PDFNormal(K181,0,1) -> 0.2144473413 | M181: 181 | O181: 13 | P181: 8
A182: 182 | B182: 51 | C182: 2.694376945 | D182: =[1]!XLSTAT_PDFNormal(B182,0,1) -> 0 | E182: 182 | F182: 51 | G182: -3.26558704 | H182: =[1]!XLSTAT_PDFNormal(F182,0,1) -> 0 | I182: 182 | K182: -1.098196398 | L182: =[1]!XLSTAT_PDFNormal(K182,0,1) -> 0.2182844615 | M182: 182 | O182: 14 | P182: 8
A183: 183 | B183: 51 | C183: 2.702537089 | D183: =[1]!XLSTAT_PDFNormal(B183,0,1) -> 0 | E183: 183 | F183: 51 | G183: -3.257426896 | H183: =[1]!XLSTAT_PDFNormal(F183,0,1) -> 0 | I183: 183 | K183: -1.082164334 | L183: =[1]!XLSTAT_PDFNormal(K183,0,1) -> 0.2221331381 | M183: 183 | O183: 15 | P183: 8
A184: 184 | B184: 2.702537089 | C184: 2.702537089 | D184: =[1]!XLSTAT_PDFNormal(B184,0,1) -> 0.01034976059 | E184: 184 | F184: -3.257426896 | G184: -3.257426896 | H184: =[1]!XLSTAT_PDFNormal(F184,0,1) -> 0.001980603813 | I184: 184 | K184: -1.06613227 | L184: =[1]!XLSTAT_PDFNormal(K184,0,1) -> 0.225991579 | M184: 184 | O184: 16 | P184: 8
A185: 185 | B185: 2.710697233 | C185: 2.710697233 | D185: =[1]!XLSTAT_PDFNormal(B185,0,1) -> 0.01012367766 | E185: 185 | F185: -3.249266752 | G185: -3.249266752 | H185: =[1]!XLSTAT_PDFNormal(F185,0,1) -> 0.002033888612 | I185: 185 | K185: -1.050100206 | L185: =[1]!XLSTAT_PDFNormal(K185,0,1) -> 0.2298579536 | M185: 185 | O185: 17 | P185: 8
A186: 186 | B186: 51 | C186: 2.710697233 | D186: =[1]!XLSTAT_PDFNormal(B186,0,1) -> 0 | E186: 186 | F186: 51 | G186: -3.249266752 | H186: =[1]!XLSTAT_PDFNormal(F186,0,1) -> 0 | I186: 186 | K186: -1.034068142 | L186: =[1]!XLSTAT_PDFNormal(K186,0,1) -> 0.2337303932 | M186: 186 | O186: 18 | P186: 8
A187: 187 | B187: 51 | C187: 2.718857376 | D187: =[1]!XLSTAT_PDFNormal(B187,0,1) -> 0 | E187: 187 | F187: 51 | G187: -3.241106608 | H187: =[1]!XLSTAT_PDFNormal(F187,0,1) -> 0 | I187: 187 | K187: -1.018036077 | L187: =[1]!XLSTAT_PDFNormal(K187,0,1) -> 0.2376069929 | M187: 187 | O187: 19 | P187: 8
A188: 188 | B188: 2.718857376 | C188: 2.718857376 | D188: =[1]!XLSTAT_PDFNormal(B188,0,1) -> 0.009901873968 | E188: 188 | F188: -3.241106608 | G188: -3.241106608 | H188: =[1]!XLSTAT_PDFNormal(F188,0,1) -> 0.002088467876 | I188: 188 | K188: -1.002004013 | L188: =[1]!XLSTAT_PDFNormal(K188,0,1) -> 0.2414858126 | M188: 188 | O188: 20 | P188: 8
A189: 189 | B189: 2.727017521 | C189: 2.727017521 | D189: =[1]!XLSTAT_PDFNormal(B189,0,1) -> 0.009684284986 | E189: 189 | F189: -3.232946464 | G189: -3.232946464 | H189: =[1]!XLSTAT_PDFNormal(F189,0,1) -> 0.002144368978 | I189: 189 | K189: -0.9859719492 | L189: =[1]!XLSTAT_PDFNormal(K189,0,1) -> 0.2453648787 | M189: 189 | O189: 21 | P189: 8
A190: 190 | B190: 51 | C190: 2.727017521 | D190: =[1]!XLSTAT_PDFNormal(B190,0,1) -> 0 | E190: 190 | F190: 51 | G190: -3.232946464 | H190: =[1]!XLSTAT_PDFNormal(F190,0,1) -> 0 | I190: 190 | K190: -0.9699398851 | L190: =[1]!XLSTAT_PDFNormal(K190,0,1) -> 0.2492421853 | M190: 190 | O190: 22 | P190: 8
A191: 191 | B191: 51 | C191: 2.735177665 | D191: =[1]!XLSTAT_PDFNormal(B191,0,1) -> 0 | E191: 191 | F191: 51 | G191: -3.22478632 | H191: =[1]!XLSTAT_PDFNormal(F191,0,1) -> 0 | I191: 191 | K191: -0.953907821 | L191: =[1]!XLSTAT_PDFNormal(K191,0,1) -> 0.2531156959 | M191: 191 | O191: 23 | P191: 8
A192: 192 | B192: 2.735177665 | C192: 2.735177665 | D192: =[1]!XLSTAT_PDFNormal(B192,0,1) -> 0.009470846754 | E192: 192 | F192: -3.22478632 | G192: -3.22478632 | H192: =[1]!XLSTAT_PDFNormal(F192,0,1) -> 0.002201619753 | I192: 192 | K192: -0.9378757569 | L192: =[1]!XLSTAT_PDFNormal(K192,0,1) -> 0.2569833452 | M192: 192 | O192: 24 | P192: 8
A193: 193 | B193: =IF(-1^(INT(A193/2)+2)>0,1.9599639845+2*INT(A193/2-1/2)*0.004080072,51) -> 2.743337808 | C193: =1.9599639845+2*INT(A193/2-1/2)*0.004080072 -> 2.743337808 | D193: =[1]!XLSTAT_PDFNormal(B193,0,1) -> 0.009261495901 | E193: 193 | F193: =IF(-1^(INT(E193/2)+2)>0,-4+2*INT(E193/2-1/2)*0.004080072,51) -> -3.216626176 | G193: =-4+2*INT(E193/2-1/2)*0.004080072 -> -3.216626176 | H193: =[1]!XLSTAT_PDFNormal(F193,0,1) -> 0.002260248511 | I193: 193 | K193: =-4+(I193-1)*0.0160320641 -> -0.9218436928 | L193: =[1]!XLSTAT_PDFNormal(K193,0,1) -> 0.2608430404 | M193: 193 | O193: =M193-24*INT((-1/2+M193)/24) -> 1 | P193: =1+INT((M193-1/2)/24) -> 9
A194: 194 | B194: 51 | C194: 2.743337808 | D194: =[1]!XLSTAT_PDFNormal(B194,0,1) -> 0 | E194: 194 | F194: 51 | G194: -3.216626176 | H194: =[1]!XLSTAT_PDFNormal(F194,0,1) -> 0 | I194: 194 | K194: -0.9058116287 | L194: =[1]!XLSTAT_PDFNormal(K194,0,1) -> 0.2646926635 | M194: 194 | O194: 2 | P194: 9
A195: 195 | B195: 51 | C195: 2.751497953 | D195: =[1]!XLSTAT_PDFNormal(B195,0,1) -> 0 | E195: 195 | F195: 51 | G195: -3.208466032 | H195: =[1]!XLSTAT_PDFNormal(F195,0,1) -> 0 | I195: 195 | K195: -0.8897795646 | L195: =[1]!XLSTAT_PDFNormal(K195,0,1) -> 0.2685300724 | M195: 195 | O195: 3 | P195: 9
A196: 196 | B196: 2.751497953 | C196: 2.751497953 | D196: =[1]!XLSTAT_PDFNormal(B196,0,1) -> 0.009056169648 | E196: 196 | F196: -3.208466032 | G196: -3.208466032 | H196: =[1]!XLSTAT_PDFNormal(F196,0,1) -> 0.002320284034 | I196: 196 | K196: -0.8737475005 | L196: =[1]!XLSTAT_PDFNormal(K196,0,1) -> 0.2723531033 | M196: 196 | O196: 4 | P196: 9
A197: 197 | B197: 2.759658096 | C197: 2.759658096 | D197: =[1]!XLSTAT_PDFNormal(B197,0,1) -> 0.00885480581 | E197: 197 | F197: -3.200305888 | G197: -3.200305888 | H197: =[1]!XLSTAT_PDFNormal(F197,0,1) -> 0.002381755587 | I197: 197 | K197: -0.8577154364 | L197: =[1]!XLSTAT_PDFNormal(K197,0,1) -> 0.2761595728 | M197: 197 | O197: 5 | P197: 9
A198: 198 | B198: 51 | C198: 2.759658096 | D198: =[1]!XLSTAT_PDFNormal(B198,0,1) -> 0 | E198: 198 | F198: 51 | G198: -3.200305888 | H198: =[1]!XLSTAT_PDFNormal(F198,0,1) -> 0 | I198: 198 | K198: -0.8416833723 | L198: =[1]!XLSTAT_PDFNormal(K198,0,1) -> 0.279947279 | M198: 198 | O198: 6 | P198: 9
A199: 199 | B199: 51 | C199: 2.767818241 | D199: =[1]!XLSTAT_PDFNormal(B199,0,1) -> 0 | E199: 199 | F199: 51 | G199: -3.192145744 | H199: =[1]!XLSTAT_PDFNormal(F199,0,1) -> 0 | I199: 199 | K199: -0.8256513082 | L199: =[1]!XLSTAT_PDFNormal(K199,0,1) -> 0.2837140045 | M199: 199 | O199: 7 | P199: 9
A200: 200 | B200: 2.767818241 | C200: 2.767818241 | D200: =[1]!XLSTAT_PDFNormal(B200,0,1) -> 0.008657342801 | E200: 200 | F200: -3.192145744 | G200: -3.192145744 | H200: =[1]!XLSTAT_PDFNormal(F200,0,1) -> 0.002444692921 | I200: 200 | K200: -0.8096192441 | L200: =[1]!XLSTAT_PDFNormal(K200,0,1) -> 0.2874575179 | M200: 200 | O200: 8 | P200: 9
... 376 more rows

Sheet XLSTAT_20230912_123413_1_HID (hidden)
A1: 1 | B1: =IF(-1^(INT(A1/2)+2)>0,1.9599639845+2*INT(A1/2-1/2)*0.004080072,51) -> 1.959963985 | C1: =1.9599639845+2*INT(A1/2-1/2)*0.004080072 -> 1.959963985 | D1: =[1]!XLSTAT_PDFNormal(B1,0,1) -> 0.05844506981 | E1: 1 | F1: =IF(-1^(INT(E1/2)+2)>0,-4+2*INT(E1/2-1/2)*0.004080072,51) -> -4 | G1: =-4+2*INT(E1/2-1/2)*0.004080072 -> -4 | H1: =[1]!XLSTAT_PDFNormal(F1,0,1) -> 0.0001338302258 | I1: 1 | K1: =-4+(I1-1)*0.0160320641 -> -4 | L1: =[1]!XLSTAT_PDFNormal(K1,0,1) -> 0.0001338302258 | M1: 1 | O1: =M1-24*INT((-1/2+M1)/24) -> 1 | P1: =1+INT((M1-1/2)/24) -> 1
A2: 2 | B2: 51 | C2: 1.959963985 | D2: =[1]!XLSTAT_PDFNormal(B2,0,1) -> 0 | E2: 2 | F2: 51 | G2: -4 | H2: =[1]!XLSTAT_PDFNormal(F2,0,1) -> 0 | I2: 2 | K2: -3.983967936 | L2: =[1]!XLSTAT_PDFNormal(K2,0,1) -> 0.0001426753497 | M2: 2 | O2: 2 | P2: 1
A3: 3 | B3: 51 | C3: 1.968124129 | D3: =[1]!XLSTAT_PDFNormal(B3,0,1) -> 0 | E3: 3 | F3: 51 | G3: -3.991839856 | H3: =[1]!XLSTAT_PDFNormal(F3,0,1) -> 0 | I3: 3 | K3: -3.967935872 | L3: =[1]!XLSTAT_PDFNormal(K3,0,1) -> 0.0001520659766 | M3: 3 | O3: 3 | P3: 1
A4: 4 | B4: 1.968124129 | C4: 1.968124129 | D4: =[1]!XLSTAT_PDFNormal(B4,0,1) -> 0.05751584374 | E4: 4 | F4: -3.991839856 | G4: -3.991839856 | H4: =[1]!XLSTAT_PDFNormal(F4,0,1) -> 0.0001382659918 | I4: 4 | K4: -3.951903808 | L4: =[1]!XLSTAT_PDFNormal(K4,0,1) -> 0.0001620330249 | M4: 4 | O4: 4 | P4: 1
A5: 5 | B5: 1.976284273 | C5: 1.976284273 | D5: =[1]!XLSTAT_PDFNormal(B5,0,1) -> 0.05659762272 | E5: 5 | F5: -3.983679712 | G5: -3.983679712 | H5: =[1]!XLSTAT_PDFNormal(F5,0,1) -> 0.0001428392684 | I5: 5 | K5: -3.935871744 | L5: =[1]!XLSTAT_PDFNormal(K5,0,1) -> 0.0001726089849 | M5: 5 | O5: 5 | P5: 1
A6: 6 | B6: 51 | C6: 1.976284273 | D6: =[1]!XLSTAT_PDFNormal(B6,0,1) -> 0 | E6: 6 | F6: 51 | G6: -3.983679712 | H6: =[1]!XLSTAT_PDFNormal(F6,0,1) -> 0 | I6: 6 | K6: -3.919839679 | L6: =[1]!XLSTAT_PDFNormal(K6,0,1) -> 0.0001838279872 | M6: 6 | O6: 6 | P6: 1
A7: 7 | B7: 51 | C7: 1.984444417 | D7: =[1]!XLSTAT_PDFNormal(B7,0,1) -> 0 | E7: 7 | F7: 51 | G7: -3.975519568 | H7: =[1]!XLSTAT_PDFNormal(F7,0,1) -> 0 | I7: 7 | K7: -3.903807615 | L7: =[1]!XLSTAT_PDFNormal(K7,0,1) -> 0.0001957258735 | M7: 7 | O7: 7 | P7: 1
A8: 8 | B8: 1.984444417 | C8: 1.984444417 | D8: =[1]!XLSTAT_PDFNormal(B8,0,1) -> 0.05569035236 | E8: 8 | F8: -3.975519568 | G8: -3.975519568 | H8: =[1]!XLSTAT_PDFNormal(F8,0,1) -> 0.0001475539847 | I8: 8 | K8: -3.887775551 | L8: =[1]!XLSTAT_PDFNormal(K8,0,1) -> 0.0002083402699 | M8: 8 | O8: 8 | P8: 1
A9: 9 | B9: 1.992604561 | C9: 1.992604561 | D9: =[1]!XLSTAT_PDFNormal(B9,0,1) -> 0.05479397696 | E9: 9 | F9: -3.967359424 | G9: -3.967359424 | H9: =[1]!XLSTAT_PDFNormal(F9,0,1) -> 0.0001524141711 | I9: 9 | K9: -3.871743487 | L9: =[1]!XLSTAT_PDFNormal(K9,0,1) -> 0.0002217106624 | M9: 9 | O9: 9 | P9: 1
A10: 10 | B10: 51 | C10: 1.992604561 | D10: =[1]!XLSTAT_PDFNormal(B10,0,1) -> 0 | E10: 10 | F10: 51 | G10: -3.967359424 | H10: =[1]!XLSTAT_PDFNormal(F10,0,1) -> 0 | I10: 10 | K10: -3.855711423 | L10: =[1]!XLSTAT_PDFNormal(K10,0,1) -> 0.0002358784749 | M10: 10 | O10: 10 | P10: 1
A11: 11 | B11: 51 | C11: 2.000764704 | D11: =[1]!XLSTAT_PDFNormal(B11,0,1) -> 0 | E11: 11 | F11: 51 | G11: -3.95919928 | H11: =[1]!XLSTAT_PDFNormal(F11,0,1) -> 0 | I11: 11 | K11: -3.839679359 | L11: =[1]!XLSTAT_PDFNormal(K11,0,1) -> 0.0002508871496 | M11: 11 | O11: 11 | P11: 1
A12: 12 | B12: 2.000764704 | C12: 2.000764704 | D12: =[1]!XLSTAT_PDFNormal(B12,0,1) -> 0.05390843959 | E12: 12 | F12: -3.95919928 | G12: -3.95919928 | H12: =[1]!XLSTAT_PDFNormal(F12,0,1) -> 0.0001574239612 | I12: 12 | K12: -3.823647295 | L12: =[1]!XLSTAT_PDFNormal(K12,0,1) -> 0.0002667822298 | M12: 12 | O12: 12 | P12: 1
A13: 13 | B13: 2.008924848 | C13: 2.008924848 | D13: =[1]!XLSTAT_PDFNormal(B13,0,1) -> 0.05303368206 | E13: 13 | F13: -3.951039136 | G13: -3.951039136 | H13: =[1]!XLSTAT_PDFNormal(F13,0,1) -> 0.0001625875942 | I13: 13 | K13: -3.807615231 | L13: =[1]!XLSTAT_PDFNormal(K13,0,1) -> 0.0002836114455 | M13: 13 | O13: 13 | P13: 1
A14: 14 | B14: 51 | C14: 2.008924848 | D14: =[1]!XLSTAT_PDFNormal(B14,0,1) -> 0 | E14: 14 | F14: 51 | G14: -3.951039136 | H14: =[1]!XLSTAT_PDFNormal(F14,0,1) -> 0 | I14: 14 | K14: -3.791583167 | L14: =[1]!XLSTAT_PDFNormal(K14,0,1) -> 0.0003014248013 | M14: 14 | O14: 14 | P14: 1
A15: 15 | B15: 51 | C15: 2.017084993 | D15: =[1]!XLSTAT_PDFNormal(B15,0,1) -> 0 | E15: 15 | F15: 51 | G15: -3.942878992 | H15: =[1]!XLSTAT_PDFNormal(F15,0,1) -> 0 | I15: 15 | K15: -3.775551103 | L15: =[1]!XLSTAT_PDFNormal(K15,0,1) -> 0.0003202746665 | M15: 15 | O15: 15 | P15: 1
A16: 16 | B16: 2.017084993 | C16: 2.017084993 | D16: =[1]!XLSTAT_PDFNormal(B16,0,1) -> 0.052169645 | E16: 16 | F16: -3.942878992 | G16: -3.942878992 | H16: =[1]!XLSTAT_PDFNormal(F16,0,1) -> 0.0001679094174 | I16: 16 | K16: -3.759519039 | L16: =[1]!XLSTAT_PDFNormal(K16,0,1) -> 0.0003402158688 | M16: 16 | O16: 16 | P16: 1
A17: 17 | B17: 2.025245137 | C17: 2.025245137 | D17: =[1]!XLSTAT_PDFNormal(B17,0,1) -> 0.05131626787 | E17: 17 | F17: -3.934718848 | G17: -3.934718848 | H17: =[1]!XLSTAT_PDFNormal(F17,0,1) -> 0.0001733938885 | I17: 17 | K17: -3.743486974 | L17: =[1]!XLSTAT_PDFNormal(K17,0,1) -> 0.0003613057891 | M17: 17 | O17: 17 | P17: 1
A18: 18 | B18: 51 | C18: 2.025245137 | D18: =[1]!XLSTAT_PDFNormal(B18,0,1) -> 0 | E18: 18 | F18: 51 | G18: -3.934718848 | H18: =[1]!XLSTAT_PDFNormal(F18,0,1) -> 0 | I18: 18 | K18: -3.72745491 | L18: =[1]!XLSTAT_PDFNormal(K18,0,1) -> 0.0003836044604 | M18: 18 | O18: 18 | P18: 1
A19: 19 | B19: 51 | C19: 2.033405281 | D19: =[1]!XLSTAT_PDFNormal(B19,0,1) -> 0 | E19: 19 | F19: 51 | G19: -3.926558704 | H19: =[1]!XLSTAT_PDFNormal(F19,0,1) -> 0 | I19: 19 | K19: -3.711422846 | L19: =[1]!XLSTAT_PDFNormal(K19,0,1) -> 0.000407174668 | M19: 19 | O19: 19 | P19: 1
A20: 20 | B20: 2.033405281 | C20: 2.033405281 | D20: =[1]!XLSTAT_PDFNormal(B20,0,1) -> 0.05047348901 | E20: 20 | F20: -3.926558704 | G20: -3.926558704 | H20: =[1]!XLSTAT_PDFNormal(F20,0,1) -> 0.0001790455776 | I20: 20 | K20: -3.695390782 | L20: =[1]!XLSTAT_PDFNormal(K20,0,1) -> 0.0004320820534 | M20: 20 | O20: 20 | P20: 1
A21: 21 | B21: 2.041565424 | C21: 2.041565424 | D21: =[1]!XLSTAT_PDFNormal(B21,0,1) -> 0.04964124569 | E21: 21 | F21: -3.91839856 | G21: -3.91839856 | H21: =[1]!XLSTAT_PDFNormal(F21,0,1) -> 0.0001848691703 | I21: 21 | K21: -3.679358718 | L21: =[1]!XLSTAT_PDFNormal(K21,0,1) -> 0.0004583952196 | M21: 21 | O21: 21 | P21: 1
A22: 22 | B22: 51 | C22: 2.041565424 | D22: =[1]!XLSTAT_PDFNormal(B22,0,1) -> 0 | E22: 22 | F22: 51 | G22: -3.91839856 | H22: =[1]!XLSTAT_PDFNormal(F22,0,1) -> 0 | I22: 22 | K22: -3.663326654 | L22: =[1]!XLSTAT_PDFNormal(K22,0,1) -> 0.0004861858403 | M22: 22 | O22: 22 | P22: 1
A23: 23 | B23: 51 | C23: 2.049725568 | D23: =[1]!XLSTAT_PDFNormal(B23,0,1) -> 0 | E23: 23 | F23: 51 | G23: -3.910238416 | H23: =[1]!XLSTAT_PDFNormal(F23,0,1) -> 0 | I23: 23 | K23: -3.64729459 | L23: =[1]!XLSTAT_PDFNormal(K23,0,1) -> 0.0005155287703 | M23: 23 | O23: 23 | P23: 1
A24: 24 | B24: 2.049725568 | C24: 2.049725568 | D24: =[1]!XLSTAT_PDFNormal(B24,0,1) -> 0.0488194741 | E24: 24 | F24: -3.910238416 | G24: -3.910238416 | H24: =[1]!XLSTAT_PDFNormal(F24,0,1) -> 0.0001908694697 | I24: 24 | K24: -3.631262526 | L24: =[1]!XLSTAT_PDFNormal(K24,0,1) -> 0.0005465021597 | M24: 24 | O24: 24 | P24: 1
A25: 25 | B25: 2.057885713 | C25: 2.057885713 | D25: =[1]!XLSTAT_PDFNormal(B25,0,1) -> 0.04800810942 | E25: 25 | F25: -3.902078272 | G25: -3.902078272 | H25: =[1]!XLSTAT_PDFNormal(F25,0,1) -> 0.0001970513992 | I25: 25 | K25: -3.615230462 | L25: =[1]!XLSTAT_PDFNormal(K25,0,1) -> 0.0005791875696 | M25: 25 | O25: 1 | P25: 2
A26: 26 | B26: 51 | C26: 2.057885713 | D26: =[1]!XLSTAT_PDFNormal(B26,0,1) -> 0 | E26: 26 | F26: 51 | G26: -3.902078272 | H26: =[1]!XLSTAT_PDFNormal(F26,0,1) -> 0 | I26: 26 | K26: -3.599198397 | L26: =[1]!XLSTAT_PDFNormal(K26,0,1) -> 0.0006136700909 | M26: 26 | O26: 2 | P26: 2
A27: 27 | B27: 51 | C27: 2.066045857 | D27: =[1]!XLSTAT_PDFNormal(B27,0,1) -> 0 | E27: 27 | F27: 51 | G27: -3.893918128 | H27: =[1]!XLSTAT_PDFNormal(F27,0,1) -> 0 | I27: 27 | K27: -3.583166333 | L27: =[1]!XLSTAT_PDFNormal(K27,0,1) -> 0.0006500384652 | M27: 27 | O27: 3 | P27: 2
A28: 28 | B28: 2.066045857 | C28: 2.066045857 | D28: =[1]!XLSTAT_PDFNormal(B28,0,1) -> 0.04720708585 | E28: 28 | F28: -3.893918128 | G28: -3.893918128 | H28: =[1]!XLSTAT_PDFNormal(F28,0,1) -> 0.0002034200048 | I28: 28 | K28: -3.567134269 | L28: =[1]!XLSTAT_PDFNormal(K28,0,1) -> 0.0006883852084 | M28: 28 | O28: 4 | P28: 2
A29: 29 | B29: 2.074206001 | C29: 2.074206001 | D29: =[1]!XLSTAT_PDFNormal(B29,0,1) -> 0.04641633662 | E29: 29 | F29: -3.885757984 | G29: -3.885757984 | H29: =[1]!XLSTAT_PDFNormal(F29,0,1) -> 0.0002099804581 | I29: 29 | K29: -3.551102205 | L29: =[1]!XLSTAT_PDFNormal(K29,0,1) -> 0.0007288067363 | M29: 29 | O29: 5 | P29: 2
A30: 30 | B30: 51 | C30: 2.074206001 | D30: =[1]!XLSTAT_PDFNormal(B30,0,1) -> 0 | E30: 30 | F30: 51 | G30: -3.885757984 | H30: =[1]!XLSTAT_PDFNormal(F30,0,1) -> 0 | I30: 30 | K30: -3.535070141 | L30: =[1]!XLSTAT_PDFNormal(K30,0,1) -> 0.0007714034927 | M30: 30 | O30: 6 | P30: 2
A31: 31 | B31: 51 | C31: 2.082366144 | D31: =[1]!XLSTAT_PDFNormal(B31,0,1) -> 0 | E31: 31 | F31: 51 | G31: -3.87759784 | H31: =[1]!XLSTAT_PDFNormal(F31,0,1) -> 0 | I31: 31 | K31: -3.519038077 | L31: =[1]!XLSTAT_PDFNormal(K31,0,1) -> 0.0008162800798 | M31: 31 | O31: 7 | P31: 2
A32: 32 | B32: 2.082366144 | C32: 2.082366144 | D32: =[1]!XLSTAT_PDFNormal(B32,0,1) -> 0.04563579405 | E32: 32 | F32: -3.87759784 | G32: -3.87759784 | H32: =[1]!XLSTAT_PDFNormal(F32,0,1) -> 0.0002167380584 | I32: 32 | K32: -3.503006013 | L32: =[1]!XLSTAT_PDFNormal(K32,0,1) -> 0.0008635453902 | M32: 32 | O32: 8 | P32: 2
A33: 33 | B33: 2.090526288 | C33: 2.090526288 | D33: =[1]!XLSTAT_PDFNormal(B33,0,1) -> 0.04486538959 | E33: 33 | F33: -3.869437696 | G33: -3.869437696 | H33: =[1]!XLSTAT_PDFNormal(F33,0,1) -> 0.0002236982361 | I33: 33 | K33: -3.486973949 | L33: =[1]!XLSTAT_PDFNormal(K33,0,1) -> 0.0009133127418 | M33: 33 | O33: 9 | P33: 2
A34: 34 | B34: 51 | C34: 2.090526288 | D34: =[1]!XLSTAT_PDFNormal(B34,0,1) -> 0 | E34: 34 | F34: 51 | G34: -3.869437696 | H34: =[1]!XLSTAT_PDFNormal(F34,0,1) -> 0 | I34: 34 | K34: -3.470941885 | L34: =[1]!XLSTAT_PDFNormal(K34,0,1) -> 0.0009657000138 | M34: 34 | O34: 10 | P34: 2
A35: 35 | B35: 51 | C35: 2.098686433 | D35: =[1]!XLSTAT_PDFNormal(B35,0,1) -> 0 | E35: 35 | F35: 51 | G35: -3.861277552 | H35: =[1]!XLSTAT_PDFNormal(F35,0,1) -> 0 | I35: 35 | K35: -3.454909821 | L35: =[1]!XLSTAT_PDFNormal(K35,0,1) -> 0.001020829785 | M35: 35 | O35: 11 | P35: 2
A36: 36 | B36: 2.098686433 | C36: 2.098686433 | D36: =[1]!XLSTAT_PDFNormal(B36,0,1) -> 0.04410505381 | E36: 36 | F36: -3.861277552 | G36: -3.861277552 | H36: =[1]!XLSTAT_PDFNormal(F36,0,1) -> 0.0002308665546 | I36: 36 | K36: -3.438877757 | L36: =[1]!XLSTAT_PDFNormal(K36,0,1) -> 0.001078829475 | M36: 36 | O36: 12 | P36: 2
A37: 37 | B37: 2.106846577 | C37: 2.106846577 | D37: =[1]!XLSTAT_PDFNormal(B37,0,1) -> 0.04335471648 | E37: 37 | F37: -3.853117408 | G37: -3.853117408 | H37: =[1]!XLSTAT_PDFNormal(F37,0,1) -> 0.000238248714 | I37: 37 | K37: -3.422845692 | L37: =[1]!XLSTAT_PDFNormal(K37,0,1) -> 0.001139831482 | M37: 37 | O37: 13 | P37: 2
A38: 38 | B38: 51 | C38: 2.106846577 | D38: =[1]!XLSTAT_PDFNormal(B38,0,1) -> 0 | E38: 38 | F38: 51 | G38: -3.853117408 | H38: =[1]!XLSTAT_PDFNormal(F38,0,1) -> 0 | I38: 38 | K38: -3.406813628 | L38: =[1]!XLSTAT_PDFNormal(K38,0,1) -> 0.001203973332 | M38: 38 | O38: 14 | P38: 2
A39: 39 | B39: 51 | C39: 2.115006721 | D39: =[1]!XLSTAT_PDFNormal(B39,0,1) -> 0 | E39: 39 | F39: 51 | G39: -3.844957264 | H39: =[1]!XLSTAT_PDFNormal(F39,0,1) -> 0 | I39: 39 | K39: -3.390781564 | L39: =[1]!XLSTAT_PDFNormal(K39,0,1) -> 0.001271397816 | M39: 39 | O39: 15 | P39: 2
A40: 40 | B40: 2.115006721 | C40: 2.115006721 | D40: =[1]!XLSTAT_PDFNormal(B40,0,1) -> 0.04261430657 | E40: 40 | F40: -3.844957264 | G40: -3.844957264 | H40: =[1]!XLSTAT_PDFNormal(F40,0,1) -> 0.0002458505531 | I40: 40 | K40: -3.3747495 | L40: =[1]!XLSTAT_PDFNormal(K40,0,1) -> 0.001342253143 | M40: 40 | O40: 16 | P40: 2
A41: 41 | B41: 2.123166864 | C41: 2.123166864 | D41: =[1]!XLSTAT_PDFNormal(B41,0,1) -> 0.0418837523 | E41: 41 | F41: -3.83679712 | G41: -3.83679712 | H41: =[1]!XLSTAT_PDFNormal(F41,0,1) -> 0.0002536780529 | I41: 41 | K41: -3.358717436 | L41: =[1]!XLSTAT_PDFNormal(K41,0,1) -> 0.001416693079 | M41: 41 | O41: 17 | P41: 2
A42: 42 | B42: 51 | C42: 2.123166864 | D42: =[1]!XLSTAT_PDFNormal(B42,0,1) -> 0 | E42: 42 | F42: 51 | G42: -3.83679712 | H42: =[1]!XLSTAT_PDFNormal(F42,0,1) -> 0 | I42: 42 | K42: -3.342685372 | L42: =[1]!XLSTAT_PDFNormal(K42,0,1) -> 0.001494877103 | M42: 42 | O42: 18 | P42: 2
A43: 43 | B43: 51 | C43: 2.131327009 | D43: =[1]!XLSTAT_PDFNormal(B43,0,1) -> 0 | E43: 43 | F43: 51 | G43: -3.828636976 | H43: =[1]!XLSTAT_PDFNormal(F43,0,1) -> 0 | I43: 43 | K43: -3.326653308 | L43: =[1]!XLSTAT_PDFNormal(K43,0,1) -> 0.001576970546 | M43: 43 | O43: 19 | P43: 2
A44: 44 | B44: 2.131327009 | C44: 2.131327009 | D44: =[1]!XLSTAT_PDFNormal(B44,0,1) -> 0.04116298117 | E44: 44 | F44: -3.828636976 | G44: -3.828636976 | H44: =[1]!XLSTAT_PDFNormal(F44,0,1) -> 0.0002617373389 | I44: 44 | K44: -3.310621244 | L44: =[1]!XLSTAT_PDFNormal(K44,0,1) -> 0.001663144747 | M44: 44 | O44: 20 | P44: 2
A45: 45 | B45: 2.139487153 | C45: 2.139487153 | D45: =[1]!XLSTAT_PDFNormal(B45,0,1) -> 0.04045191998 | E45: 45 | F45: -3.820476832 | G45: -3.820476832 | H45: =[1]!XLSTAT_PDFNormal(F45,0,1) -> 0.0002700346848 | I45: 45 | K45: -3.29458918 | L45: =[1]!XLSTAT_PDFNormal(K45,0,1) -> 0.001753577198 | M45: 45 | O45: 21 | P45: 2
A46: 46 | B46: 51 | C46: 2.139487153 | D46: =[1]!XLSTAT_PDFNormal(B46,0,1) -> 0 | E46: 46 | F46: 51 | G46: -3.820476832 | H46: =[1]!XLSTAT_PDFNormal(F46,0,1) -> 0 | I46: 46 | K46: -3.278557115 | L46: =[1]!XLSTAT_PDFNormal(K46,0,1) -> 0.001848451693 | M46: 46 | O46: 22 | P46: 2
A47: 47 | B47: 51 | C47: 2.147647297 | D47: =[1]!XLSTAT_PDFNormal(B47,0,1) -> 0 | E47: 47 | F47: 51 | G47: -3.812316688 | H47: =[1]!XLSTAT_PDFNormal(F47,0,1) -> 0 | I47: 47 | K47: -3.262525051 | L47: =[1]!XLSTAT_PDFNormal(K47,0,1) -> 0.001947958479 | M47: 47 | O47: 23 | P47: 2
A48: 48 | B48: 2.147647297 | C48: 2.147647297 | D48: =[1]!XLSTAT_PDFNormal(B48,0,1) -> 0.03975049487 | E48: 48 | F48: -3.812316688 | G48: -3.812316688 | H48: =[1]!XLSTAT_PDFNormal(F48,0,1) -> 0.0002785765146 | I48: 48 | K48: -3.246492987 | L48: =[1]!XLSTAT_PDFNormal(K48,0,1) -> 0.002052294401 | M48: 48 | O48: 24 | P48: 2
A49: 49 | B49: 2.155807441 | C49: 2.155807441 | D49: =[1]!XLSTAT_PDFNormal(B49,0,1) -> 0.03905863136 | E49: 49 | F49: -3.804156544 | G49: -3.804156544 | H49: =[1]!XLSTAT_PDFNormal(F49,0,1) -> 0.0002873694066 | I49: 49 | K49: -3.230460923 | L49: =[1]!XLSTAT_PDFNormal(K49,0,1) -> 0.002161663053 | M49: 49 | O49: 1 | P49: 3
A50: 50 | B50: 51 | C50: 2.155807441 | D50: =[1]!XLSTAT_PDFNormal(B50,0,1) -> 0 | E50: 50 | F50: 51 | G50: -3.804156544 | H50: =[1]!XLSTAT_PDFNormal(F50,0,1) -> 0 | I50: 50 | K50: -3.214428859 | L50: =[1]!XLSTAT_PDFNormal(K50,0,1) -> 0.002276274922 | M50: 50 | O50: 2 | P50: 3
A51: 51 | B51: 51 | C51: 2.163967584 | D51: =[1]!XLSTAT_PDFNormal(B51,0,1) -> 0 | E51: 51 | F51: 51 | G51: -3.7959964 | H51: =[1]!XLSTAT_PDFNormal(F51,0,1) -> 0 | I51: 51 | K51: -3.198396795 | L51: =[1]!XLSTAT_PDFNormal(K51,0,1) -> 0.002396347532 | M51: 51 | O51: 3 | P51: 3
A52: 52 | B52: 2.163967584 | C52: 2.163967584 | D52: =[1]!XLSTAT_PDFNormal(B52,0,1) -> 0.03837625436 | E52: 52 | F52: -3.7959964 | G52: -3.7959964 | H52: =[1]!XLSTAT_PDFNormal(F52,0,1) -> 0.0002964200957 | I52: 52 | K52: -3.182364731 | L52: =[1]!XLSTAT_PDFNormal(K52,0,1) -> 0.002522105593 | M52: 52 | O52: 4 | P52: 3
A53: 53 | B53: 2.172127729 | C53: 2.172127729 | D53: =[1]!XLSTAT_PDFNormal(B53,0,1) -> 0.03770328822 | E53: 53 | F53: -3.787836256 | G53: -3.787836256 | H53: =[1]!XLSTAT_PDFNormal(F53,0,1) -> 0.0003057354769 | I53: 53 | K53: -3.166332667 | L53: =[1]!XLSTAT_PDFNormal(K53,0,1) -> 0.002653781137 | M53: 53 | O53: 5 | P53: 3
A54: 54 | B54: 51 | C54: 2.172127729 | D54: =[1]!XLSTAT_PDFNormal(B54,0,1) -> 0 | E54: 54 | F54: 51 | G54: -3.787836256 | H54: =[1]!XLSTAT_PDFNormal(F54,0,1) -> 0 | I54: 54 | K54: -3.150300603 | L54: =[1]!XLSTAT_PDFNormal(K54,0,1) -> 0.002791613662 | M54: 54 | O54: 6 | P54: 3
A55: 55 | B55: 51 | C55: 2.180287873 | D55: =[1]!XLSTAT_PDFNormal(B55,0,1) -> 0 | E55: 55 | F55: 51 | G55: -3.779676112 | H55: =[1]!XLSTAT_PDFNormal(F55,0,1) -> 0 | I55: 55 | K55: -3.134268539 | L55: =[1]!XLSTAT_PDFNormal(K55,0,1) -> 0.002935850265 | M55: 55 | O55: 7 | P55: 3
A56: 56 | B56: 2.180287873 | C56: 2.180287873 | D56: =[1]!XLSTAT_PDFNormal(B56,0,1) -> 0.03703965673 | E56: 56 | F56: -3.779676112 | G56: -3.779676112 | H56: =[1]!XLSTAT_PDFNormal(F56,0,1) -> 0.0003153226086 | I56: 56 | K56: -3.118236474 | L56: =[1]!XLSTAT_PDFNormal(K56,0,1) -> 0.00308674578 | M56: 56 | O56: 8 | P56: 3
A57: 57 | B57: 2.188448017 | C57: 2.188448017 | D57: =[1]!XLSTAT_PDFNormal(B57,0,1) -> 0.0363852832 | E57: 57 | F57: -3.771515968 | G57: -3.771515968 | H57: =[1]!XLSTAT_PDFNormal(F57,0,1) -> 0.0003251887153 | I57: 57 | K57: -3.10220441 | L57: =[1]!XLSTAT_PDFNormal(K57,0,1) -> 0.003244562907 | M57: 57 | O57: 9 | P57: 3
A58: 58 | B58: 51 | C58: 2.188448017 | D58: =[1]!XLSTAT_PDFNormal(B58,0,1) -> 0 | E58: 58 | F58: 51 | G58: -3.771515968 | H58: =[1]!XLSTAT_PDFNormal(F58,0,1) -> 0 | I58: 58 | K58: -3.086172346 | L58: =[1]!XLSTAT_PDFNormal(K58,0,1) -> 0.003409572341 | M58: 58 | O58: 10 | P58: 3
A59: 59 | B59: 51 | C59: 2.196608161 | D59: =[1]!XLSTAT_PDFNormal(B59,0,1) -> 0 | E59: 59 | F59: 51 | G59: -3.763355824 | H59: =[1]!XLSTAT_PDFNormal(F59,0,1) -> 0 | I59: 59 | K59: -3.070140282 | L59: =[1]!XLSTAT_PDFNormal(K59,0,1) -> 0.003582052892 | M59: 59 | O59: 11 | P59: 3
A60: 60 | B60: 2.196608161 | C60: 2.196608161 | D60: =[1]!XLSTAT_PDFNormal(B60,0,1) -> 0.03574009045 | E60: 60 | F60: -3.763355824 | G60: -3.763355824 | H60: =[1]!XLSTAT_PDFNormal(F60,0,1) -> 0.0003353411915 | I60: 60 | K60: -3.054108218 | L60: =[1]!XLSTAT_PDFNormal(K60,0,1) -> 0.003762291608 | M60: 60 | O60: 12 | P60: 3
A61: 61 | B61: 2.204768304 | C61: 2.204768304 | D61: =[1]!XLSTAT_PDFNormal(B61,0,1) -> 0.03510400082 | E61: 61 | F61: -3.75519568 | G61: -3.75519568 | H61: =[1]!XLSTAT_PDFNormal(F61,0,1) -> 0.0003457876047 | I61: 61 | K61: -3.038076154 | L61: =[1]!XLSTAT_PDFNormal(K61,0,1) -> 0.003950583885 | M61: 61 | O61: 13 | P61: 3
A62: 62 | B62: 51 | C62: 2.204768304 | D62: =[1]!XLSTAT_PDFNormal(B62,0,1) -> 0 | E62: 62 | F62: 51 | G62: -3.75519568 | H62: =[1]!XLSTAT_PDFNormal(F62,0,1) -> 0 | I62: 62 | K62: -3.02204409 | L62: =[1]!XLSTAT_PDFNormal(K62,0,1) -> 0.004147233582 | M62: 62 | O62: 14 | P62: 3
A63: 63 | B63: 51 | C63: 2.212928449 | D63: =[1]!XLSTAT_PDFNormal(B63,0,1) -> 0 | E63: 63 | F63: 51 | G63: -3.747035536 | H63: =[1]!XLSTAT_PDFNormal(F63,0,1) -> 0 | I63: 63 | K63: -3.006012026 | L63: =[1]!XLSTAT_PDFNormal(K63,0,1) -> 0.004352553116 | M63: 63 | O63: 15 | P63: 3
A64: 64 | B64: 2.212928449 | C64: 2.212928449 | D64: =[1]!XLSTAT_PDFNormal(B64,0,1) -> 0.03447693627 | E64: 64 | F64: -3.747035536 | G64: -3.747035536 | H64: =[1]!XLSTAT_PDFNormal(F64,0,1) -> 0.0003565356984 | I64: 64 | K64: -2.989979962 | L64: =[1]!XLSTAT_PDFNormal(K64,0,1) -> 0.004566863567 | M64: 64 | O64: 16 | P64: 3
A65: 65 | B65: =IF(-1^(INT(A65/2)+2)>0,1.9599639845+2*INT(A65/2-1/2)*0.004080072,51) -> 2.221088593 | C65: =1.9599639845+2*INT(A65/2-1/2)*0.004080072 -> 2.221088593 | D65: =[1]!XLSTAT_PDFNormal(B65,0,1) -> 0.03385881835 | E65: 65 | F65: =IF(-1^(INT(E65/2)+2)>0,-4+2*INT(E65/2-1/2)*0.004080072,51) -> -3.738875392 | G65: =-4+2*INT(E65/2-1/2)*0.004080072 -> -3.738875392 | H65: =[1]!XLSTAT_PDFNormal(F65,0,1) -> 0.0003675933964 | I65: 65 | K65: =-4+(I65-1)*0.0160320641 -> -2.973947898 | L65: =[1]!XLSTAT_PDFNormal(K65,0,1) -> 0.004790494763 | M65: 65 | O65: =M65-24*INT((-1/2+M65)/24) -> 17 | P65: =1+INT((M65-1/2)/24) -> 3
A66: 66 | B66: 51 | C66: 2.221088593 | D66: =[1]!XLSTAT_PDFNormal(B66,0,1) -> 0 | E66: 66 | F66: 51 | G66: -3.738875392 | H66: =[1]!XLSTAT_PDFNormal(F66,0,1) -> 0 | I66: 66 | K66: -2.957915833 | L66: =[1]!XLSTAT_PDFNormal(K66,0,1) -> 0.005023785367 | M66: 66 | O66: 18 | P66: 3
A67: 67 | B67: 51 | C67: 2.229248737 | D67: =[1]!XLSTAT_PDFNormal(B67,0,1) -> 0 | E67: 67 | F67: 51 | G67: -3.730715248 | H67: =[1]!XLSTAT_PDFNormal(F67,0,1) -> 0 | I67: 67 | K67: -2.941883769 | L67: =[1]!XLSTAT_PDFNormal(K67,0,1) -> 0.00526708295 | M67: 67 | O67: 19 | P67: 3
A68: 68 | B68: 2.229248737 | C68: 2.229248737 | D68: =[1]!XLSTAT_PDFNormal(B68,0,1) -> 0.03324956822 | E68: 68 | F68: -3.730715248 | G68: -3.730715248 | H68: =[1]!XLSTAT_PDFNormal(F68,0,1) -> 0.0003789688054 | I68: 68 | K68: -2.925851705 | L68: =[1]!XLSTAT_PDFNormal(K68,0,1) -> 0.005520744062 | M68: 68 | O68: 20 | P68: 3
A69: 69 | B69: 2.237408881 | C69: 2.237408881 | D69: =[1]!XLSTAT_PDFNormal(B69,0,1) -> 0.03264910673 | E69: 69 | F69: -3.722555104 | G69: -3.722555104 | H69: =[1]!XLSTAT_PDFNormal(F69,0,1) -> 0.0003906702187 | I69: 69 | K69: -2.909819641 | L69: =[1]!XLSTAT_PDFNormal(K69,0,1) -> 0.005785134289 | M69: 69 | O69: 21 | P69: 3
A70: 70 | B70: 51 | C70: 2.237408881 | D70: =[1]!XLSTAT_PDFNormal(B70,0,1) -> 0 | E70: 70 | F70: 51 | G70: -3.722555104 | H70: =[1]!XLSTAT_PDFNormal(F70,0,1) -> 0 | I70: 70 | K70: -2.893787577 | L70: =[1]!XLSTAT_PDFNormal(K70,0,1) -> 0.006060628303 | M70: 70 | O70: 22 | P70: 3
A71: 71 | B71: 51 | C71: 2.245569024 | D71: =[1]!XLSTAT_PDFNormal(B71,0,1) -> 0 | E71: 71 | F71: 51 | G71: -3.71439496 | H71: =[1]!XLSTAT_PDFNormal(F71,0,1) -> 0 | I71: 71 | K71: -2.877755513 | L71: =[1]!XLSTAT_PDFNormal(K71,0,1) -> 0.006347609907 | M71: 71 | O71: 23 | P71: 3
A72: 72 | B72: 2.245569024 | C72: 2.245569024 | D72: =[1]!XLSTAT_PDFNormal(B72,0,1) -> 0.03205735441 | E72: 72 | F72: -3.71439496 | G72: -3.71439496 | H72: =[1]!XLSTAT_PDFNormal(F72,0,1) -> 0.0004027061201 | I72: 72 | K72: -2.861723449 | L72: =[1]!XLSTAT_PDFNormal(K72,0,1) -> 0.006646472061 | M72: 72 | O72: 24 | P72: 3
A73: 73 | B73: 2.253729169 | C73: 2.253729169 | D73: =[1]!XLSTAT_PDFNormal(B73,0,1) -> 0.0314742315 | E73: 73 | F73: -3.706234816 | G73: -3.706234816 | H73: =[1]!XLSTAT_PDFNormal(F73,0,1) -> 0.000415085187 | I73: 73 | K73: -2.845691385 | L73: =[1]!XLSTAT_PDFNormal(K73,0,1) -> 0.006957616905 | M73: 73 | O73: 1 | P73: 4
A74: 74 | B74: 51 | C74: 2.253729169 | D74: =[1]!XLSTAT_PDFNormal(B74,0,1) -> 0 | E74: 74 | F74: 51 | G74: -3.706234816 | H74: =[1]!XLSTAT_PDFNormal(F74,0,1) -> 0 | I74: 74 | K74: -2.829659321 | L74: =[1]!XLSTAT_PDFNormal(K74,0,1) -> 0.007281455767 | M74: 74 | O74: 2 | P74: 4
A75: 75 | B75: 51 | C75: 2.261889313 | D75: =[1]!XLSTAT_PDFNormal(B75,0,1) -> 0 | E75: 75 | F75: 51 | G75: -3.698074672 | H75: =[1]!XLSTAT_PDFNormal(F75,0,1) -> 0 | I75: 75 | K75: -2.813627257 | L75: =[1]!XLSTAT_PDFNormal(K75,0,1) -> 0.00761840916 | M75: 75 | O75: 3 | P75: 4
A76: 76 | B76: 2.261889313 | C76: 2.261889313 | D76: =[1]!XLSTAT_PDFNormal(B76,0,1) -> 0.03089965797 | E76: 76 | F76: -3.698074672 | G76: -3.698074672 | H76: =[1]!XLSTAT_PDFNormal(F76,0,1) -> 0.0004278162945 | I76: 76 | K76: -2.797595193 | L76: =[1]!XLSTAT_PDFNormal(K76,0,1) -> 0.00796890677 | M76: 76 | O76: 4 | P76: 4
A77: 77 | B77: 2.270049457 | C77: 2.270049457 | D77: =[1]!XLSTAT_PDFNormal(B77,0,1) -> 0.03033355357 | E77: 77 | F77: -3.689914528 | G77: -3.689914528 | H77: =[1]!XLSTAT_PDFNormal(F77,0,1) -> 0.0004409085185 | I77: 77 | K77: -2.781563128 | L77: =[1]!XLSTAT_PDFNormal(K77,0,1) -> 0.008333387425 | M77: 77 | O77: 5 | P77: 4
A78: 78 | B78: 51 | C78: 2.270049457 | D78: =[1]!XLSTAT_PDFNormal(B78,0,1) -> 0 | E78: 78 | F78: 51 | G78: -3.689914528 | H78: =[1]!XLSTAT_PDFNormal(F78,0,1) -> 0 | I78: 78 | K78: -2.765531064 | L78: =[1]!XLSTAT_PDFNormal(K78,0,1) -> 0.008712299056 | M78: 78 | O78: 6 | P78: 4
A79: 79 | B79: 51 | C79: 2.2782096 | D79: =[1]!XLSTAT_PDFNormal(B79,0,1) -> 0 | E79: 79 | F79: 51 | G79: -3.681754384 | H79: =[1]!XLSTAT_PDFNormal(F79,0,1) -> 0 | I79: 79 | K79: -2.749499 | L79: =[1]!XLSTAT_PDFNormal(K79,0,1) -> 0.009106098644 | M79: 79 | O79: 7 | P79: 4
A80: 80 | B80: 2.2782096 | C80: 2.2782096 | D80: =[1]!XLSTAT_PDFNormal(B80,0,1) -> 0.02977583784 | E80: 80 | F80: -3.681754384 | G80: -3.681754384 | H80: =[1]!XLSTAT_PDFNormal(F80,0,1) -> 0.0004543711398 | I80: 80 | K80: -2.733466936 | L80: =[1]!XLSTAT_PDFNormal(K80,0,1) -> 0.009515252148 | M80: 80 | O80: 8 | P80: 4
A81: 81 | B81: 2.286369744 | C81: 2.286369744 | D81: =[1]!XLSTAT_PDFNormal(B81,0,1) -> 0.02922643014 | E81: 81 | F81: -3.67359424 | G81: -3.67359424 | H81: =[1]!XLSTAT_PDFNormal(F81,0,1) -> 0.0004682136481 | I81: 81 | K81: -2.717434872 | L81: =[1]!XLSTAT_PDFNormal(K81,0,1) -> 0.009940234421 | M81: 81 | O81: 9 | P81: 4
A82: 82 | B82: 51 | C82: 2.286369744 | D82: =[1]!XLSTAT_PDFNormal(B82,0,1) -> 0 | E82: 82 | F82: 51 | G82: -3.67359424 | H82: =[1]!XLSTAT_PDFNormal(F82,0,1) -> 0 | I82: 82 | K82: -2.701402808 | L82: =[1]!XLSTAT_PDFNormal(K82,0,1) -> 0.01038152912 | M82: 82 | O82: 10 | P82: 4
A83: 83 | B83: 51 | C83: 2.294529889 | D83: =[1]!XLSTAT_PDFNormal(B83,0,1) -> 0 | E83: 83 | F83: 51 | G83: -3.665434096 | H83: =[1]!XLSTAT_PDFNormal(F83,0,1) -> 0 | I83: 83 | K83: -2.685370744 | L83: =[1]!XLSTAT_PDFNormal(K83,0,1) -> 0.01083962856 | M83: 83 | O83: 11 | P83: 4
A84: 84 | B84: 2.294529889 | C84: 2.294529889 | D84: =[1]!XLSTAT_PDFNormal(B84,0,1) -> 0.02868524965 | E84: 84 | F84: -3.665434096 | G84: -3.665434096 | H84: =[1]!XLSTAT_PDFNormal(F84,0,1) -> 0.0004824457449 | I84: 84 | K84: -2.66933868 | L84: =[1]!XLSTAT_PDFNormal(K84,0,1) -> 0.01131503364 | M84: 84 | O84: 12 | P84: 4
A85: 85 | B85: 2.302690033 | C85: 2.302690033 | D85: =[1]!XLSTAT_PDFNormal(B85,0,1) -> 0.02815221544 | E85: 85 | F85: -3.657273952 | G85: -3.657273952 | H85: =[1]!XLSTAT_PDFNormal(F85,0,1) -> 0.0004970773485 | I85: 85 | K85: -2.653306616 | L85: =[1]!XLSTAT_PDFNormal(K85,0,1) -> 0.01180825364 | M85: 85 | O85: 13 | P85: 4
A86: 86 | B86: 51 | C86: 2.302690033 | D86: =[1]!XLSTAT_PDFNormal(B86,0,1) -> 0 | E86: 86 | F86: 51 | G86: -3.657273952 | H86: =[1]!XLSTAT_PDFNormal(F86,0,1) -> 0 | I86: 86 | K86: -2.637274552 | L86: =[1]!XLSTAT_PDFNormal(K86,0,1) -> 0.01231980606 | M86: 86 | O86: 14 | P86: 4
A87: 87 | B87: 51 | C87: 2.310850177 | D87: =[1]!XLSTAT_PDFNormal(B87,0,1) -> 0 | E87: 87 | F87: 51 | G87: -3.649113808 | H87: =[1]!XLSTAT_PDFNormal(F87,0,1) -> 0 | I87: 87 | K87: -2.621242487 | L87: =[1]!XLSTAT_PDFNormal(K87,0,1) -> 0.01285021647 | M87: 87 | O87: 15 | P87: 4
A88: 88 | B88: 2.310850177 | C88: 2.310850177 | D88: =[1]!XLSTAT_PDFNormal(B88,0,1) -> 0.02762724647 | E88: 88 | F88: -3.649113808 | G88: -3.649113808 | H88: =[1]!XLSTAT_PDFNormal(F88,0,1) -> 0.000512118597 | I88: 88 | K88: -2.605210423 | L88: =[1]!XLSTAT_PDFNormal(K88,0,1) -> 0.01340001828 | M88: 88 | O88: 16 | P88: 4
A89: 89 | B89: 2.31901032 | C89: 2.31901032 | D89: =[1]!XLSTAT_PDFNormal(B89,0,1) -> 0.02711026158 | E89: 89 | F89: -3.640953664 | G89: -3.640953664 | H89: =[1]!XLSTAT_PDFNormal(F89,0,1) -> 0.0005275798525 | I89: 89 | K89: -2.589178359 | L89: =[1]!XLSTAT_PDFNormal(K89,0,1) -> 0.01396975252 | M89: 89 | O89: 17 | P89: 4
A90: 90 | B90: 51 | C90: 2.31901032 | D90: =[1]!XLSTAT_PDFNormal(B90,0,1) -> 0 | E90: 90 | F90: 51 | G90: -3.640953664 | H90: =[1]!XLSTAT_PDFNormal(F90,0,1) -> 0 | I90: 90 | K90: -2.573146295 | L90: =[1]!XLSTAT_PDFNormal(K90,0,1) -> 0.0145599676 | M90: 90 | O90: 18 | P90: 4
A91: 91 | B91: 51 | C91: 2.327170464 | D91: =[1]!XLSTAT_PDFNormal(B91,0,1) -> 0 | E91: 91 | F91: 51 | G91: -3.63279352 | H91: =[1]!XLSTAT_PDFNormal(F91,0,1) -> 0 | I91: 91 | K91: -2.557114231 | L91: =[1]!XLSTAT_PDFNormal(K91,0,1) -> 0.01517121907 | M91: 91 | O91: 19 | P91: 4
A92: 92 | B92: 2.327170464 | C92: 2.327170464 | D92: =[1]!XLSTAT_PDFNormal(B92,0,1) -> 0.02660117959 | E92: 92 | F92: -3.63279352 | G92: -3.63279352 | H92: =[1]!XLSTAT_PDFNormal(F92,0,1) -> 0.0005434717054 | I92: 92 | K92: -2.541082167 | L92: =[1]!XLSTAT_PDFNormal(K92,0,1) -> 0.01580406928 | M92: 92 | O92: 20 | P92: 4
A93: 93 | B93: 2.335330609 | C93: 2.335330609 | D93: =[1]!XLSTAT_PDFNormal(B93,0,1) -> 0.02609991925 | E93: 93 | F93: -3.624633376 | G93: -3.624633376 | H93: =[1]!XLSTAT_PDFNormal(F93,0,1) -> 0.000559804978 | I93: 93 | K93: -2.525050103 | L93: =[1]!XLSTAT_PDFNormal(K93,0,1) -> 0.01645908715 | M93: 93 | O93: 21 | P93: 4
A94: 94 | B94: 51 | C94: 2.335330609 | D94: =[1]!XLSTAT_PDFNormal(B94,0,1) -> 0 | E94: 94 | F94: 51 | G94: -3.624633376 | H94: =[1]!XLSTAT_PDFNormal(F94,0,1) -> 0 | I94: 94 | K94: -2.509018039 | L94: =[1]!XLSTAT_PDFNormal(K94,0,1) -> 0.01713684779 | M94: 94 | O94: 22 | P94: 4
A95: 95 | B95: 51 | C95: 2.343490753 | D95: =[1]!XLSTAT_PDFNormal(B95,0,1) -> 0 | E95: 95 | F95: 51 | G95: -3.616473232 | H95: =[1]!XLSTAT_PDFNormal(F95,0,1) -> 0 | I95: 95 | K95: -2.492985975 | L95: =[1]!XLSTAT_PDFNormal(K95,0,1) -> 0.01783793218 | M95: 95 | O95: 23 | P95: 4
A96: 96 | B96: 2.343490753 | C96: 2.343490753 | D96: =[1]!XLSTAT_PDFNormal(B96,0,1) -> 0.02560639928 | E96: 96 | F96: -3.616473232 | G96: -3.616473232 | H96: =[1]!XLSTAT_PDFNormal(F96,0,1) -> 0.0005765907287 | I96: 96 | K96: -2.47695391 | L96: =[1]!XLSTAT_PDFNormal(K96,0,1) -> 0.01856292679 | M96: 96 | O96: 24 | P96: 4
A97: 97 | B97: 2.351650896 | C97: 2.351650896 | D97: =[1]!XLSTAT_PDFNormal(B97,0,1) -> 0.02512053844 | E97: 97 | F97: -3.608313088 | G97: -3.608313088 | H97: =[1]!XLSTAT_PDFNormal(F97,0,1) -> 0.0005938402562 | I97: 97 | K97: -2.460921846 | L97: =[1]!XLSTAT_PDFNormal(K97,0,1) -> 0.01931242322 | M97: 97 | O97: 1 | P97: 5
A98: 98 | B98: 51 | C98: 2.351650896 | D98: =[1]!XLSTAT_PDFNormal(B98,0,1) -> 0 | E98: 98 | F98: 51 | G98: -3.608313088 | H98: =[1]!XLSTAT_PDFNormal(F98,0,1) -> 0 | I98: 98 | K98: -2.444889782 | L98: =[1]!XLSTAT_PDFNormal(K98,0,1) -> 0.02008701772 | M98: 98 | O98: 2 | P98: 5
A99: 99 | B99: 51 | C99: 2.35981104 | D99: =[1]!XLSTAT_PDFNormal(B99,0,1) -> 0 | E99: 99 | F99: 51 | G99: -3.600152944 | H99: =[1]!XLSTAT_PDFNormal(F99,0,1) -> 0 | I99: 99 | K99: -2.428857718 | L99: =[1]!XLSTAT_PDFNormal(K99,0,1) -> 0.02088731085 | M99: 99 | O99: 3 | P99: 5
A100: 100 | B100: 2.35981104 | C100: 2.35981104 | D100: =[1]!XLSTAT_PDFNormal(B100,0,1) -> 0.02464225549 | E100: 100 | F100: -3.600152944 | G100: -3.600152944 | H100: =[1]!XLSTAT_PDFNormal(F100,0,1) -> 0.0006115651035 | I100: 100 | K100: -2.412825654 | L100: =[1]!XLSTAT_PDFNormal(K100,0,1) -> 0.02171390692 | M100: 100 | O100: 4 | P100: 5
A101: 101 | B101: 2.367971184 | C101: 2.367971184 | D101: =[1]!XLSTAT_PDFNormal(B101,0,1) -> 0.02417146924 | E101: 101 | F101: -3.5919928 | G101: -3.5919928 | H101: =[1]!XLSTAT_PDFNormal(F101,0,1) -> 0.0006297770621 | I101: 101 | K101: -2.39679359 | L101: =[1]!XLSTAT_PDFNormal(K101,0,1) -> 0.02256741359 | M101: 101 | O101: 5 | P101: 5
A102: 102 | B102: 51 | C102: 2.367971184 | D102: =[1]!XLSTAT_PDFNormal(B102,0,1) -> 0 | E102: 102 | F102: 51 | G102: -3.5919928 | H102: =[1]!XLSTAT_PDFNormal(F102,0,1) -> 0 | I102: 102 | K102: -2.380761526 | L102: =[1]!XLSTAT_PDFNormal(K102,0,1) -> 0.02344844131 | M102: 102 | O102: 6 | P102: 5
A103: 103 | B103: 51 | C103: 2.376131329 | D103: =[1]!XLSTAT_PDFNormal(B103,0,1) -> 0 | E103: 103 | F103: 51 | G103: -3.583832656 | H103: =[1]!XLSTAT_PDFNormal(F103,0,1) -> 0 | I103: 103 | K103: -2.364729462 | L103: =[1]!XLSTAT_PDFNormal(K103,0,1) -> 0.02435760283 | M103: 103 | O103: 7 | P103: 5
A104: 104 | B104: 2.376131329 | C104: 2.376131329 | D104: =[1]!XLSTAT_PDFNormal(B104,0,1) -> 0.02370809855 | E104: 104 | F104: -3.583832656 | G104: -3.583832656 | H104: =[1]!XLSTAT_PDFNormal(F104,0,1) -> 0.0006484881766 | I104: 104 | K104: -2.348697398 | L104: =[1]!XLSTAT_PDFNormal(K104,0,1) -> 0.02529551261 | M104: 104 | O104: 8 | P104: 5
A105: 105 | B105: 2.384291473 | C105: 2.384291473 | D105: =[1]!XLSTAT_PDFNormal(B105,0,1) -> 0.02325206239 | E105: 105 | F105: -3.575672512 | G105: -3.575672512 | H105: =[1]!XLSTAT_PDFNormal(F105,0,1) -> 0.0006677107483 | I105: 105 | K105: -2.332665334 | L105: =[1]!XLSTAT_PDFNormal(K105,0,1) -> 0.02626278627 | M105: 105 | O105: 9 | P105: 5
A106: 106 | B106: 51 | C106: 2.384291473 | D106: =[1]!XLSTAT_PDFNormal(B106,0,1) -> 0 | E106: 106 | F106: 51 | G106: -3.575672512 | H106: =[1]!XLSTAT_PDFNormal(F106,0,1) -> 0 | I106: 106 | K106: -2.31663327 | L106: =[1]!XLSTAT_PDFNormal(K106,0,1) -> 0.02726003999 | M106: 106 | O106: 10 | P106: 5
A107: 107 | B107: 51 | C107: 2.392451616 | D107: =[1]!XLSTAT_PDFNormal(B107,0,1) -> 0 | E107: 107 | F107: 51 | G107: -3.567512368 | H107: =[1]!XLSTAT_PDFNormal(F107,0,1) -> 0 | I107: 107 | K107: -2.300601205 | L107: =[1]!XLSTAT_PDFNormal(K107,0,1) -> 0.02828788985 | M107: 107 | O107: 11 | P107: 5
A108: 108 | B108: 2.392451616 | C108: 2.392451616 | D108: =[1]!XLSTAT_PDFNormal(B108,0,1) -> 0.02280327981 | E108: 108 | F108: -3.567512368 | G108: -3.567512368 | H108: =[1]!XLSTAT_PDFNormal(F108,0,1) -> 0.0006874573401 | I108: 108 | K108: -2.284569141 | L108: =[1]!XLSTAT_PDFNormal(K108,0,1) -> 0.02934695125 | M108: 108 | O108: 12 | P108: 5
A109: 109 | B109: 2.40061176 | C109: 2.40061176 | D109: =[1]!XLSTAT_PDFNormal(B109,0,1) -> 0.02236167002 | E109: 109 | F109: -3.559352224 | G109: -3.559352224 | H109: =[1]!XLSTAT_PDFNormal(F109,0,1) -> 0.0007077407806 | I109: 109 | K109: -2.268537077 | L109: =[1]!XLSTAT_PDFNormal(K109,0,1) -> 0.03043783815 | M109: 109 | O109: 13 | P109: 5
A110: 110 | B110: 51 | C110: 2.40061176 | D110: =[1]!XLSTAT_PDFNormal(B110,0,1) -> 0 | E110: 110 | F110: 51 | G110: -3.559352224 | H110: =[1]!XLSTAT_PDFNormal(F110,0,1) -> 0 | I110: 110 | K110: -2.252505013 | L110: =[1]!XLSTAT_PDFNormal(K110,0,1) -> 0.03156116246 | M110: 110 | O110: 14 | P110: 5
A111: 111 | B111: 51 | C111: 2.408771905 | D111: =[1]!XLSTAT_PDFNormal(B111,0,1) -> 0 | E111: 111 | F111: 51 | G111: -3.55119208 | H111: =[1]!XLSTAT_PDFNormal(F111,0,1) -> 0 | I111: 111 | K111: -2.236472949 | L111: =[1]!XLSTAT_PDFNormal(K111,0,1) -> 0.03271753327 | M111: 111 | O111: 15 | P111: 5
A112: 112 | B112: 2.408771905 | C112: 2.408771905 | D112: =[1]!XLSTAT_PDFNormal(B112,0,1) -> 0.02192715234 | E112: 112 | F112: -3.55119208 | G112: -3.55119208 | H112: =[1]!XLSTAT_PDFNormal(F112,0,1) -> 0.0007285741684 | I112: 112 | K112: -2.220440885 | L112: =[1]!XLSTAT_PDFNormal(K112,0,1) -> 0.03390755613 | M112: 112 | O112: 16 | P112: 5
A113: 113 | B113: 2.416932049 | C113: 2.416932049 | D113: =[1]!XLSTAT_PDFNormal(B113,0,1) -> 0.02149964627 | E113: 113 | F113: -3.543031936 | G113: -3.543031936 | H113: =[1]!XLSTAT_PDFNormal(F113,0,1) -> 0.0007499708769 | I113: 113 | K113: -2.204408821 | L113: =[1]!XLSTAT_PDFNormal(K113,0,1) -> 0.03513183225 | M113: 113 | O113: 17 | P113: 5
A114: 114 | B114: 51 | C114: 2.416932049 | D114: =[1]!XLSTAT_PDFNormal(B114,0,1) -> 0 | E114: 114 | F114: 51 | G114: -3.543031936 | H114: =[1]!XLSTAT_PDFNormal(F114,0,1) -> 0 | I114: 114 | K114: -2.188376757 | L114: =[1]!XLSTAT_PDFNormal(K114,0,1) -> 0.03639095778 | M114: 114 | O114: 18 | P114: 5
A115: 115 | B115: 51 | C115: 2.425092193 | D115: =[1]!XLSTAT_PDFNormal(B115,0,1) -> 0 | E115: 115 | F115: 51 | G115: -3.534871792 | H115: =[1]!XLSTAT_PDFNormal(F115,0,1) -> 0 | I115: 115 | K115: -2.172344693 | L115: =[1]!XLSTAT_PDFNormal(K115,0,1) -> 0.03768552295 | M115: 115 | O115: 19 | P115: 5
A116: 116 | B116: 2.425092193 | C116: 2.425092193 | D116: =[1]!XLSTAT_PDFNormal(B116,0,1) -> 0.02107907147 | E116: 116 | F116: -3.534871792 | G116: -3.534871792 | H116: =[1]!XLSTAT_PDFNormal(F116,0,1) -> 0.0007719445583 | I116: 116 | K116: -2.156312629 | L116: =[1]!XLSTAT_PDFNormal(K116,0,1) -> 0.03901611125 | M116: 116 | O116: 20 | P116: 5
A117: 117 | B117: 2.433252336 | C117: 2.433252336 | D117: =[1]!XLSTAT_PDFNormal(B117,0,1) -> 0.02066534782 | E117: 117 | F117: -3.526711648 | G117: -3.526711648 | H117: =[1]!XLSTAT_PDFNormal(F117,0,1) -> 0.0007945091485 | I117: 117 | K117: -2.140280564 | L117: =[1]!XLSTAT_PDFNormal(K117,0,1) -> 0.0403832986 | M117: 117 | O117: 21 | P117: 5
A118: 118 | B118: 51 | C118: 2.433252336 | D118: =[1]!XLSTAT_PDFNormal(B118,0,1) -> 0 | E118: 118 | F118: 51 | G118: -3.526711648 | H118: =[1]!XLSTAT_PDFNormal(F118,0,1) -> 0 | I118: 118 | K118: -2.1242485 | L118: =[1]!XLSTAT_PDFNormal(K118,0,1) -> 0.04178765246 | M118: 118 | O118: 22 | P118: 5
A119: 119 | B119: 51 | C119: 2.44141248 | D119: =[1]!XLSTAT_PDFNormal(B119,0,1) -> 0 | E119: 119 | F119: 51 | G119: -3.518551504 | H119: =[1]!XLSTAT_PDFNormal(F119,0,1) -> 0 | I119: 119 | K119: -2.108216436 | L119: =[1]!XLSTAT_PDFNormal(K119,0,1) -> 0.04322973094 | M119: 119 | O119: 23 | P119: 5
A120: 120 | B120: 2.44141248 | C120: 2.44141248 | D120: =[1]!XLSTAT_PDFNormal(B120,0,1) -> 0.02025839541 | E120: 120 | F120: -3.518551504 | G120: -3.518551504 | H120: =[1]!XLSTAT_PDFNormal(F120,0,1) -> 0.0008176788713 | I120: 120 | K120: -2.092184372 | L120: =[1]!XLSTAT_PDFNormal(K120,0,1) -> 0.04471008191 | M120: 120 | O120: 24 | P120: 5
A121: 121 | B121: 2.449572625 | C121: 2.449572625 | D121: =[1]!XLSTAT_PDFNormal(B121,0,1) -> 0.01985813455 | E121: 121 | F121: -3.51039136 | G121: -3.51039136 | H121: =[1]!XLSTAT_PDFNormal(F121,0,1) -> 0.0008414682432 | I121: 121 | K121: -2.076152308 | L121: =[1]!XLSTAT_PDFNormal(K121,0,1) -> 0.04622924205 | M121: 121 | O121: 1 | P121: 6
A122: 122 | B122: 51 | C122: 2.449572625 | D122: =[1]!XLSTAT_PDFNormal(B122,0,1) -> 0 | E122: 122 | F122: 51 | G122: -3.51039136 | H122: =[1]!XLSTAT_PDFNormal(F122,0,1) -> 0 | I122: 122 | K122: -2.060120244 | L122: =[1]!XLSTAT_PDFNormal(K122,0,1) -> 0.04778773593 | M122: 122 | O122: 2 | P122: 6
A123: 123 | B123: 51 | C123: 2.457732769 | D123: =[1]!XLSTAT_PDFNormal(B123,0,1) -> 0 | E123: 123 | F123: 51 | G123: -3.502231216 | H123: =[1]!XLSTAT_PDFNormal(F123,0,1) -> 0 | I123: 123 | K123: -2.04408818 | L123: =[1]!XLSTAT_PDFNormal(K123,0,1) -> 0.04938607503 | M123: 123 | O123: 3 | P123: 6
A124: 124 | B124: 2.457732769 | C124: 2.457732769 | D124: =[1]!XLSTAT_PDFNormal(B124,0,1) -> 0.01946448582 | E124: 124 | F124: -3.502231216 | G124: -3.502231216 | H124: =[1]!XLSTAT_PDFNormal(F124,0,1) -> 0.000865892078 | I124: 124 | K124: -2.028056116 | L124: =[1]!XLSTAT_PDFNormal(K124,0,1) -> 0.05102475676 | M124: 124 | O124: 4 | P124: 6
A125: 125 | B125: 2.465892913 | C125: 2.465892913 | D125: =[1]!XLSTAT_PDFNormal(B125,0,1) -> 0.01907737004 | E125: 125 | F125: -3.494071072 | G125: -3.494071072 | H125: =[1]!XLSTAT_PDFNormal(F125,0,1) -> 0.0008909654915 | I125: 125 | K125: -2.012024052 | L125: =[1]!XLSTAT_PDFNormal(K125,0,1) -> 0.0527042635 | M125: 125 | O125: 5 | P125: 6
A126: 126 | B126: 51 | C126: 2.465892913 | D126: =[1]!XLSTAT_PDFNormal(B126,0,1) -> 0 | E126: 126 | F126: 51 | G126: -3.494071072 | H126: =[1]!XLSTAT_PDFNormal(F126,0,1) -> 0 | I126: 126 | K126: -1.995991988 | L126: =[1]!XLSTAT_PDFNormal(K126,0,1) -> 0.05442506159 | M126: 126 | O126: 6 | P126: 6
A127: 127 | B127: 51 | C127: 2.474053056 | D127: =[1]!XLSTAT_PDFNormal(B127,0,1) -> 0 | E127: 127 | F127: 51 | G127: -3.485910928 | H127: =[1]!XLSTAT_PDFNormal(F127,0,1) -> 0 | I127: 127 | K127: -1.979959923 | L127: =[1]!XLSTAT_PDFNormal(K127,0,1) -> 0.05618760026 | M127: 127 | O127: 7 | P127: 6
A128: 128 | B128: 2.474053056 | C128: 2.474053056 | D128: =[1]!XLSTAT_PDFNormal(B128,0,1) -> 0.01869670832 | E128: 128 | F128: -3.485910928 | G128: -3.485910928 | H128: =[1]!XLSTAT_PDFNormal(F128,0,1) -> 0.0009167039059 | I128: 128 | K128: -1.963927859 | L128: =[1]!XLSTAT_PDFNormal(K128,0,1) -> 0.05799231069 | M128: 128 | O128: 8 | P128: 6
A129: 129 | B129: =IF(-1^(INT(A129/2)+2)>0,1.9599639845+2*INT(A129/2-1/2)*0.004080072,51) -> 2.4822132 | C129: =1.9599639845+2*INT(A129/2-1/2)*0.004080072 -> 2.4822132 | D129: =[1]!XLSTAT_PDFNormal(B129,0,1) -> 0.01832242207 | E129: 129 | F129: =IF(-1^(INT(E129/2)+2)>0,-4+2*INT(E129/2-1/2)*0.004080072,51) -> -3.477750784 | G129: =-4+2*INT(E129/2-1/2)*0.004080072 -> -3.477750784 | H129: =[1]!XLSTAT_PDFNormal(F129,0,1) -> 0.0009431230547 | I129: 129 | K129: =-4+(I129-1)*0.0160320641 -> -1.947895795 | L129: =[1]!XLSTAT_PDFNormal(K129,0,1) -> 0.05983960492 | M129: 129 | O129: =M129-24*INT((-1/2+M129)/24) -> 9 | P129: =1+INT((M129-1/2)/24) -> 6
A130: 130 | B130: 51 | C130: 2.4822132 | D130: =[1]!XLSTAT_PDFNormal(B130,0,1) -> 0 | E130: 130 | F130: 51 | G130: -3.477750784 | H130: =[1]!XLSTAT_PDFNormal(F130,0,1) -> 0 | I130: 130 | K130: -1.931863731 | L130: =[1]!XLSTAT_PDFNormal(K130,0,1) -> 0.06172987479 | M130: 130 | O130: 10 | P130: 6
A131: 131 | B131: 51 | C131: 2.490373345 | D131: =[1]!XLSTAT_PDFNormal(B131,0,1) -> 0 | E131: 131 | F131: 51 | G131: -3.46959064 | H131: =[1]!XLSTAT_PDFNormal(F131,0,1) -> 0 | I131: 131 | K131: -1.915831667 | L131: =[1]!XLSTAT_PDFNormal(K131,0,1) -> 0.06366349094 | M131: 131 | O131: 11 | P131: 6
A132: 132 | B132: 2.490373345 | C132: 2.490373345 | D132: =[1]!XLSTAT_PDFNormal(B132,0,1) -> 0.017954433 | E132: 132 | F132: -3.46959064 | G132: -3.46959064 | H132: =[1]!XLSTAT_PDFNormal(F132,0,1) -> 0.0009702389877 | I132: 132 | K132: -1.899799603 | L132: =[1]!XLSTAT_PDFNormal(K132,0,1) -> 0.06564080173 | M132: 132 | O132: 12 | P132: 6
A133: 133 | B133: 2.498533489 | C133: 2.498533489 | D133: =[1]!XLSTAT_PDFNormal(B133,0,1) -> 0.01759266316 | E133: 133 | F133: -3.461430496 | G133: -3.461430496 | H133: =[1]!XLSTAT_PDFNormal(F133,0,1) -> 0.000998068075 | I133: 133 | K133: -1.883767539 | L133: =[1]!XLSTAT_PDFNormal(K133,0,1) -> 0.06766213216 | M133: 133 | O133: 13 | P133: 6
A134: 134 | B134: 51 | C134: 2.498533489 | D134: =[1]!XLSTAT_PDFNormal(B134,0,1) -> 0 | E134: 134 | F134: 51 | G134: -3.461430496 | H134: =[1]!XLSTAT_PDFNormal(F134,0,1) -> 0 | I134: 134 | K134: -1.867735475 | L134: =[1]!XLSTAT_PDFNormal(K134,0,1) -> 0.06972778282 | M134: 134 | O134: 14 | P134: 6
A135: 135 | B135: 51 | C135: 2.506693633 | D135: =[1]!XLSTAT_PDFNormal(B135,0,1) -> 0 | E135: 135 | F135: 51 | G135: -3.453270352 | H135: =[1]!XLSTAT_PDFNormal(F135,0,1) -> 0 | I135: 135 | K135: -1.851703411 | L135: =[1]!XLSTAT_PDFNormal(K135,0,1) -> 0.07183802884 | M135: 135 | O135: 15 | P135: 6
A136: 136 | B136: 2.506693633 | C136: 2.506693633 | D136: =[1]!XLSTAT_PDFNormal(B136,0,1) -> 0.01723703492 | E136: 136 | F136: -3.453270352 | G136: -3.453270352 | H136: =[1]!XLSTAT_PDFNormal(F136,0,1) -> 0.001026627013 | I136: 136 | K136: -1.835671346 | L136: =[1]!XLSTAT_PDFNormal(K136,0,1) -> 0.07399311879 | M136: 136 | O136: 16 | P136: 6
A137: 137 | B137: 2.514853776 | C137: 2.514853776 | D137: =[1]!XLSTAT_PDFNormal(B137,0,1) -> 0.01688747102 | E137: 137 | F137: -3.445110208 | G137: -3.445110208 | H137: =[1]!XLSTAT_PDFNormal(F137,0,1) -> 0.001055932828 | I137: 137 | K137: -1.819639282 | L137: =[1]!XLSTAT_PDFNormal(K137,0,1) -> 0.07619327367 | M137: 137 | O137: 17 | P137: 6
A138: 138 | B138: 51 | C138: 2.514853776 | D138: =[1]!XLSTAT_PDFNormal(B138,0,1) -> 0 | E138: 138 | F138: 51 | G138: -3.445110208 | H138: =[1]!XLSTAT_PDFNormal(F138,0,1) -> 0 | I138: 138 | K138: -1.803607218 | L138: =[1]!XLSTAT_PDFNormal(K138,0,1) -> 0.07843868579 | M138: 138 | O138: 18 | P138: 6
A139: 139 | B139: 51 | C139: 2.52301392 | D139: =[1]!XLSTAT_PDFNormal(B139,0,1) -> 0 | E139: 139 | F139: 51 | G139: -3.436950064 | H139: =[1]!XLSTAT_PDFNormal(F139,0,1) -> 0 | I139: 139 | K139: -1.787575154 | L139: =[1]!XLSTAT_PDFNormal(K139,0,1) -> 0.08072951775 | M139: 139 | O139: 19 | P139: 6
A140: 140 | B140: 2.52301392 | C140: 2.52301392 | D140: =[1]!XLSTAT_PDFNormal(B140,0,1) -> 0.01654389455 | E140: 140 | F140: -3.436950064 | G140: -3.436950064 | H140: =[1]!XLSTAT_PDFNormal(F140,0,1) -> 0.001086002881 | I140: 140 | K140: -1.77154309 | L140: =[1]!XLSTAT_PDFNormal(K140,0,1) -> 0.08306590142 | M140: 140 | O140: 20 | P140: 6
A141: 141 | B141: 2.531174065 | C141: 2.531174065 | D141: =[1]!XLSTAT_PDFNormal(B141,0,1) -> 0.01620622898 | E141: 141 | F141: -3.42878992 | G141: -3.42878992 | H141: =[1]!XLSTAT_PDFNormal(F141,0,1) -> 0.001116854875 | I141: 141 | K141: -1.755511026 | L141: =[1]!XLSTAT_PDFNormal(K141,0,1) -> 0.08544793684 | M141: 141 | O141: 21 | P141: 6
A142: 142 | B142: 51 | C142: 2.531174065 | D142: =[1]!XLSTAT_PDFNormal(B142,0,1) -> 0 | E142: 142 | F142: 51 | G142: -3.42878992 | H142: =[1]!XLSTAT_PDFNormal(F142,0,1) -> 0 | I142: 142 | K142: -1.739478962 | L142: =[1]!XLSTAT_PDFNormal(K142,0,1) -> 0.08787569125 | M142: 142 | O142: 22 | P142: 6
A143: 143 | B143: 51 | C143: 2.539334209 | D143: =[1]!XLSTAT_PDFNormal(B143,0,1) -> 0 | E143: 143 | F143: 51 | G143: -3.420629776 | H143: =[1]!XLSTAT_PDFNormal(F143,0,1) -> 0 | I143: 143 | K143: -1.723446898 | L143: =[1]!XLSTAT_PDFNormal(K143,0,1) -> 0.09034919805 | M143: 143 | O143: 23 | P143: 6
A144: 144 | B144: 2.539334209 | C144: 2.539334209 | D144: =[1]!XLSTAT_PDFNormal(B144,0,1) -> 0.01587439819 | E144: 144 | F144: -3.420629776 | G144: -3.420629776 | H144: =[1]!XLSTAT_PDFNormal(F144,0,1) -> 0.001148506857 | I144: 144 | K144: -1.707414834 | L144: =[1]!XLSTAT_PDFNormal(K144,0,1) -> 0.09286845585 | M144: 144 | O144: 24 | P144: 6
A145: 145 | B145: 2.547494353 | C145: 2.547494353 | D145: =[1]!XLSTAT_PDFNormal(B145,0,1) -> 0.01554832643 | E145: 145 | F145: -3.412469632 | G145: -3.412469632 | H145: =[1]!XLSTAT_PDFNormal(F145,0,1) -> 0.001180977223 | I145: 145 | K145: -1.69138277 | L145: =[1]!XLSTAT_PDFNormal(K145,0,1) -> 0.0954334274 | M145: 145 | O145: 1 | P145: 7
A146: 146 | B146: 51 | C146: 2.547494353 | D146: =[1]!XLSTAT_PDFNormal(B146,0,1) -> 0 | E146: 146 | F146: 51 | G146: -3.412469632 | H146: =[1]!XLSTAT_PDFNormal(F146,0,1) -> 0 | I146: 146 | K146: -1.675350706 | L146: =[1]!XLSTAT_PDFNormal(K146,0,1) -> 0.09804403873 | M146: 146 | O146: 2 | P146: 7
A147: 147 | B147: 51 | C147: 2.555654496 | D147: =[1]!XLSTAT_PDFNormal(B147,0,1) -> 0 | E147: 147 | F147: 51 | G147: -3.404309488 | H147: =[1]!XLSTAT_PDFNormal(F147,0,1) -> 0 | I147: 147 | K147: -1.659318641 | L147: =[1]!XLSTAT_PDFNormal(K147,0,1) -> 0.1007001782 | M147: 147 | O147: 3 | P147: 7
A148: 148 | B148: 2.555654496 | C148: 2.555654496 | D148: =[1]!XLSTAT_PDFNormal(B148,0,1) -> 0.0152279384 | E148: 148 | F148: -3.404309488 | G148: -3.404309488 | H148: =[1]!XLSTAT_PDFNormal(F148,0,1) -> 0.001214284726 | I148: 148 | K148: -1.643286577 | L148: =[1]!XLSTAT_PDFNormal(K148,0,1) -> 0.1034016954 | M148: 148 | O148: 4 | P148: 7
A149: 149 | B149: 2.56381464 | C149: 2.56381464 | D149: =[1]!XLSTAT_PDFNormal(B149,0,1) -> 0.01491315919 | E149: 149 | F149: -3.396149344 | G149: -3.396149344 | H149: =[1]!XLSTAT_PDFNormal(F149,0,1) -> 0.001248448478 | I149: 149 | K149: -1.627254513 | L149: =[1]!XLSTAT_PDFNormal(K149,0,1) -> 0.1061484006 | M149: 149 | O149: 5 | P149: 7
A150: 150 | B150: 51 | C150: 2.56381464 | D150: =[1]!XLSTAT_PDFNormal(B150,0,1) -> 0 | E150: 150 | F150: 51 | G150: -3.396149344 | H150: =[1]!XLSTAT_PDFNormal(F150,0,1) -> 0 | I150: 150 | K150: -1.611222449 | L150: =[1]!XLSTAT_PDFNormal(K150,0,1) -> 0.1089400636 | M150: 150 | O150: 6 | P150: 7
A151: 151 | B151: 51 | C151: 2.571974785 | D151: =[1]!XLSTAT_PDFNormal(B151,0,1) -> 0 | E151: 151 | F151: 51 | G151: -3.3879892 | H151: =[1]!XLSTAT_PDFNormal(F151,0,1) -> 0 | I151: 151 | K151: -1.595190385 | L151: =[1]!XLSTAT_PDFNormal(K151,0,1) -> 0.111776413 | M151: 151 | O151: 7 | P151: 7
A152: 152 | B152: 2.571974785 | C152: 2.571974785 | D152: =[1]!XLSTAT_PDFNormal(B152,0,1) -> 0.01460391436 | E152: 152 | F152: -3.3879892 | G152: -3.3879892 | H152: =[1]!XLSTAT_PDFNormal(F152,0,1) -> 0.001283487954 | I152: 152 | K152: -1.579158321 | L152: =[1]!XLSTAT_PDFNormal(K152,0,1) -> 0.1146571355 | M152: 152 | O152: 8 | P152: 7
A153: 153 | B153: 2.580134929 | C153: 2.580134929 | D153: =[1]!XLSTAT_PDFNormal(B153,0,1) -> 0.0143001299 | E153: 153 | F153: -3.379829056 | G153: -3.379829056 | H153: =[1]!XLSTAT_PDFNormal(F153,0,1) -> 0.001319423003 | I153: 153 | K153: -1.563126257 | L153: =[1]!XLSTAT_PDFNormal(K153,0,1) -> 0.1175818749 | M153: 153 | O153: 9 | P153: 7
A154: 154 | B154: 51 | C154: 2.580134929 | D154: =[1]!XLSTAT_PDFNormal(B154,0,1) -> 0 | E154: 154 | F154: 51 | G154: -3.379829056 | H154: =[1]!XLSTAT_PDFNormal(F154,0,1) -> 0 | I154: 154 | K154: -1.547094193 | L154: =[1]!XLSTAT_PDFNormal(K154,0,1) -> 0.1205502315 | M154: 154 | O154: 10 | P154: 7
A155: 155 | B155: 51 | C155: 2.588295073 | D155: =[1]!XLSTAT_PDFNormal(B155,0,1) -> 0 | E155: 155 | F155: 51 | G155: -3.371668912 | H155: =[1]!XLSTAT_PDFNormal(F155,0,1) -> 0 | I155: 155 | K155: -1.531062129 | L155: =[1]!XLSTAT_PDFNormal(K155,0,1) -> 0.1235617616 | M155: 155 | O155: 11 | P155: 7
A156: 156 | B156: 2.588295073 | C156: 2.588295073 | D156: =[1]!XLSTAT_PDFNormal(B156,0,1) -> 0.01400173226 | E156: 156 | F156: -3.371668912 | G156: -3.371668912 | H156: =[1]!XLSTAT_PDFNormal(F156,0,1) -> 0.001356273845 | I156: 156 | K156: -1.515030064 | L156: =[1]!XLSTAT_PDFNormal(K156,0,1) -> 0.1266159764 | M156: 156 | O156: 12 | P156: 7
A157: 157 | B157: 2.596455216 | C157: 2.596455216 | D157: =[1]!XLSTAT_PDFNormal(B157,0,1) -> 0.01370864835 | E157: 157 | F157: -3.363508768 | G157: -3.363508768 | H157: =[1]!XLSTAT_PDFNormal(F157,0,1) -> 0.001394061083 | I157: 157 | K157: -1.498998 | L157: =[1]!XLSTAT_PDFNormal(K157,0,1) -> 0.1297123418 | M157: 157 | O157: 13 | P157: 7
A158: 158 | B158: 51 | C158: 2.596455216 | D158: =[1]!XLSTAT_PDFNormal(B158,0,1) -> 0 | E158: 158 | F158: 51 | G158: -3.363508768 | H158: =[1]!XLSTAT_PDFNormal(F158,0,1) -> 0 | I158: 158 | K158: -1.482965936 | L158: =[1]!XLSTAT_PDFNormal(K158,0,1) -> 0.1328502776 | M158: 158 | O158: 14 | P158: 7
A159: 159 | B159: 51 | C159: 2.60461536 | D159: =[1]!XLSTAT_PDFNormal(B159,0,1) -> 0 | E159: 159 | F159: 51 | G159: -3.355348624 | H159: =[1]!XLSTAT_PDFNormal(F159,0,1) -> 0 | I159: 159 | K159: -1.466933872 | L159: =[1]!XLSTAT_PDFNormal(K159,0,1) -> 0.1360291571 | M159: 159 | O159: 15 | P159: 7
A160: 160 | B160: 2.60461536 | C160: 2.60461536 | D160: =[1]!XLSTAT_PDFNormal(B160,0,1) -> 0.01342080558 | E160: 160 | F160: -3.355348624 | G160: -3.355348624 | H160: =[1]!XLSTAT_PDFNormal(F160,0,1) -> 0.001432805702 | I160: 160 | K160: -1.450901808 | L160: =[1]!XLSTAT_PDFNormal(K160,0,1) -> 0.1392483065 | M160: 160 | O160: 16 | P160: 7
A161: 161 | B161: 2.612775505 | C161: 2.612775505 | D161: =[1]!XLSTAT_PDFNormal(B161,0,1) -> 0.01313813181 | E161: 161 | F161: -3.34718848 | G161: -3.34718848 | H161: =[1]!XLSTAT_PDFNormal(F161,0,1) -> 0.001472529081 | I161: 161 | K161: -1.434869744 | L161: =[1]!XLSTAT_PDFNormal(K161,0,1) -> 0.1425070048 | M161: 161 | O161: 17 | P161: 7
A162: 162 | B162: 51 | C162: 2.612775505 | D162: =[1]!XLSTAT_PDFNormal(B162,0,1) -> 0 | E162: 162 | F162: 51 | G162: -3.34718848 | H162: =[1]!XLSTAT_PDFNormal(F162,0,1) -> 0 | I162: 162 | K162: -1.41883768 | L162: =[1]!XLSTAT_PDFNormal(K162,0,1) -> 0.1458044827 | M162: 162 | O162: 18 | P162: 7
A163: 163 | B163: 51 | C163: 2.620935649 | D163: =[1]!XLSTAT_PDFNormal(B163,0,1) -> 0 | E163: 163 | F163: 51 | G163: -3.339028336 | H163: =[1]!XLSTAT_PDFNormal(F163,0,1) -> 0 | I163: 163 | K163: -1.402805616 | L163: =[1]!XLSTAT_PDFNormal(K163,0,1) -> 0.1491399233 | M163: 163 | O163: 19 | P163: 7
A164: 164 | B164: 2.620935649 | C164: 2.620935649 | D164: =[1]!XLSTAT_PDFNormal(B164,0,1) -> 0.01286055544 | E164: 164 | F164: -3.339028336 | G164: -3.339028336 | H164: =[1]!XLSTAT_PDFNormal(F164,0,1) -> 0.00151325299 | I164: 164 | K164: -1.386773552 | L164: =[1]!XLSTAT_PDFNormal(K164,0,1) -> 0.152512461 | M164: 164 | O164: 20 | P164: 7
A165: 165 | B165: 2.629095793 | C165: 2.629095793 | D165: =[1]!XLSTAT_PDFNormal(B165,0,1) -> 0.01258800533 | E165: 165 | F165: -3.330868192 | G165: -3.330868192 | H165: =[1]!XLSTAT_PDFNormal(F165,0,1) -> 0.001554999602 | I165: 165 | K165: -1.370741488 | L165: =[1]!XLSTAT_PDFNormal(K165,0,1) -> 0.1559211815 | M165: 165 | O165: 21 | P165: 7
A166: 166 | B166: 51 | C166: 2.629095793 | D166: =[1]!XLSTAT_PDFNormal(B166,0,1) -> 0 | E166: 166 | F166: 51 | G166: -3.330868192 | H166: =[1]!XLSTAT_PDFNormal(F166,0,1) -> 0 | I166: 166 | K166: -1.354709424 | L166: =[1]!XLSTAT_PDFNormal(K166,0,1) -> 0.1593651221 | M166: 166 | O166: 22 | P166: 7
A167: 167 | B167: 51 | C167: 2.637255936 | D167: =[1]!XLSTAT_PDFNormal(B167,0,1) -> 0 | E167: 167 | F167: 51 | G167: -3.322708048 | H167: =[1]!XLSTAT_PDFNormal(F167,0,1) -> 0 | I167: 167 | K167: -1.338677359 | L167: =[1]!XLSTAT_PDFNormal(K167,0,1) -> 0.1628432708 | M167: 167 | O167: 23 | P167: 7
A168: 168 | B168: 2.637255936 | C168: 2.637255936 | D168: =[1]!XLSTAT_PDFNormal(B168,0,1) -> 0.01232041088 | E168: 168 | F168: -3.322708048 | G168: -3.322708048 | H168: =[1]!XLSTAT_PDFNormal(F168,0,1) -> 0.001597791494 | I168: 168 | K168: -1.322645295 | L168: =[1]!XLSTAT_PDFNormal(K168,0,1) -> 0.1663545672 | M168: 168 | O168: 24 | P168: 7
A169: 169 | B169: 2.64541608 | C169: 2.64541608 | D169: =[1]!XLSTAT_PDFNormal(B169,0,1) -> 0.012057702 | E169: 169 | F169: -3.314547904 | G169: -3.314547904 | H169: =[1]!XLSTAT_PDFNormal(F169,0,1) -> 0.001641651655 | I169: 169 | K169: -1.306613231 | L169: =[1]!XLSTAT_PDFNormal(K169,0,1) -> 0.1698979016 | M169: 169 | O169: 1 | P169: 8
A170: 170 | B170: 51 | C170: 2.64541608 | D170: =[1]!XLSTAT_PDFNormal(B170,0,1) -> 0 | E170: 170 | F170: 51 | G170: -3.314547904 | H170: =[1]!XLSTAT_PDFNormal(F170,0,1) -> 0 | I170: 170 | K170: -1.290581167 | L170: =[1]!XLSTAT_PDFNormal(K170,0,1) -> 0.1734721159 | M170: 170 | O170: 2 | P170: 8
A171: 171 | B171: 51 | C171: 2.653576225 | D171: =[1]!XLSTAT_PDFNormal(B171,0,1) -> 0 | E171: 171 | F171: 51 | G171: -3.30638776 | H171: =[1]!XLSTAT_PDFNormal(F171,0,1) -> 0 | I171: 171 | K171: -1.274549103 | L171: =[1]!XLSTAT_PDFNormal(K171,0,1) -> 0.1770760033 | M171: 171 | O171: 3 | P171: 8
A172: 172 | B172: 2.653576225 | C172: 2.653576225 | D172: =[1]!XLSTAT_PDFNormal(B172,0,1) -> 0.01179980913 | E172: 172 | F172: -3.30638776 | G172: -3.30638776 | H172: =[1]!XLSTAT_PDFNormal(F172,0,1) -> 0.001686603488 | I172: 172 | K172: -1.258517039 | L172: =[1]!XLSTAT_PDFNormal(K172,0,1) -> 0.1807083087 | M172: 172 | O172: 4 | P172: 8
A173: 173 | B173: 2.661736369 | C173: 2.661736369 | D173: =[1]!XLSTAT_PDFNormal(B173,0,1) -> 0.01154666324 | E173: 173 | F173: -3.298227616 | G173: -3.298227616 | H173: =[1]!XLSTAT_PDFNormal(F173,0,1) -> 0.001732670816 | I173: 173 | K173: -1.242484975 | L173: =[1]!XLSTAT_PDFNormal(K173,0,1) -> 0.1843677288 | M173: 173 | O173: 5 | P173: 8
A174: 174 | B174: 51 | C174: 2.661736369 | D174: =[1]!XLSTAT_PDFNormal(B174,0,1) -> 0 | E174: 174 | F174: 51 | G174: -3.298227616 | H174: =[1]!XLSTAT_PDFNormal(F174,0,1) -> 0 | I174: 174 | K174: -1.226452911 | L174: =[1]!XLSTAT_PDFNormal(K174,0,1) -> 0.1880529129 | M174: 174 | O174: 6 | P174: 8
A175: 175 | B175: 51 | C175: 2.669896513 | D175: =[1]!XLSTAT_PDFNormal(B175,0,1) -> 0 | E175: 175 | F175: 51 | G175: -3.290067472 | H175: =[1]!XLSTAT_PDFNormal(F175,0,1) -> 0 | I175: 175 | K175: -1.210420847 | L175: =[1]!XLSTAT_PDFNormal(K175,0,1) -> 0.1917624627 | M175: 175 | O175: 7 | P175: 8
A176: 176 | B176: 2.669896513 | C176: 2.669896513 | D176: =[1]!XLSTAT_PDFNormal(B176,0,1) -> 0.01129819583 | E176: 176 | F176: -3.290067472 | G176: -3.290067472 | H176: =[1]!XLSTAT_PDFNormal(F176,0,1) -> 0.00177987789 | I176: 176 | K176: -1.194388782 | L176: =[1]!XLSTAT_PDFNormal(K176,0,1) -> 0.1954949336 | M176: 176 | O176: 8 | P176: 8
A177: 177 | B177: 2.678056656 | C177: 2.678056656 | D177: =[1]!XLSTAT_PDFNormal(B177,0,1) -> 0.01105433897 | E177: 177 | F177: -3.281907328 | G177: -3.281907328 | H177: =[1]!XLSTAT_PDFNormal(F177,0,1) -> 0.001828249389 | I177: 177 | K177: -1.178356718 | L177: =[1]!XLSTAT_PDFNormal(K177,0,1) -> 0.1992488344 | M177: 177 | O177: 9 | P177: 8
A178: 178 | B178: 51 | C178: 2.678056656 | D178: =[1]!XLSTAT_PDFNormal(B178,0,1) -> 0 | E178: 178 | F178: 51 | G178: -3.281907328 | H178: =[1]!XLSTAT_PDFNormal(F178,0,1) -> 0 | I178: 178 | K178: -1.162324654 | L178: =[1]!XLSTAT_PDFNormal(K178,0,1) -> 0.2030226288 | M178: 178 | O178: 10 | P178: 8
A179: 179 | B179: 51 | C179: 2.686216801 | D179: =[1]!XLSTAT_PDFNormal(B179,0,1) -> 0 | E179: 179 | F179: 51 | G179: -3.273747184 | H179: =[1]!XLSTAT_PDFNormal(F179,0,1) -> 0 | I179: 179 | K179: -1.14629259 | L179: =[1]!XLSTAT_PDFNormal(K179,0,1) -> 0.2068147354 | M179: 179 | O179: 11 | P179: 8
A180: 180 | B180: 2.686216801 | C180: 2.686216801 | D180: =[1]!XLSTAT_PDFNormal(B180,0,1) -> 0.01081502527 | E180: 180 | F180: -3.273747184 | G180: -3.273747184 | H180: =[1]!XLSTAT_PDFNormal(F180,0,1) -> 0.00187781043 | I180: 180 | K180: -1.130260526 | L180: =[1]!XLSTAT_PDFNormal(K180,0,1) -> 0.2106235291 | M180: 180 | O180: 12 | P180: 8
A181: 181 | B181: 2.694376945 | C181: 2.694376945 | D181: =[1]!XLSTAT_PDFNormal(B181,0,1) -> 0.0105801879 | E181: 181 | F181: -3.26558704 | G181: -3.26558704 | H181: =[1]!XLSTAT_PDFNormal(F181,0,1) -> 0.001928586571 | I181: 181 | K181: -1.114228462 | L181: =[1]!XLSTAT_PDFNormal(K181,0,1) -> 0.2144473413 | M181: 181 | O181: 13 | P181: 8
A182: 182 | B182: 51 | C182: 2.694376945 | D182: =[1]!XLSTAT_PDFNormal(B182,0,1) -> 0 | E182: 182 | F182: 51 | G182: -3.26558704 | H182: =[1]!XLSTAT_PDFNormal(F182,0,1) -> 0 | I182: 182 | K182: -1.098196398 | L182: =[1]!XLSTAT_PDFNormal(K182,0,1) -> 0.2182844615 | M182: 182 | O182: 14 | P182: 8
A183: 183 | B183: 51 | C183: 2.702537089 | D183: =[1]!XLSTAT_PDFNormal(B183,0,1) -> 0 | E183: 183 | F183: 51 | G183: -3.257426896 | H183: =[1]!XLSTAT_PDFNormal(F183,0,1) -> 0 | I183: 183 | K183: -1.082164334 | L183: =[1]!XLSTAT_PDFNormal(K183,0,1) -> 0.2221331381 | M183: 183 | O183: 15 | P183: 8
A184: 184 | B184: 2.702537089 | C184: 2.702537089 | D184: =[1]!XLSTAT_PDFNormal(B184,0,1) -> 0.01034976059 | E184: 184 | F184: -3.257426896 | G184: -3.257426896 | H184: =[1]!XLSTAT_PDFNormal(F184,0,1) -> 0.001980603813 | I184: 184 | K184: -1.06613227 | L184: =[1]!XLSTAT_PDFNormal(K184,0,1) -> 0.225991579 | M184: 184 | O184: 16 | P184: 8
A185: 185 | B185: 2.710697233 | C185: 2.710697233 | D185: =[1]!XLSTAT_PDFNormal(B185,0,1) -> 0.01012367766 | E185: 185 | F185: -3.249266752 | G185: -3.249266752 | H185: =[1]!XLSTAT_PDFNormal(F185,0,1) -> 0.002033888612 | I185: 185 | K185: -1.050100206 | L185: =[1]!XLSTAT_PDFNormal(K185,0,1) -> 0.2298579536 | M185: 185 | O185: 17 | P185: 8
A186: 186 | B186: 51 | C186: 2.710697233 | D186: =[1]!XLSTAT_PDFNormal(B186,0,1) -> 0 | E186: 186 | F186: 51 | G186: -3.249266752 | H186: =[1]!XLSTAT_PDFNormal(F186,0,1) -> 0 | I186: 186 | K186: -1.034068142 | L186: =[1]!XLSTAT_PDFNormal(K186,0,1) -> 0.2337303932 | M186: 186 | O186: 18 | P186: 8
A187: 187 | B187: 51 | C187: 2.718857376 | D187: =[1]!XLSTAT_PDFNormal(B187,0,1) -> 0 | E187: 187 | F187: 51 | G187: -3.241106608 | H187: =[1]!XLSTAT_PDFNormal(F187,0,1) -> 0 | I187: 187 | K187: -1.018036077 | L187: =[1]!XLSTAT_PDFNormal(K187,0,1) -> 0.2376069929 | M187: 187 | O187: 19 | P187: 8
A188: 188 | B188: 2.718857376 | C188: 2.718857376 | D188: =[1]!XLSTAT_PDFNormal(B188,0,1) -> 0.009901873968 | E188: 188 | F188: -3.241106608 | G188: -3.241106608 | H188: =[1]!XLSTAT_PDFNormal(F188,0,1) -> 0.002088467876 | I188: 188 | K188: -1.002004013 | L188: =[1]!XLSTAT_PDFNormal(K188,0,1) -> 0.2414858126 | M188: 188 | O188: 20 | P188: 8
A189: 189 | B189: 2.727017521 | C189: 2.727017521 | D189: =[1]!XLSTAT_PDFNormal(B189,0,1) -> 0.009684284986 | E189: 189 | F189: -3.232946464 | G189: -3.232946464 | H189: =[1]!XLSTAT_PDFNormal(F189,0,1) -> 0.002144368978 | I189: 189 | K189: -0.9859719492 | L189: =[1]!XLSTAT_PDFNormal(K189,0,1) -> 0.2453648787 | M189: 189 | O189: 21 | P189: 8
A190: 190 | B190: 51 | C190: 2.727017521 | D190: =[1]!XLSTAT_PDFNormal(B190,0,1) -> 0 | E190: 190 | F190: 51 | G190: -3.232946464 | H190: =[1]!XLSTAT_PDFNormal(F190,0,1) -> 0 | I190: 190 | K190: -0.9699398851 | L190: =[1]!XLSTAT_PDFNormal(K190,0,1) -> 0.2492421853 | M190: 190 | O190: 22 | P190: 8
A191: 191 | B191: 51 | C191: 2.735177665 | D191: =[1]!XLSTAT_PDFNormal(B191,0,1) -> 0 | E191: 191 | F191: 51 | G191: -3.22478632 | H191: =[1]!XLSTAT_PDFNormal(F191,0,1) -> 0 | I191: 191 | K191: -0.953907821 | L191: =[1]!XLSTAT_PDFNormal(K191,0,1) -> 0.2531156959 | M191: 191 | O191: 23 | P191: 8
A192: 192 | B192: 2.735177665 | C192: 2.735177665 | D192: =[1]!XLSTAT_PDFNormal(B192,0,1) -> 0.009470846754 | E192: 192 | F192: -3.22478632 | G192: -3.22478632 | H192: =[1]!XLSTAT_PDFNormal(F192,0,1) -> 0.002201619753 | I192: 192 | K192: -0.9378757569 | L192: =[1]!XLSTAT_PDFNormal(K192,0,1) -> 0.2569833452 | M192: 192 | O192: 24 | P192: 8
A193: 193 | B193: =IF(-1^(INT(A193/2)+2)>0,1.9599639845+2*INT(A193/2-1/2)*0.004080072,51) -> 2.743337808 | C193: =1.9599639845+2*INT(A193/2-1/2)*0.004080072 -> 2.743337808 | D193: =[1]!XLSTAT_PDFNormal(B193,0,1) -> 0.009261495901 | E193: 193 | F193: =IF(-1^(INT(E193/2)+2)>0,-4+2*INT(E193/2-1/2)*0.004080072,51) -> -3.216626176 | G193: =-4+2*INT(E193/2-1/2)*0.004080072 -> -3.216626176 | H193: =[1]!XLSTAT_PDFNormal(F193,0,1) -> 0.002260248511 | I193: 193 | K193: =-4+(I193-1)*0.0160320641 -> -0.9218436928 | L193: =[1]!XLSTAT_PDFNormal(K193,0,1) -> 0.2608430404 | M193: 193 | O193: =M193-24*INT((-1/2+M193)/24) -> 1 | P193: =1+INT((M193-1/2)/24) -> 9
A194: 194 | B194: 51 | C194: 2.743337808 | D194: =[1]!XLSTAT_PDFNormal(B194,0,1) -> 0 | E194: 194 | F194: 51 | G194: -3.216626176 | H194: =[1]!XLSTAT_PDFNormal(F194,0,1) -> 0 | I194: 194 | K194: -0.9058116287 | L194: =[1]!XLSTAT_PDFNormal(K194,0,1) -> 0.2646926635 | M194: 194 | O194: 2 | P194: 9
A195: 195 | B195: 51 | C195: 2.751497953 | D195: =[1]!XLSTAT_PDFNormal(B195,0,1) -> 0 | E195: 195 | F195: 51 | G195: -3.208466032 | H195: =[1]!XLSTAT_PDFNormal(F195,0,1) -> 0 | I195: 195 | K195: -0.8897795646 | L195: =[1]!XLSTAT_PDFNormal(K195,0,1) -> 0.2685300724 | M195: 195 | O195: 3 | P195: 9
A196: 196 | B196: 2.751497953 | C196: 2.751497953 | D196: =[1]!XLSTAT_PDFNormal(B196,0,1) -> 0.009056169648 | E196: 196 | F196: -3.208466032 | G196: -3.208466032 | H196: =[1]!XLSTAT_PDFNormal(F196,0,1) -> 0.002320284034 | I196: 196 | K196: -0.8737475005 | L196: =[1]!XLSTAT_PDFNormal(K196,0,1) -> 0.2723531033 | M196: 196 | O196: 4 | P196: 9
A197: 197 | B197: 2.759658096 | C197: 2.759658096 | D197: =[1]!XLSTAT_PDFNormal(B197,0,1) -> 0.00885480581 | E197: 197 | F197: -3.200305888 | G197: -3.200305888 | H197: =[1]!XLSTAT_PDFNormal(F197,0,1) -> 0.002381755587 | I197: 197 | K197: -0.8577154364 | L197: =[1]!XLSTAT_PDFNormal(K197,0,1) -> 0.2761595728 | M197: 197 | O197: 5 | P197: 9
A198: 198 | B198: 51 | C198: 2.759658096 | D198: =[1]!XLSTAT_PDFNormal(B198,0,1) -> 0 | E198: 198 | F198: 51 | G198: -3.200305888 | H198: =[1]!XLSTAT_PDFNormal(F198,0,1) -> 0 | I198: 198 | K198: -0.8416833723 | L198: =[1]!XLSTAT_PDFNormal(K198,0,1) -> 0.279947279 | M198: 198 | O198: 6 | P198: 9
A199: 199 | B199: 51 | C199: 2.767818241 | D199: =[1]!XLSTAT_PDFNormal(B199,0,1) -> 0 | E199: 199 | F199: 51 | G199: -3.192145744 | H199: =[1]!XLSTAT_PDFNormal(F199,0,1) -> 0 | I199: 199 | K199: -0.8256513082 | L199: =[1]!XLSTAT_PDFNormal(K199,0,1) -> 0.2837140045 | M199: 199 | O199: 7 | P199: 9
A200: 200 | B200: 2.767818241 | C200: 2.767818241 | D200: =[1]!XLSTAT_PDFNormal(B200,0,1) -> 0.008657342801 | E200: 200 | F200: -3.192145744 | G200: -3.192145744 | H200: =[1]!XLSTAT_PDFNormal(F200,0,1) -> 0.002444692921 | I200: 200 | K200: -0.8096192441 | L200: =[1]!XLSTAT_PDFNormal(K200,0,1) -> 0.2874575179 | M200: 200 | O200: 8 | P200: 9
... 376 more rows
